{"text_format":"1","workbook":"xlsx","n_sheets":8,"sheets":["Read Me","Instructions","CFP Quantification","Customized Embodied EF","Customized Process Factors","Customized Fuel EF","Customized Fuel LHV","Default EF&LHV References "],"not_rendered":{"charts":0,"images":1,"macros":1,"external_links":0,"defined_names":11,"comments":1,"pivot_tables":0},"unopened":[],"bounds":{"document_bytes":16777216,"sheet_cells":100000,"rows_first":2000,"rows_last":500,"rows_between":2000,"halvings":0,"cell_chars":16384,"cell_head_chars":4096},"cells_cut":0,"cells_raw":0,"read":"whole","date_system":"1900"}

{"sheet":"Read Me","index":0,"n_rows":40,"n_cols":4,"rows_kept":40,"cut":false,"hidden":false,"merged":[[24,1,24,7],[21,1,21,7],[22,1,22,7],[23,1,23,7],[0,1,0,7],[2,1,2,7],[6,3,6,6],[18,1,18,7],[19,1,19,7],[20,1,20,7]]}
[null,"CFP Quantification Tool - Cement"]
[]
[null,"Colour Codes, Notes & FAQ"]
[]
[]
[null,"Tool Sections :"]
[null,"G : General Information Section ","=","General information of the certifying Cement product(s) that required user input"]
[null,"A : Assessment Section","=","Calculation of the carbon emission for each Cement product(s)"]
[null,"P : Performance Section ","=","Summary of each of the Cement Carbon emission performance "]
[]
[null,"Colour Code of Cells :",null,"Colour Code of Sheets :"]
[null,"Input cell",null,"Instruction"]
[null,"Calculated value",null,"Calculation Tool"]
[null,"Information ( Title , units, item nos. etc)",null," Factor for Calculation"]
[null,"Not used ",null,"Default Factor References"]
[null,"Click me"]
[]
["Notes to users:"]
["-","Users should refer to the relevant Assessment Guide issued by the Construction Industry Council's (CIC) for the principles, requirements, and guides for the quantification and reporting the carbon footprint of products (CFP) under the CIC Green Product Certification.  Any manufacturers applying for the CIC's  Green Product Certification should comply with all relevant requirements on CFP quantification stated in the Assessment Guide."]
["-","The goal of carrying out a CFP quantification is to calculate the potential contribution of a particular product to global warming expressed as CO2e by quantifying all significant GHG emissions and removals over the product’s life cycle."]
["- ","This CFP quantification tool covers cement and inter-ground or blended mixtures of cement with other materials, which may include gypsum, limestone, fly ash, blast furnace slag, or naturally occurring pozzolanic materials.The tool is developed with reference to  ISO/TS 14067:2018"]
["- ","According to the principles of the LCA methodology provided in ISO 14040:2006 with Amendment 1:2020 and ISO 14044:2006 with Amendment 2:2020, the quantification and reporting of a CFP should be relevant, complete, consistent, accurate and transparent. The assessment of carbon footprint of Portland Cement under the CIC Green Product Certification shall be based on a “cradle-to-gate” approach, covering all GHG emissions and removals arising from raw material acquisition through production, and transportation of the raw materials to the plant, and manufacturing process. Please note that the GHG emission from transportation of Portland Cement to border of HK (Module A4) is excluded from the system boundary of this assessment. The user input for A4 emission is provided for reporting purpose only and does not affect the benchmarking and rating of the certified product."]
["-","Users are required to complete the worksheet \"CFP Quantification\" to access the product's carbon footprint. Guides are provided in the \"Instruction\" worksheet. Please ensure ALL input cells (i.e. empty light green cells) in the \"CFP Quantification\" are filled out. User shall fill the worksheet from top to bottom."]
["-","All the units of \"t/reporting period\" in this tool refers to \"tonne/year\", where 1 tonne = 1000 kg."]
["-","If \"Default\" factor is selected, Applicants shall review the references of the default values to ensure their applicability prior to use.\n\nApplicants are encouraged to prioritize the use of specific life cycle data. In cases where such data is not readily accessible, data from national databases, regional databases, or other recognized sources may be utilized. "]
["Frequently Asked Questions:"]
["-","Question: \"Why do many self-calculating cells in my worksheet display a calculation error (for example, \"#VALUE\" displayed)?"]
[null,"Answer: \"#VALUE\" appears as long as some necessary input cells have not been completed (i.e., some cells have been left blank)."]
["-","Question: \"Why do many self-calculating cells in my worksheet display a \"Factor error\" ?"]
[null,"Answer: \"Factor error\" appears as the energy commodity / material was not found in the factor sheets."]
[]
[null,"© 2025 All rights reserved by CIC"]
[]
[null,"Scheme Owned by Construction Industry Council"]
[null,"38/F, COS Centre, 56 Tsun Yip Street, Kwun Tong, Kowloon, Hong Kong"]
[]
[null,"Operated by Hong Kong Green Building Council"]
[null,"1/F, Jockey Club Environmental Building, 77 Tat Chee Avenue, Kowloon Tong, Hong Kong"]
[null,"Phone: +852 3994 8888"]
[null,"Email: cicgpc@hkgbc.org.hk"]

{"sheet":"Instructions","index":1,"n_rows":130,"n_cols":18,"rows_kept":130,"cut":false,"hidden":false,"merged":[[116,12,116,17],[84,5,84,7],[76,5,76,8],[77,5,77,8],[77,10,77,11],[26,12,36,17],[35,5,36,5],[38,8,41,8],[38,10,41,10],[43,12,44,17],[54,5,64,6],[67,5,72,6],[67,8,72,8],[66,5,66,6],[66,7,66,8],[67,10,67,11],[68,10,68,11],[64,10,64,11],[54,10,54,11],[55,10,55,11],[56,10,56,11],[69,10,69,11],[70,10,70,11],[71,10,71,11],[116,10,116,11],[109,10,109,11],[103,10,103,11],[104,10,104,11],[105,10,105,11],[97,10,97,11],[85,5,85,7],[85,10,85,11],[86,5,86,8],[88,10,88,11],[89,10,89,11],[108,5,109,5],[108,6,109,6],[108,7,109,8],[102,5,105,5],[102,6,105,6],[102,7,105,8],[88,5,89,5],[88,6,89,6],[88,7,89,7],[90,10,90,11],[120,1,129,1],[120,10,120,11],[121,5,121,8],[121,10,121,11],[122,5,122,8],[122,10,122,11],[123,5,123,8],[123,10,123,11],[124,5,124,8],[124,10,124,11],[129,5,129,8],[129,10,129,11],[126,5,126,8],[126,10,126,11],[127,5,127,8],[127,10,127,11],[128,5,128,8],[128,10,128,11],[125,5,125,7],[125,10,125,11],[117,2,117,3],[117,5,117,7],[117,10,117,11],[119,2,119,8],[119,10,119,11],[112,2,112,3],[112,5,112,7],[112,10,112,11],[113,1,117,1],[113,2,113,17],[114,2,114,8],[114,10,114,11],[115,2,115,3],[115,5,115,8],[116,5,116,8],[79,1,112,1],[79,2,79,17],[80,2,80,8],[80,10,80,11],[81,2,81,3],[81,5,81,8],[81,10,81,11],[82,10,82,11],[83,5,83,6],[110,2,110,3],[110,5,110,8],[110,10,110,11],[111,2,111,3],[111,5,111,8],[111,10,111,11],[106,2,106,3],[106,5,106,8],[106,10,106,11],[107,7,107,8],[108,10,108,11],[100,2,100,3],[100,5,100,8],[100,10,100,11],[101,7,101,8],[102,10,102,11],[91,5,91,6],[94,5,94,6],[94,10,94,11],[96,5,96,6],[96,10,96,11],[92,10,93,11],[78,2,78,3],[78,5,78,7],[78,10,78,11],[72,10,72,11],[73,2,73,3],[73,5,73,7],[73,10,73,11],[74,1,78,1],[74,2,74,17],[75,2,75,8],[75,10,75,11],[76,2,76,3],[50,1,73,1],[50,2,50,17],[51,2,51,8],[51,10,51,11],[52,2,52,3],[52,5,52,8],[52,10,52,11],[53,2,53,3],[53,5,53,6],[53,7,53,8],[77,12,77,17],[66,2,66,3],[65,2,65,3],[65,5,65,8],[65,10,65,11],[60,10,60,11],[61,10,61,11],[62,10,62,11],[57,10,57,11],[58,10,58,11],[59,10,59,11],[45,10,45,11],[46,10,46,11],[47,10,47,11],[47,12,47,17],[48,1,48,17],[49,2,49,17],[45,1,47,1],[45,2,45,8],[43,8,44,8],[32,10,32,11],[33,10,33,11],[34,10,34,11],[35,10,35,11],[36,10,36,11],[37,5,37,6],[24,10,24,11],[25,1,44,1],[25,2,25,8],[25,10,25,11],[26,10,26,11],[27,10,27,11],[28,10,28,11],[29,10,29,11],[30,10,30,11],[31,10,31,11],[20,1,24,1],[20,2,20,8],[20,10,20,11],[21,5,21,8],[21,10,21,11],[22,5,22,8],[22,10,22,11],[23,5,23,8],[23,10,23,11],[24,5,24,8],[38,5,38,6],[39,5,39,6],[40,5,40,6],[41,5,41,6],[21,12,21,17],[23,12,23,17],[12,1,19,1],[12,2,12,17],[13,5,13,7],[13,8,13,9],[14,5,14,7],[14,8,14,9],[15,5,15,7],[15,8,15,9],[18,5,18,7],[18,8,18,9],[19,5,19,7],[19,8,19,9],[16,5,16,7],[16,8,16,9],[17,5,17,7],[17,8,17,9],[13,10,19,17],[9,5,9,9],[10,5,10,9],[11,5,11,9],[11,10,11,17],[8,10,10,17],[0,0,0,17],[2,8,2,9],[3,8,3,9],[5,1,6,1],[5,2,6,17],[7,1,11,1],[7,2,7,9],[7,10,7,17],[8,5,8,9]]}
["CFP Quantification - Cement"]
["Product category 1: Annealed glass"]
["Product category 2: Processed glass","Date of latest update",null,null,null,null,null,null,"2025-06-27"]
[null,"Reporting period",null,null,null,null,null,null,"Please provide corresponding information"]
[]
[null,"G","GENERAL INFORMATION"]
[]
[null,"G1","G1 General Plant Information",null,null,null,null,null,null,null,"Description"]
[null,null,{"$f":"LEFT($C$8,2)&\".\"","v":"G1."},1,null,"Plant",null,null,null,null,"Please provide corresponding information"]
[null,null,"G1.",2,null,"Company"]
[null,null,"G1.",3,null,"Country / Region"]
[null,null,"G1.",4,null,"Kiln types",null,null,null,null,"Please provide kiln type of the product(s)"]
[null,"G2","G2 System Boundary"]
[null,null,{"$f":"LEFT($C$13,2)&\".\"","v":"G2."},1,null,"Raw Material extraction and upstream production",null,null,"[yes, no or n.a.]",null,"\"Yes\" means that the GHG emissions arising from the process are reported.\n\"No\" means that the associated data are not reported. Please provide explanation in a note in the cell for why \"No\" was selected.\n\"n.a.\" (not applicable) means that emissions are never generated from this source, or the source does not exist at this plant."]
[null,null,"G2.",2,null,"Off-site transportation of raw materials to manufacturing plant",null,null,"[yes, no or n.a.]"]
[null,null,"G2.",3,null,"Product manufacturing - stationary combustion",null,null,"[yes, no or n.a.]"]
[null,null,"G2.",4,null,"Product manufacturing - mobile combustion ",null,null,"[yes, no or n.a.]"]
[null,null,"G2.",5,null,"Indirect emission from purchased energy ",null,null,"[yes, no or n.a.]"]
[null,null,"G2.",6,null,"Off-site transportation of product to border of HK [for reference only, excluded from assessment boundary]",null,null,"[yes, no or n.a.]"]
[null,null,"G2.",7,null,"(add other processes as appropriate)",null,null,"[yes, no or n.a.]"]
[null,"G3","G3 Clinker and Portland Cement Product Production",null,null,null,null,null,null,"unit","Total",null,"Product 1","Product 2","Product 3","Product 4","Product 5","Product 6"]
[null,null,{"$f":"LEFT($C$21,2)&\".\"","v":"G3."},1,null,"Cement production in weight",null,null,null,"[t/reporting period]",null,null,"Quantity in weight of each cement product produced. If there are more than six products within any category, feel free to add additional columns as needed. To add more products, simply copy the entire columns of the last category and insert them between the product columns."]
[null,null,{"$f":"LEFT($C$21,2)&\".\"","v":"G3."},2,null,"Proportion of cement production",null,null,null,"%"]
[null,null,"G3.",3,null,"Clinker production in weight",null,null,null,"[t/reporting period]",null,null,"Quantity in weight of each clinker produced. If there are more than six products within any category, feel free to add additional columns as needed. To add more products, simply copy the entire columns of the last category and insert them between the product columns."]
[null,null,"G3.",4,null,"Proportion of clinker production",null,null,null,"%"]
[null,"G4","G4 Purchased Raw Materials and Energy Used to Produce Portland Cement (only purchased materials shall be included)",null,null,null,null,null,null,"unit","Total",null,"Product 1","Product 2","Product 3","Product 4","Product 5","Product 6"]
[null,null,{"$f":"LEFT($C$26,2)&\".\"","v":"G4."},1,null,"Gypsum",null,null,null,"[t/reporting period, dry weight]",{"$f":"IF(SUM(M27:R27)=0,\"\",SUM(M27:R27))","v":""},null,"Please input the consumption of bought raw materials for the production of each product. On-site produced materials shall be excluded, to avoid double counting."]
[null,null,"G4.",2,null,"Limestone",null,null,null,"[t/reporting period, dry weight]",{"$f":"IF(SUM(M28:R28)=0,\"\",SUM(M28:R28))","v":""}]
[null,null,"G4.",3,null,"Clay",null,null,null,"[t/reporting period, dry weight]",""]
[null,null,"G4.",4,null,"Shale",null,null,null,"[t/reporting period, dry weight]",""]
[null,null,"G4.",5,null,"Pozzolan / Fly ash",null,null,null,"[t/reporting period, dry weight]",""]
[null,null,"G4.",6,null,"Ground Blastfurnace Slag (GGBS)",null,null,null,"[t/reporting period, dry weight]",""]
[null,null,"G4.",7,null,"Sandstone",null,null,null,"[t/reporting period, dry weight]",""]
[null,null,"G4.",8,null,"Iron ore",null,null,null,"[t/reporting period, dry weight]",""]
[null,null,"G4.",9,null,"Packaging material",null,null,null,"[t/reporting period, dry weight]",""]
[null,null,"G4.",10,null,"Applicant can add raw materials, if applicable.\n\nApplicants shall include customized raw materials for calculation purposes in the worksheet titled \"Customized Embodied EF\" ","Others, if applicable","[refer to \"Customized Embodied EF\"]",null,"[t/reporting period, dry weight]",{"$f":"IF(SUM(M36:R36)=0,\"\",SUM(M36:R36))","v":""}]
[null,null,"G4.",11,null,null,"Others, if applicable","[refer to \"Customized Embodied EF\"]",null,"[t/reporting period, dry weight]",{"$f":"IF(SUM(M37:R37)=0,\"\",SUM(M37:R37))","v":""}]
[null,null,"G4.",12,null,"Energy commodity used in stationary combustion",null,"Energy Commodity usage type : "]
[null,null,"G4.",{"$f":"D38","v":12},".1","Stationary combustion source",null,"Energy commodity :","Please select the appropriate type of energy commodity.\n\nApplicants are permitted to include customized energy commodities for calculation purposes in the worksheets titled \"Customized Embodied EF,\" \"Customized Fuel EF,\" and \"Customized Fuel LHV.\" \n\nIf additional energy commodities need to be included, kindly insert more rows as necessary.","[t/reporting period]","If \"Proportionally Allocated\" is selected, please enter the total consumption for each of the energy commodity."]
[null,null,"G4.",{"$f":"D39","v":12},".2","Stationary combustion source",null,"Energy commodity :",null,"[t/reporting period]"]
[null,null,"G4.",{"$f":"D40","v":12},".3","Stationary combustion source",null,"Energy commodity :",null,"[t/reporting period]"]
[null,null,"G4.",{"$f":"D41","v":12},".4","Stationary combustion source",null,"Energy commodity :",null,"[t/reporting period]"]
[null,null,"G4.",13,null,"On-site transportation",null,"Energy Commodity usage type : "]
[null,null,"G4.",{"$f":"D43","v":13},".1","Mobile combustion source",null,"Energy commodity :","Please select the appropriate type of energy commodity.\n\nApplicants are permitted to include customized energy commodities for calculation purposes in the worksheets titled \"Customized Embodied EF,\" \"Customized Fuel EF,\" and \"Customized Fuel LHV.\" \n\nIf additional energy commodities need to be included, kindly insert more rows as necessary.","[t/reporting period]",null,null,"If \"User Input\" is selected, please enter the individual consumption energy commodity for each product."]
[null,null,"G4.",{"$f":"D44","v":13},".2","Mobile combustion source",null,"Energy commodity :",null,"[t/reporting period]"]
[null,"G5","G5. Power Consumption of Purchased Energy",null,null,null,null,null,null,"unit","Total",null,"Product 1","Product 2","Product 3","Product 4","Product 5","Product 6"]
[null,null,{"$f":"LEFT($C$46,2)&\".\"","v":"G5."},1,null,"Consumption of electricity produced externally",null,null,null,"[MWh/reporting period]","Please enter the total consumption of electricity produced externally"]
[null,null,{"$f":"LEFT($C$46,2)&\".\"","v":"G5."},2,null,"CO2e per unit of electricity produced externally",null,null,null,"[kg CO2e/MWh]","Please enter the specific carbon emission factor for electricity produced externally. \n\nApplicants may obtain the carbon emission factor from their power supplier or from relevant national authorities."]
[]
[null,"A","ASSESSMENT"]
[null,"A1","PROJECT LIFE CYCLE STAGE : A1 RAW MATERIAL EXTRACTION AND UPSTREAM PRODUCTION"]
[null,null,"A1.1 CO2e EMISSIONS ",null,null,null,null,null,null,"unit","Total",null,"Product 1","Product 2","Product 3","Product 4","Product 5","Product 6"]
[null,null,"A1.1.1",null,null,"CO2e from bought raw materials  (only purchased materials shall be included)",null,null,null,"[t CO2e/reporting period]"]
[null,null,null,null,null,"Adopting CO2e Factors "]
[null,null,null,{"$f":"C53","v":"A1.1.1"},1,"Select the type of embodied emissions factor (EF) for calculation:\n1) Default \n2) Customized\n\nIf \"Customized\" is selected, please enter / add customized EF for each of the product under worksheet \"Customized Embodied EF\".\n\nIf \"Default\" is selected, Applicants shall review the references of the default values to ensure their applicability prior to use.\n\nApplicants are encouraged to prioritize the use of specific life cycle data. In cases where such data is not readily accessible, data from national databases, regional databases, or other recognized sources may be utilized. ",null,{"$f":"F27","v":"Gypsum"},null,"[t CO2e/reporting period]"]
[null,null,null,{"$f":"C53","v":"A1.1.1"},2,null,null,{"$f":"F28","v":"Limestone"},null,"[t CO2e/reporting period]"]
[null,null,null,{"$f":"C53","v":"A1.1.1"},3,null,null,"Clay",null,"[t CO2e/reporting period]"]
[null,null,null,{"$f":"C53","v":"A1.1.1"},4,null,null,"Shale",null,"[t CO2e/reporting period]"]
[null,null,null,{"$f":"D58","v":"A1.1.1"},5,null,null,"Pozzolan / Fly ash",null,"[t CO2e/reporting period]"]
[null,null,null,{"$f":"D59","v":"A1.1.1"},6,null,null,"Ground Blastfurnace Slag (GGBS)",null,"[t CO2e/reporting period]"]
[null,null,null,{"$f":"D60","v":"A1.1.1"},7,null,null,"Sandstone",null,"[t CO2e/reporting period]"]
[null,null,null,{"$f":"D61","v":"A1.1.1"},8,null,null,"Iron ore",null,"[t CO2e/reporting period]"]
[null,null,null,"A1.1.1",9,null,null,"Packaging material",null,"[t CO2e/reporting period]"]
[null,null,null,"A1.1.1",10,null,null,null,"[refer to section G4]"]
[null,null,null,"A1.1.1",11,null,null,{"$f":"IF(F37=\"\",\"\",F37)","v":""},"[refer to section G4]","[t CO2e/reporting period]"]
[null,null,"A1.1.2",null,null,"CO2e from bought energy commodity",null,null,null,"[t CO2e/reporting period]"]
[null,null,null,null,null,"Adopting CO2e Factors ",null,"[Please insert additional rows if more energy commodities are included]"]
[null,null,null,{"$f":"C66","v":"A1.1.2"},".1","Select the type of embodied EF for calculation:\n1) Default \n2) Customized\n\nIf \"Customized\" is selected, please enter / add customized EF for each of the product under worksheet \"Customized Embodied EF\".\n\nIf \"Default\" is selected, Applicants shall review the references of the default values to ensure their applicability prior to use.\n\nApplicants are encouraged to prioritize the use of specific life cycle data. In cases where such data is not readily accessible, data from national databases, regional databases, or other recognized sources may be utilized. ",null,{"$f":"H44","v":"Energy commodity :"},"Please copy energy commodity from G4.12 to G4.13.\n\nPlease insert additional rows if more energy commodities are included","[t CO2e/reporting period]"]
[null,null,null,{"$f":"D68","v":"A1.1.2"},".2",null,null,{"$f":"H45","v":"Energy commodity :"},null,"[t CO2e/reporting period]"]
[null,null,null,{"$f":"D69","v":"A1.1.2"},".3",null,null,{"$f":"H69","v":"Energy commodity :"},null,"[t CO2e/reporting period]"]
[null,null,null,{"$f":"D70","v":"A1.1.2"},".4",null,null,{"$f":"H70","v":"Energy commodity :"},null,"[t CO2e/reporting period]"]
[null,null,null,"A1.1.2",".5",null,null,"Energy commodity :",null,"[t CO2e/reporting period]"]
[null,null,null,{"$f":"D72","v":"A1.1.2"},".6",null,null,{"$f":"H45","v":"Energy commodity :"},null,"[t CO2e/reporting period]"]
[null,null,"A1.1.3",null,null,null,null,null,"Total CO2e in Stage A1","[t CO2e/reporting period]"]
[null,"A2","PROJECT LIFE CYCLE STAGE: A2 OFF-SITE TRANSPORTATION OF RAW MATERIALS TO MANUFACTURING PLANT"]
[null,null,"A2.1 CO2e EMISSIONS ",null,null,null,null,null,null,"unit","Total",null,"Product 1","Product 2","Product 3","Product 4","Product 5","Product 6"]
[null,null,"A2.1.1",null,null,"CO2e from off-site transportation of raw material to manufacturing plant"]
[null,null,null,{"$f":"C77","v":"A2.1.1"},".1","CO2e calculated using either 1) WRI & WBCSD's protocol OR 2) EPD & EMSD's carbon audit tool)",null,null,null,"[t CO2e/reporting period]",null,null,"Please enter the GHG emission from stage A2 (from off-site transportation of raw material to manufacturing plant) for each of the product. \n\nGHG emission can be calculated by required information such as mode of transport, travelled distance, fuel used with following tool:\n1) WRI & WBCSD's protocol, namely “GHG Emissions from Transport or Mobile Sources” which can be accessible at: https://ghgprotocol.org/calculation-tools-and-guidance, or \n2) EPD & EMSD carbon audit tool, which can be accessible at: https://cnsd.gov.hk/en/green-business-and-industry/carbon-audit/\n\nIf the travelled distance needs to be entered into a separate tool, please use the actual travelled distance rather than the straight-line distance. Additionally, kindly provide supporting documentation, such as a map indicating the distance, for verification purposes."]
[null,null,"A2.1.2",null,null,null,null,null,"Total CO2e in Stage A2","[t CO2e/reporting period]"]
[null,"A3","PROJECT LIFE CYCLE STAGE: A3 PRODUCT MANUFACTURING AND FABRICATION (WITHOUT WASTAGE)"]
[null,null,"A3.1 CO2e EMISSIONS ",null,null,null,null,null,null,"unit","Total",null,"Product 1","Product 2","Product 3","Product 4","Product 5","Product 6"]
[null,null,"A3.1.1",null,null,"CO2e from industrial processes ",null,null,null,"[t CO2e/reporting period]"]
[null,null,null,{"$f":"C82","v":"A3.1.1"},".1","CO2e from calcination of raw materials for clinker production",null,null,null,"[t CO2e/reporting period]"]
[null,null,null,{"$f":"D83&E83","v":"A3.1.1.1"},".1","CO2e from calcination of carbonate sources"]
[null,null,null,null,null,"Adopting CO2e Factors "]
[null,null,null,{"$f":"D84","v":"A3.1.1.1"},".2","Please indicate if to use the default process factor for Portland Cement Clinker\n1) Default\n2) Customized",null,null,"[refer to \"Customized Process Factors\"]","[t CO2e/reporting period]"]
[null,null,null,{"$f":"D86","v":"A3.1.1.1"},".3","CO2e reduction by using non-carbonate sources (alternative of carbonate sources)"]
[null,null,null,null,null,"Adopting CO2e Factors","Non-Carbonate Sources"," weight % of non-carbonate source as a raw material for clinker over total purchased non-carbonate source"]
[null,null,null,{"$f":"D87","v":"A3.1.1.1"},".4","Please indicate if to use the default reduction factor for non-carbonate alternative material\n1) Default\n2) Customized","Please specify the type of non-carbonate source","Specify  weight % of non-carbonate source as a raw material for clinker over total purchased non-carbonate source ","[refer to \"Customized Process Factors\"]","[t CO2e/reporting period]"]
[null,null,null,{"$f":"D89","v":"A3.1.1.1"},".5",null,null,null,"[refer to \"Customized Process Factors\"]","[t CO2e/reporting period]"]
[null,null,null,{"$f":"C82","v":"A3.1.1"},".2","CO2e from calcination of cement kiln dust (CKD) and bypass dust "]
[null,null,null,null,null,"Dust production"]
[null,null,null,{"$f":"D91&E91","v":"A3.1.1.2"},".1","Cement kiln dust leaving the kiln system in weight",null,null,null,"[t/reporting period, dry weight]","Provide the amount of CKD and by-pass dust from the production line. Should there be no plant-specific data on the dust volume, the Intergovernmental Panel on Climate Change (IPCC) default for CO2 from discarded dust (2% of clinker CO2) shall be used. However, using plant or company-specific data is preferred."]
[null,null,null,{"$f":"D93","v":"A3.1.1.2"},".2","Bypass dust leaving kiln system in weight",null,null,null,"[t/reporting period, dry weight]"]
[null,null,null,{"$f":"D94","v":"A3.1.1.2"},".3","CO2e from calcination of cement kiln dust (CKD)",null,null,null,"[t CO2e/reporting period]"]
[null,null,null,null,null,"Default calcination rate:",1]
[null,null,null,{"$f":"D95","v":"A3.1.1.2"},".4","CO2e from calcination of bypass dust",null,null,null,"[t CO2e/reporting period]"]
[null,null,null,{"$f":"C82","v":"A3.1.1"},"3","CO2e from combustion of total organic carbon (TOC) contained in raw materials"]
[null,null,null,null,null,"Default raw meal to clinker ratio:",1.55]
[null,null,null,null,null,"Default TOC content of raw meal:",2E-3,"corresponding to 2 kg/t raw meal "]
[null,null,"A3.1.2",null,null,"CO2e from product manufacturing (stationary combustion sources)",null,null,null,"[t CO2e/reporting period]"]
[null,null,null,null,null,"Adopting CO2e Factors ","Adopting LHV Factors ","[Please insert additional rows if more energy commodities are included]"]
[null,null,null,{"$f":"C101","v":"A3.1.2"},".1","Select the type of GHG emission factor for calculation:\n1) Default \n2) Customized\n\nIf \"Customized\" is selected, please enter / add customized EF for each of the product under worksheet \"Customized Fuel EF\".\n\nIf \"Default\" is selected, Applicants shall review the references of the default values to ensure their applicability prior to use.\n\nApplicants are encouraged to prioritize the use of specific life cycle data. In cases where such data is not readily accessible, data from national databases, regional databases, or other recognized sources may be utilized. ","Select the type of LHV factor for calculation:\n1) Default \n2) Customized\n\nIf \"Customized\" is selected, please enter / add customized LHV for each of the product under worksheet \"Customized Fuel LHV\".\n\nIf \"Default\" is selected, Applicants shall review the references of the default values to ensure their applicability prior to use.\n\nApplicants are encouraged to prioritize the use of specific life cycle data. In cases where such data is not readily accessible, data from national databases, regional databases, or other recognized sources may be utilized. ","Please enter the type of energy commodity utilized from stationary combustion sources for production manufacturing, including but not limited to, alumina refining, electrolysis, ingot casting, scrap remelting & casting, semi-fabrication & finishing (forging, casting, extrusion, rolling, heat treatment, surface treatment, coating, etc), on-site power generation, on-site gas generation, equipment, and room heating / cooling.",null,"[t CO2e/reporting period]"]
[null,null,null,{"$f":"D103","v":"A3.1.2"},".2",null,null,null,null,"[t CO2e/reporting period]"]
[null,null,null,{"$f":"D104","v":"A3.1.2"},".3",null,null,null,null,"[t CO2e/reporting period]"]
[null,null,null,{"$f":"C101","v":"A3.1.2"},".4",null,null,null,null,"[t CO2e/reporting period]"]
[null,null,"A3.1.3",null,null,"CO2e from on-site transportation (mobile combustion sources)",null,"CO2e from on-site power generation","CO2e from on-site power generation","[t CO2e/reporting period]"]
[null,null,null,null,null,"Adopting CO2e Factors ","Adopting LHV Factors ","[Please insert additional rows if more energy commodities are included]"]
[null,null,null,{"$f":"C107","v":"A3.1.3"},".1","Select the type of  GHG emission factor for calculation:\n1) Default \n2) Customized\n\nIf \"Customized\" is selected, please enter / add customized EF for each of the product under worksheet \"Customized Fuel EF\".\n\nIf \"Default\" is selected, Applicants shall review the references of the default values to ensure their applicability prior to use.\n\nApplicants are encouraged to prioritize the use of specific life cycle data. In cases where such data is not readily accessible, data from national databases, regional databases, or other recognized sources may be utilized. ","Select the type of LHV factor for calculation:\n1) Default \n2) Customized\n\nIf \"Customized\" is selected, please enter / add customized LHV for each of the product under worksheet \"Customized Fuel LHV\".\n\nIf \"Default\" is selected, Applicants shall review the references of the default values to ensure their applicability prior to use.\n\nApplicants are encouraged to prioritize the use of specific life cycle data. In cases where such data is not readily accessible, data from national databases, regional databases, or other recognized sources may be utilized. ","Please enter the type of energy commodity utilized from mobile combustion sources for on-site transportation.",null,"[t CO2e/reporting period]"]
[null,null,null,{"$f":"C107","v":"A3.1.3"},".2",null,null,null,null,"[t CO2e/reporting period]"]
[null,null,"A3.1.4",null,null,"Total CO2e from fuels combustion",null,null,null,"[t CO2e/reporting period]"]
[null,null,"A3.1.5",null,null,"CO2e from external electricity production",null,null,null,"[t CO2e/reporting period]"]
[null,null,"A3.1.6",null,null,null,null,null,"Total CO2e in Stage A3","[t CO2e/reporting period]"]
[null,"A4","PROJECT LIFE CYCLE STAGE: A4 OFF-SITE TRANSPORTATION OF PRODUCT TO CONSTRUCTION SITE "]
[null,null,"A4.1 CO2e EMISSIONS ",null,null,null,null,null,null,"unit","Total",null,"Product 1","Product 2","Product 3","Product 4","Product 5","Product 6"]
[null,null,"A4.1.1",null,null,"CO2e from off-site transportation of product to construction site (excluded from assessment boundary)"]
[null,null,null,{"$f":"C116","v":"A4.1.1"},".1","CO2e calculated using either 1) WRI & WBCSD's protocol OR 2) EPD & EMSD's carbon audit tool)",null,null,null,"[t CO2e/reporting period]",null,null,"Please enter the GHG emission from stage A4 (from off-site transportation of product to construction site) for each of the product. \n\nGHG emission can be calculated by required information such as mode of transport, travelled distance, fuel used with following tool:\n1) WRI & WBCSD's protocol, namely “GHG Emissions from Transport or Mobile Sources” which can be accessible at: https://ghgprotocol.org/calculation-tools-and-guidance, or\n2) EPD & EMSD carbon audit tool, which can be accessible at: https://cnsd.gov.hk/en/green-business-and-industry/carbon-audit/\n\nIf the travelled distance needs to be entered into a separate tool, please use the actual travelled distance rather than the straight-line distance. Additionally, kindly provide supporting documentation, such as a map indicating the distance, for verification purposes."]
[null,null,"A4.1.2",null,null,null,null,null,"Total CO2e in Stage A4","[t CO2e/reporting period]",null,null,{"$f":"IFERROR(IF(M117=\"\",\"\",M117),\"\")","v":"Please enter the GHG emission from stage A4 (from off-site transportation of product to construction site) for each of the product. \n\nGHG emission can be calculated by required information such as mode of transport, travelled distance, fuel used with following tool:\n1) WRI & WBCSD's protocol, namely “GHG Emissions from Transport or Mobile Sources” which can be accessible at: https://ghgprotocol.org/calculation-tools-and-guidance, or\n2) EPD & EMSD carbon audit tool, which can be accessible at: https://cnsd.gov.hk/en/green-business-and-industry/carbon-audit/\n\nIf the travelled distance needs to be entered into a separate tool, please use the actual travelled distance rather than the straight-line distance. Additionally, kindly provide supporting documentation, such as a map indicating the distance, for verification purposes."},"","","","",""]
[]
[null,"P ","PERFORMANCE INDICATORS",null,null,null,null,null,null,"unit","Total",null,"Product 1","Product 2","Product 3","Product 4","Product 5","Product 6"]
[null,"P",{"$f":"LEFT($B$120,2)","v":"P "},1,null,"Gross CO2e (A1-A3)",null,null,null,"[t CO2e/reporting period]"]
[null,null,"P ",{"$f":"D121","v":1},".1","A1 Raw material extraction and upstream production",null,null,null,"[t CO2e/reporting period]"]
[null,null,"P ",{"$f":"D122","v":1},".2","A2 Off-site transportation of raw materials to manufacturing plant",null,null,null,"[t CO2e/reporting period]"]
[null,null,"P ",{"$f":"D123","v":1},".3","A3 Product manufacturing and fabrication (without wastage)",null,null,null,"[t CO2e/reporting period]"]
[null,null,"P ",{"$f":"D124","v":1},".4","A4 Off-site transportation of product to construction site (for reference only, excluded from assessment boundary)",null,null,null,"[t CO2e/reporting period]"]
[null,null,"P ",2,null,"Specific gross CO2e per t of cement product produced (A1-A3)",null,null,null,"[t CO2e/t Cement Product]"]
[null,null,"P ",{"$f":"D126","v":2},".1","A1 Raw material extraction and upstream production",null,null,null,"[t CO2e/t Cement Product]"]
[null,null,"P ",{"$f":"D127","v":2},".2","A2 Off-site transportation of raw materials to manufacturing plant",null,null,null,"[t CO2e/t Cement Product]"]
[null,null,"P ",{"$f":"D127","v":2},".3","A3 Product manufacturing and fabrication (without wastage)",null,null,null,"[t CO2e/t Cement Product]"]
[null,null,"P ",{"$f":"D128","v":2},".4","A4 Off-site transportation of product to construction site (for reference only, excluded from assessment boundary)",null,null,null,"[t CO2e/t Cement Product]"]

{"sheet":"CFP Quantification","index":2,"n_rows":130,"n_cols":18,"rows_kept":130,"cut":false,"hidden":false,"merged":[[66,2,66,3],[58,5,58,6],[58,10,58,11],[59,5,59,6],[38,5,38,6],[41,5,41,6],[20,2,20,8],[20,10,20,11],[27,10,27,11],[55,5,55,6],[55,10,55,11],[52,2,52,3],[53,7,53,8],[56,5,56,6],[56,10,56,11],[57,5,57,6],[57,10,57,11],[64,5,64,6],[52,5,52,8],[52,10,52,11],[53,2,53,3],[53,5,53,6],[54,5,54,6],[59,10,59,11],[124,5,124,8],[124,10,124,11],[125,10,125,11],[126,5,126,8],[126,10,126,11],[50,1,73,1],[50,2,50,17],[54,10,54,11],[119,10,119,11],[104,10,104,11],[103,10,103,11],[103,7,103,8],[104,7,104,8],[61,5,61,6],[62,5,62,6],[71,5,71,6],[68,10,68,11],[69,10,69,11],[70,10,70,11],[100,10,100,11],[82,10,82,11],[85,10,85,11],[73,2,73,3],[65,2,65,3],[110,10,110,11],[101,7,101,8],[81,2,81,3],[81,10,81,11],[79,1,112,1],[79,2,79,17],[115,2,115,3],[115,5,115,8],[78,10,78,11],[111,2,111,3],[111,5,111,8],[111,10,111,11],[112,2,112,3],[112,5,112,7],[112,10,112,11],[107,7,107,8],[108,7,108,8],[108,10,108,11],[109,7,109,8],[109,10,109,11],[110,2,110,3],[110,5,110,8],[80,2,80,8],[80,10,80,11],[129,5,129,8],[129,10,129,11],[123,10,123,11],[113,1,117,1],[113,2,113,17],[114,2,114,8],[114,10,114,11],[116,5,116,8],[116,10,116,11],[117,2,117,3],[117,5,117,7],[117,10,117,11],[119,2,119,8],[120,1,129,1],[120,10,120,11],[121,5,121,8],[121,10,121,11],[122,5,122,8],[122,10,122,11],[123,5,123,8],[127,5,127,8],[127,10,127,11],[128,5,128,8],[128,10,128,11],[76,2,76,3],[76,5,76,8],[74,1,78,1],[74,2,74,17],[75,2,75,8],[75,10,75,11],[106,2,106,3],[106,5,106,8],[106,10,106,11],[100,2,100,3],[100,5,100,8],[77,5,77,8],[77,10,77,11],[102,7,102,8],[102,10,102,11],[105,7,105,8],[105,10,105,11],[81,5,81,8],[78,2,78,3],[78,5,78,7],[97,10,97,11],[90,10,90,11],[94,5,94,6],[61,10,61,11],[62,10,62,11],[64,10,64,11],[67,5,67,6],[67,10,67,11],[72,5,72,6],[72,10,72,11],[73,5,73,7],[60,5,60,6],[60,10,60,11],[70,5,70,6],[65,5,65,8],[65,10,65,11],[71,10,71,11],[68,5,68,6],[69,5,69,6],[66,5,66,6],[66,7,66,8],[73,10,73,11],[63,10,63,11],[29,10,29,11],[30,10,30,11],[31,10,31,11],[32,10,32,11],[33,10,33,11],[36,10,36,11],[26,10,26,11],[37,5,37,6],[51,2,51,8],[51,10,51,11],[49,2,49,17],[47,12,47,17],[34,10,34,11],[39,5,39,6],[40,5,40,6],[48,1,48,17],[45,2,45,8],[45,10,45,11],[46,10,46,11],[47,10,47,11],[45,1,47,1],[25,1,44,1],[25,2,25,8],[25,10,25,11],[12,1,19,1],[12,2,12,17],[13,8,13,9],[13,10,13,17],[14,8,14,9],[14,10,14,17],[13,5,13,7],[14,5,14,7],[15,5,15,7],[16,5,16,7],[17,5,17,7],[19,5,19,7],[19,8,19,9],[19,10,19,17],[18,5,18,7],[18,8,18,9],[15,8,15,9],[16,8,16,9],[17,8,17,9],[18,10,18,17],[15,10,15,17],[16,10,16,17],[17,10,17,17],[9,5,9,9],[10,5,10,9],[0,0,0,17],[2,8,2,9],[3,8,3,9],[5,1,6,1],[5,2,6,17],[7,1,11,1],[7,2,7,9],[7,10,7,17],[8,5,8,9],[8,10,8,17],[9,10,9,17],[10,10,10,17],[11,5,11,9],[11,10,11,17],[20,1,24,1],[88,10,88,11],[89,10,89,11],[91,5,91,6],[92,10,92,11],[93,10,93,11],[96,5,96,6],[94,10,94,11],[96,10,96,11],[35,10,35,11],[63,5,63,6],[83,5,83,6],[84,5,84,7],[86,5,86,8],[85,5,85,7],[24,5,24,8],[24,10,24,11],[21,10,21,11],[22,5,22,8],[22,10,22,11],[23,5,23,8],[23,10,23,11],[21,5,21,8],[28,10,28,11]]}
["CFP Quantification - Cement"]
["Product category 1: Annealed glass"]
["Product category 2: Processed glass","Date of latest update",null,null,null,null,null,null,"2025-06-27"]
[null,"Reporting period"]
[]
[null,"G","GENERAL INFORMATION"]
[]
[null,"G1","G1 General Plant Information",null,null,null,null,null,null,null,"Description"]
[null,null,{"$f":"LEFT($C$8,2)&\".\"","v":"G1."},1,null,"Plant"]
[null,null,"G1.",2,null,"Company"]
[null,null,"G1.",3,null,"Country / Region"]
[null,null,"G1.",4,null,"Kiln types"]
[null,"G2","G2 System Boundary"]
[null,null,{"$f":"LEFT($C$13,2)&\".\"","v":"G2."},1,null,"Raw Material extraction and upstream production",null,null,"[yes, no or n.a.]"]
[null,null,"G2.",2,null,"Off-site transportation of raw materials to manufacturing plant",null,null,"[yes, no or n.a.]"]
[null,null,"G2.",3,null,"Product manufacturing - stationary combustion",null,null,"[yes, no or n.a.]"]
[null,null,"G2.",4,null,"Product manufacturing - mobile combustion ",null,null,"[yes, no or n.a.]"]
[null,null,"G2.",5,null,"Indirect emission from purchased energy ",null,null,"[yes, no or n.a.]"]
[null,null,"G2.",6,null,"Off-site transportation of product to border of HK [for reference only, excluded from assessment boundary]",null,null,"[yes, no or n.a.]"]
[null,null,"G2.",7,null,"(add other processes as appropriate)",null,null,"[yes, no or n.a.]"]
[null,"G3","G3 Clinker and Portland Cement Product Production",null,null,null,null,null,null,"unit","Total",null,"Product 1","Product 2","Product 3","Product 4","Product 5","Product 6"]
[null,null,{"$f":"LEFT($C$21,2)&\".\"","v":"G3."},1,null,"Cement production in weight",null,null,null,"[t/reporting period]",{"$f":"SUM(M22:R22)","v":0}]
[null,null,{"$f":"LEFT($C$21,2)&\".\"","v":"G3."},2,null,"Proportion of cement production",null,null,null,"%",{"$f":"IF(SUM(M23:R23)=0,\"\",SUM(M23:R23))","v":""},null,{"$f":"IF(M22=\"\",\"\",M22/$K$22)","v":""},"","","","",""]
[null,null,"G3.",3,null,"Clinker production in weight",null,null,null,"[t/reporting period]",{"$f":"SUM(M24:R24)","v":0}]
[null,null,"G3.",4,null,"Proportion of clinker production",null,null,null,"%",{"$f":"IF(SUM(M25:R25)=0,\"\",SUM(M25:R25))","v":""},null,{"$f":"IF(M24=\"\",\"\",M24/$K$24)","v":""},"","","","",""]
[null,"G4","G4 Purchased Raw Materials and Energy Used to Produce Portland Cement (only purchased materials shall be included)",null,null,null,null,null,null,"unit","Total",null,"Product 1","Product 2","Product 3","Product 4","Product 5","Product 6"]
[null,null,{"$f":"LEFT($C$26,2)&\".\"","v":"G4."},1,null,"Gypsum",null,null,null,"[t/reporting period, dry weight]",{"$f":"IF(SUM(M27:R27)=0,\"\",SUM(M27:R27))","v":""}]
[null,null,"G4.",2,null,"Limestone",null,null,null,"[t/reporting period, dry weight]",{"$f":"IF(SUM(M28:R28)=0,\"\",SUM(M28:R28))","v":""}]
[null,null,"G4.",3,null,"Clay",null,null,null,"[t/reporting period, dry weight]",""]
[null,null,"G4.",4,null,"Shale",null,null,null,"[t/reporting period, dry weight]",""]
[null,null,"G4.",5,null,"Pozzolan / Fly ash",null,null,null,"[t/reporting period, dry weight]",""]
[null,null,"G4.",6,null,"Ground Blastfurnace Slag (GGBS)",null,null,null,"[t/reporting period, dry weight]",""]
[null,null,"G4.",7,null,"Sandstone",null,null,null,"[t/reporting period, dry weight]",""]
[null,null,"G4.",8,null,"Iron ore",null,null,null,"[t/reporting period, dry weight]",""]
[null,null,"G4.",9,null,"Packaging material",null,null,null,"[t/reporting period, dry weight]",""]
[null,null,"G4.",10,null,null,"Others, if applicable","[refer to \"Customized Embodied EF\"]",null,"[t/reporting period, dry weight]",{"$f":"IF(SUM(M36:R36)=0,\"\",SUM(M36:R36))","v":""}]
[null,null,"G4.",11,null,null,"Others, if applicable","[refer to \"Customized Embodied EF\"]",null,"[t/reporting period, dry weight]",{"$f":"IF(SUM(M37:R37)=0,\"\",SUM(M37:R37))","v":""}]
[null,null,"G4.",12,null,"Energy commodity used in stationary combustion",null,"Energy Commodity usage type : "]
[null,null,"G4.",{"$f":"D38","v":12},".1","Stationary combustion source",null,"Energy commodity :",null,"[t/reporting period]",null,{"$f":"IF(I$38=\"user input\",SUM(M39:R39),\"\")","v":""}]
[null,null,"G4.",{"$f":"D39","v":12},".2","Stationary combustion source",null,"Energy commodity :",null,"[t/reporting period]",null,{"$f":"IF(I$38=\"user input\",SUM(M40:R40),\"\")","v":""}]
[null,null,"G4.",{"$f":"D40","v":12},".3","Stationary combustion source",null,"Energy commodity :",null,"[t/reporting period]",null,{"$f":"IF(I$38=\"user input\",SUM(M41:R41),\"\")","v":""}]
[null,null,"G4.",{"$f":"D41","v":12},".4","Stationary combustion source",null,"Energy commodity :",null,"[t/reporting period]",null,{"$f":"IF(I$38=\"user input\",SUM(M42:R42),\"\")","v":""}]
[null,null,"G4.",13,null,"On-site transportation",null,"Energy Commodity usage type : "]
[null,null,"G4.",{"$f":"D43","v":13},".1","Mobile combustion source",null,"Energy commodity :",null,"[t/reporting period]",null,{"$f":"IF(I$43=\"user input\",SUM(M44:R44),\"\")","v":""}]
[null,null,"G4.",{"$f":"D44","v":13},".2","Mobile combustion source",null,"Energy commodity :",null,"[t/reporting period]",null,{"$f":"IF(I$43=\"user input\",SUM(M45:R45),\"\")","v":""}]
[null,"G5","G5. Power Consumption of Purchased Energy",null,null,null,null,null,null,"unit","Total",null,"Product 1","Product 2","Product 3","Product 4","Product 5","Product 6"]
[null,null,{"$f":"LEFT($C$46,2)&\".\"","v":"G5."},1,null,"Consumption of electricity produced externally",null,null,null,"[MWh/reporting period]",null,null,{"$f":"IFERROR(IF($K47=\"\",\"\",$K47*M23),\"\")","v":""},"","","","",""]
[null,null,{"$f":"LEFT($C$46,2)&\".\"","v":"G5."},2,null,"CO2e per unit of electricity produced externally",null,null,null,"[kg CO2e/MWh]"]
[]
[null,"A","ASSESSMENT"]
[null,"A1","PROJECT LIFE CYCLE STAGE : A1 RAW MATERIAL EXTRACTION AND UPSTREAM PRODUCTION"]
[null,null,"A1.1 CO2e EMISSIONS ",null,null,null,null,null,null,"unit","Total",null,"Product 1","Product 2","Product 3","Product 4","Product 5","Product 6"]
[null,null,"A1.1.1",null,null,"CO2e from bought raw materials  (only purchased materials shall be included)",null,null,null,"[t CO2e/reporting period]",{"$f":"SUM(M53:R53)","v":0},null,{"$f":"SUMIF($D:$D,$C53,M:M)","v":0},0,0,0,0,0]
[null,null,null,null,null,"Adopting CO2e Factors "]
[null,null,null,{"$f":"C53","v":"A1.1.1"},1,null,null,{"$f":"F27","v":"Gypsum"},null,"[t CO2e/reporting period]",{"$f":"IF(SUM(M55:R55)=0,\"\",SUM(M55:R55))","v":""},null,{"$f":"IF(SUMIFS(M:M,$F:$F,$H55,$C:$C,\"G4.\")=0,0,IFERROR(IF(OR($H55='Customized Embodied EF'!$B:$B),SUMIFS(M:M,$F:$F,$H55,$C:$C,\"G4.\")*IF($F55=\"Customized\",\nIF(_xlfn.XLOOKUP($H55,'Customized Embodied EF'!$B:$B,'Customized Embodied EF'!E:E,\"error\",0)=\"\",\"Factor error\",_xlfn.XLOOKUP($H55,'Customized Embodied EF'!$B:$B,'Customized Embodied EF'!E:E,\"error\",0)),_xlfn.XLOOKUP($H55,'Customized Embodied EF'!$B:$B,'Customized Embodied EF'!$D:$D,\"error\",0)),\"Factor error\"),\"Factor error\"))","v":0},{"$f":"IF(SUMIFS(N:N,$F:$F,$H55,$C:$C,\"G4.\")=0,0,IFERROR(IF(OR($H55='Customized Embodied EF'!$B:$B),SUMIFS(N:N,$F:$F,$H55,$C:$C,\"G4.\")*IF($F55=\"Customized\",\nIF(_xlfn.XLOOKUP($H55,'Customized Embodied EF'!$B:$B,'Customized Embodied EF'!F:F,\"error\",0)=\"\",\"Factor error\",_xlfn.XLOOKUP($H55,'Customized Embodied EF'!$B:$B,'Customized Embodied EF'!F:F,\"error\",0)),_xlfn.XLOOKUP($H55,'Customized Embodied EF'!$B:$B,'Customized Embodied EF'!$D:$D,\"error\",0)),\"Factor error\"),\"Factor error\"))","v":0},{"$f":"IF(SUMIFS(O:O,$F:$F,$H55,$C:$C,\"G4.\")=0,0,IFERROR(IF(OR($H55='Customized Embodied EF'!$B:$B),SUMIFS(O:O,$F:$F,$H55,$C:$C,\"G4.\")*IF($F55=\"Customized\",\nIF(_xlfn.XLOOKUP($H55,'Customized Embodied EF'!$B:$B,'Customized Embodied EF'!G:G,\"error\",0)=\"\",\"Factor error\",_xlfn.XLOOKUP($H55,'Customized Embodied EF'!$B:$B,'Customized Embodied EF'!G:G,\"error\",0)),_xlfn.XLOOKUP($H55,'Customized Embodied EF'!$B:$B,'Customized Embodied EF'!$D:$D,\"error\",0)),\"Factor error\"),\"Factor error\"))","v":0},{"$f":"IF(SUMIFS(P:P,$F:$F,$H55,$C:$C,\"G4.\")=0,0,IFERROR(IF(OR($H55='Customized Embodied EF'!$B:$B),SUMIFS(P:P,$F:$F,$H55,$C:$C,\"G4.\")*IF($F55=\"Customized\",\nIF(_xlfn.XLOOKUP($H55,'Customized Embodied EF'!$B:$B,'Customized Embodied EF'!H:H,\"error\",0)=\"\",\"Factor error\",_xlfn.XLOOKUP($H55,'Customized Embodied EF'!$B:$B,'Customized Embodied EF'!H:H,\"error\",0)),_xlfn.XLOOKUP($H55,'Customized Embodied EF'!$B:$B,'Customized Embodied EF'!$D:$D,\"error\",0)),\"Factor error\"),\"Factor error\"))","v":0},{"$f":"IF(SUMIFS(Q:Q,$F:$F,$H55,$C:$C,\"G4.\")=0,0,IFERROR(IF(OR($H55='Customized Embodied EF'!$B:$B),SUMIFS(Q:Q,$F:$F,$H55,$C:$C,\"G4.\")*IF($F55=\"Customized\",\nIF(_xlfn.XLOOKUP($H55,'Customized Embodied EF'!$B:$B,'Customized Embodied EF'!I:I,\"error\",0)=\"\",\"Factor error\",_xlfn.XLOOKUP($H55,'Customized Embodied EF'!$B:$B,'Customized Embodied EF'!I:I,\"error\",0)),_xlfn.XLOOKUP($H55,'Customized Embodied EF'!$B:$B,'Customized Embodied EF'!$D:$D,\"error\",0)),\"Factor error\"),\"Factor error\"))","v":0},{"$f":"IF(SUMIFS(R:R,$F:$F,$H55,$C:$C,\"G4.\")=0,0,IFERROR(IF(OR($H55='Customized Embodied EF'!$B:$B),SUMIFS(R:R,$F:$F,$H55,$C:$C,\"G4.\")*IF($F55=\"Customized\",\nIF(_xlfn.XLOOKUP($H55,'Customized Embodied EF'!$B:$B,'Customized Embodied EF'!J:J,\"error\",0)=\"\",\"Factor error\",_xlfn.XLOOKUP($H55,'Customized Embodied EF'!$B:$B,'Customized Embodied EF'!J:J,\"error\",0)),_xlfn.XLOOKUP($H55,'Customized Embodied EF'!$B:$B,'Customized Embodied EF'!$D:$D,\"error\",0)),\"Factor error\"),\"Factor error\"))","v":0}]
[null,null,null,{"$f":"C53","v":"A1.1.1"},2,null,null,{"$f":"F28","v":"Limestone"},null,"[t CO2e/reporting period]","",null,{"$f":"IF(SUMIFS(M:M,$F:$F,$H56,$C:$C,\"G4.\")=0,0,IFERROR(IF(OR($H56='Customized Embodied EF'!$B:$B),SUMIFS(M:M,$F:$F,$H56,$C:$C,\"G4.\")*IF($F56=\"Customized\",\nIF(_xlfn.XLOOKUP($H56,'Customized Embodied EF'!$B:$B,'Customized Embodied EF'!E:E,\"error\",0)=\"\",\"Factor error\",_xlfn.XLOOKUP($H56,'Customized Embodied EF'!$B:$B,'Customized Embodied EF'!E:E,\"error\",0)),_xlfn.XLOOKUP($H56,'Customized Embodied EF'!$B:$B,'Customized Embodied EF'!$D:$D,\"error\",0)),\"Factor error\"),\"Factor error\"))","v":0},{"$f":"IF(SUMIFS(N:N,$F:$F,$H56,$C:$C,\"G4.\")=0,0,IFERROR(IF(OR($H56='Customized Embodied EF'!$B:$B),SUMIFS(N:N,$F:$F,$H56,$C:$C,\"G4.\")*IF($F56=\"Customized\",\nIF(_xlfn.XLOOKUP($H56,'Customized Embodied EF'!$B:$B,'Customized Embodied EF'!F:F,\"error\",0)=\"\",\"Factor error\",_xlfn.XLOOKUP($H56,'Customized Embodied EF'!$B:$B,'Customized Embodied EF'!F:F,\"error\",0)),_xlfn.XLOOKUP($H56,'Customized Embodied EF'!$B:$B,'Customized Embodied EF'!$D:$D,\"error\",0)),\"Factor error\"),\"Factor error\"))","v":0},{"$f":"IF(SUMIFS(O:O,$F:$F,$H56,$C:$C,\"G4.\")=0,0,IFERROR(IF(OR($H56='Customized Embodied EF'!$B:$B),SUMIFS(O:O,$F:$F,$H56,$C:$C,\"G4.\")*IF($F56=\"Customized\",\nIF(_xlfn.XLOOKUP($H56,'Customized Embodied EF'!$B:$B,'Customized Embodied EF'!G:G,\"error\",0)=\"\",\"Factor error\",_xlfn.XLOOKUP($H56,'Customized Embodied EF'!$B:$B,'Customized Embodied EF'!G:G,\"error\",0)),_xlfn.XLOOKUP($H56,'Customized Embodied EF'!$B:$B,'Customized Embodied EF'!$D:$D,\"error\",0)),\"Factor error\"),\"Factor error\"))","v":0},{"$f":"IF(SUMIFS(P:P,$F:$F,$H56,$C:$C,\"G4.\")=0,0,IFERROR(IF(OR($H56='Customized Embodied EF'!$B:$B),SUMIFS(P:P,$F:$F,$H56,$C:$C,\"G4.\")*IF($F56=\"Customized\",\nIF(_xlfn.XLOOKUP($H56,'Customized Embodied EF'!$B:$B,'Customized Embodied EF'!H:H,\"error\",0)=\"\",\"Factor error\",_xlfn.XLOOKUP($H56,'Customized Embodied EF'!$B:$B,'Customized Embodied EF'!H:H,\"error\",0)),_xlfn.XLOOKUP($H56,'Customized Embodied EF'!$B:$B,'Customized Embodied EF'!$D:$D,\"error\",0)),\"Factor error\"),\"Factor error\"))","v":0},{"$f":"IF(SUMIFS(Q:Q,$F:$F,$H56,$C:$C,\"G4.\")=0,0,IFERROR(IF(OR($H56='Customized Embodied EF'!$B:$B),SUMIFS(Q:Q,$F:$F,$H56,$C:$C,\"G4.\")*IF($F56=\"Customized\",\nIF(_xlfn.XLOOKUP($H56,'Customized Embodied EF'!$B:$B,'Customized Embodied EF'!I:I,\"error\",0)=\"\",\"Factor error\",_xlfn.XLOOKUP($H56,'Customized Embodied EF'!$B:$B,'Customized Embodied EF'!I:I,\"error\",0)),_xlfn.XLOOKUP($H56,'Customized Embodied EF'!$B:$B,'Customized Embodied EF'!$D:$D,\"error\",0)),\"Factor error\"),\"Factor error\"))","v":0},{"$f":"IF(SUMIFS(R:R,$F:$F,$H56,$C:$C,\"G4.\")=0,0,IFERROR(IF(OR($H56='Customized Embodied EF'!$B:$B),SUMIFS(R:R,$F:$F,$H56,$C:$C,\"G4.\")*IF($F56=\"Customized\",\nIF(_xlfn.XLOOKUP($H56,'Customized Embodied EF'!$B:$B,'Customized Embodied EF'!J:J,\"error\",0)=\"\",\"Factor error\",_xlfn.XLOOKUP($H56,'Customized Embodied EF'!$B:$B,'Customized Embodied EF'!J:J,\"error\",0)),_xlfn.XLOOKUP($H56,'Customized Embodied EF'!$B:$B,'Customized Embodied EF'!$D:$D,\"error\",0)),\"Factor error\"),\"Factor error\"))","v":0}]
[null,null,null,{"$f":"C53","v":"A1.1.1"},3,null,null,"Clay",null,"[t CO2e/reporting period]","",null,{"$f":"IF(SUMIFS(M:M,$F:$F,$H57,$C:$C,\"G4.\")=0,0,IFERROR(IF(OR($H57='Customized Embodied EF'!$B:$B),SUMIFS(M:M,$F:$F,$H57,$C:$C,\"G4.\")*IF($F57=\"Customized\",\nIF(_xlfn.XLOOKUP($H57,'Customized Embodied EF'!$B:$B,'Customized Embodied EF'!E:E,\"error\",0)=\"\",\"Factor error\",_xlfn.XLOOKUP($H57,'Customized Embodied EF'!$B:$B,'Customized Embodied EF'!E:E,\"error\",0)),_xlfn.XLOOKUP($H57,'Customized Embodied EF'!$B:$B,'Customized Embodied EF'!$D:$D,\"error\",0)),\"Factor error\"),\"Factor error\"))","v":0},{"$f":"IF(SUMIFS(N:N,$F:$F,$H57,$C:$C,\"G4.\")=0,0,IFERROR(IF(OR($H57='Customized Embodied EF'!$B:$B),SUMIFS(N:N,$F:$F,$H57,$C:$C,\"G4.\")*IF($F57=\"Customized\",\nIF(_xlfn.XLOOKUP($H57,'Customized Embodied EF'!$B:$B,'Customized Embodied EF'!F:F,\"error\",0)=\"\",\"Factor error\",_xlfn.XLOOKUP($H57,'Customized Embodied EF'!$B:$B,'Customized Embodied EF'!F:F,\"error\",0)),_xlfn.XLOOKUP($H57,'Customized Embodied EF'!$B:$B,'Customized Embodied EF'!$D:$D,\"error\",0)),\"Factor error\"),\"Factor error\"))","v":0},{"$f":"IF(SUMIFS(O:O,$F:$F,$H57,$C:$C,\"G4.\")=0,0,IFERROR(IF(OR($H57='Customized Embodied EF'!$B:$B),SUMIFS(O:O,$F:$F,$H57,$C:$C,\"G4.\")*IF($F57=\"Customized\",\nIF(_xlfn.XLOOKUP($H57,'Customized Embodied EF'!$B:$B,'Customized Embodied EF'!G:G,\"error\",0)=\"\",\"Factor error\",_xlfn.XLOOKUP($H57,'Customized Embodied EF'!$B:$B,'Customized Embodied EF'!G:G,\"error\",0)),_xlfn.XLOOKUP($H57,'Customized Embodied EF'!$B:$B,'Customized Embodied EF'!$D:$D,\"error\",0)),\"Factor error\"),\"Factor error\"))","v":0},{"$f":"IF(SUMIFS(P:P,$F:$F,$H57,$C:$C,\"G4.\")=0,0,IFERROR(IF(OR($H57='Customized Embodied EF'!$B:$B),SUMIFS(P:P,$F:$F,$H57,$C:$C,\"G4.\")*IF($F57=\"Customized\",\nIF(_xlfn.XLOOKUP($H57,'Customized Embodied EF'!$B:$B,'Customized Embodied EF'!H:H,\"error\",0)=\"\",\"Factor error\",_xlfn.XLOOKUP($H57,'Customized Embodied EF'!$B:$B,'Customized Embodied EF'!H:H,\"error\",0)),_xlfn.XLOOKUP($H57,'Customized Embodied EF'!$B:$B,'Customized Embodied EF'!$D:$D,\"error\",0)),\"Factor error\"),\"Factor error\"))","v":0},{"$f":"IF(SUMIFS(Q:Q,$F:$F,$H57,$C:$C,\"G4.\")=0,0,IFERROR(IF(OR($H57='Customized Embodied EF'!$B:$B),SUMIFS(Q:Q,$F:$F,$H57,$C:$C,\"G4.\")*IF($F57=\"Customized\",\nIF(_xlfn.XLOOKUP($H57,'Customized Embodied EF'!$B:$B,'Customized Embodied EF'!I:I,\"error\",0)=\"\",\"Factor error\",_xlfn.XLOOKUP($H57,'Customized Embodied EF'!$B:$B,'Customized Embodied EF'!I:I,\"error\",0)),_xlfn.XLOOKUP($H57,'Customized Embodied EF'!$B:$B,'Customized Embodied EF'!$D:$D,\"error\",0)),\"Factor error\"),\"Factor error\"))","v":0},{"$f":"IF(SUMIFS(R:R,$F:$F,$H57,$C:$C,\"G4.\")=0,0,IFERROR(IF(OR($H57='Customized Embodied EF'!$B:$B),SUMIFS(R:R,$F:$F,$H57,$C:$C,\"G4.\")*IF($F57=\"Customized\",\nIF(_xlfn.XLOOKUP($H57,'Customized Embodied EF'!$B:$B,'Customized Embodied EF'!J:J,\"error\",0)=\"\",\"Factor error\",_xlfn.XLOOKUP($H57,'Customized Embodied EF'!$B:$B,'Customized Embodied EF'!J:J,\"error\",0)),_xlfn.XLOOKUP($H57,'Customized Embodied EF'!$B:$B,'Customized Embodied EF'!$D:$D,\"error\",0)),\"Factor error\"),\"Factor error\"))","v":0}]
[null,null,null,{"$f":"C53","v":"A1.1.1"},4,null,null,"Shale",null,"[t CO2e/reporting period]",{"$f":"IF(SUM(M58:R58)=0,\"\",SUM(M58:R58))","v":""},null,{"$f":"IF(SUMIFS(M:M,$F:$F,$H58,$C:$C,\"G4.\")=0,0,IFERROR(IF(OR($H58='Customized Embodied EF'!$B:$B),SUMIFS(M:M,$F:$F,$H58,$C:$C,\"G4.\")*IF($F58=\"Customized\",\nIF(_xlfn.XLOOKUP($H58,'Customized Embodied EF'!$B:$B,'Customized Embodied EF'!E:E,\"error\",0)=\"\",\"Factor error\",_xlfn.XLOOKUP($H58,'Customized Embodied EF'!$B:$B,'Customized Embodied EF'!E:E,\"error\",0)),_xlfn.XLOOKUP($H58,'Customized Embodied EF'!$B:$B,'Customized Embodied EF'!$D:$D,\"error\",0)),\"Factor error\"),\"Factor error\"))","v":0},{"$f":"IF(SUMIFS(N:N,$F:$F,$H58,$C:$C,\"G4.\")=0,0,IFERROR(IF(OR($H58='Customized Embodied EF'!$B:$B),SUMIFS(N:N,$F:$F,$H58,$C:$C,\"G4.\")*IF($F58=\"Customized\",\nIF(_xlfn.XLOOKUP($H58,'Customized Embodied EF'!$B:$B,'Customized Embodied EF'!F:F,\"error\",0)=\"\",\"Factor error\",_xlfn.XLOOKUP($H58,'Customized Embodied EF'!$B:$B,'Customized Embodied EF'!F:F,\"error\",0)),_xlfn.XLOOKUP($H58,'Customized Embodied EF'!$B:$B,'Customized Embodied EF'!$D:$D,\"error\",0)),\"Factor error\"),\"Factor error\"))","v":0},{"$f":"IF(SUMIFS(O:O,$F:$F,$H58,$C:$C,\"G4.\")=0,0,IFERROR(IF(OR($H58='Customized Embodied EF'!$B:$B),SUMIFS(O:O,$F:$F,$H58,$C:$C,\"G4.\")*IF($F58=\"Customized\",\nIF(_xlfn.XLOOKUP($H58,'Customized Embodied EF'!$B:$B,'Customized Embodied EF'!G:G,\"error\",0)=\"\",\"Factor error\",_xlfn.XLOOKUP($H58,'Customized Embodied EF'!$B:$B,'Customized Embodied EF'!G:G,\"error\",0)),_xlfn.XLOOKUP($H58,'Customized Embodied EF'!$B:$B,'Customized Embodied EF'!$D:$D,\"error\",0)),\"Factor error\"),\"Factor error\"))","v":0},{"$f":"IF(SUMIFS(P:P,$F:$F,$H58,$C:$C,\"G4.\")=0,0,IFERROR(IF(OR($H58='Customized Embodied EF'!$B:$B),SUMIFS(P:P,$F:$F,$H58,$C:$C,\"G4.\")*IF($F58=\"Customized\",\nIF(_xlfn.XLOOKUP($H58,'Customized Embodied EF'!$B:$B,'Customized Embodied EF'!H:H,\"error\",0)=\"\",\"Factor error\",_xlfn.XLOOKUP($H58,'Customized Embodied EF'!$B:$B,'Customized Embodied EF'!H:H,\"error\",0)),_xlfn.XLOOKUP($H58,'Customized Embodied EF'!$B:$B,'Customized Embodied EF'!$D:$D,\"error\",0)),\"Factor error\"),\"Factor error\"))","v":0},{"$f":"IF(SUMIFS(Q:Q,$F:$F,$H58,$C:$C,\"G4.\")=0,0,IFERROR(IF(OR($H58='Customized Embodied EF'!$B:$B),SUMIFS(Q:Q,$F:$F,$H58,$C:$C,\"G4.\")*IF($F58=\"Customized\",\nIF(_xlfn.XLOOKUP($H58,'Customized Embodied EF'!$B:$B,'Customized Embodied EF'!I:I,\"error\",0)=\"\",\"Factor error\",_xlfn.XLOOKUP($H58,'Customized Embodied EF'!$B:$B,'Customized Embodied EF'!I:I,\"error\",0)),_xlfn.XLOOKUP($H58,'Customized Embodied EF'!$B:$B,'Customized Embodied EF'!$D:$D,\"error\",0)),\"Factor error\"),\"Factor error\"))","v":0},{"$f":"IF(SUMIFS(R:R,$F:$F,$H58,$C:$C,\"G4.\")=0,0,IFERROR(IF(OR($H58='Customized Embodied EF'!$B:$B),SUMIFS(R:R,$F:$F,$H58,$C:$C,\"G4.\")*IF($F58=\"Customized\",\nIF(_xlfn.XLOOKUP($H58,'Customized Embodied EF'!$B:$B,'Customized Embodied EF'!J:J,\"error\",0)=\"\",\"Factor error\",_xlfn.XLOOKUP($H58,'Customized Embodied EF'!$B:$B,'Customized Embodied EF'!J:J,\"error\",0)),_xlfn.XLOOKUP($H58,'Customized Embodied EF'!$B:$B,'Customized Embodied EF'!$D:$D,\"error\",0)),\"Factor error\"),\"Factor error\"))","v":0}]
[null,null,null,{"$f":"D58","v":"A1.1.1"},5,null,null,"Pozzolan / Fly ash",null,"[t CO2e/reporting period]","",null,{"$f":"IF(SUMIFS(M:M,$F:$F,$H59,$C:$C,\"G4.\")=0,0,IFERROR(IF(OR($H59='Customized Embodied EF'!$B:$B),SUMIFS(M:M,$F:$F,$H59,$C:$C,\"G4.\")*IF($F59=\"Customized\",\nIF(_xlfn.XLOOKUP($H59,'Customized Embodied EF'!$B:$B,'Customized Embodied EF'!E:E,\"error\",0)=\"\",\"Factor error\",_xlfn.XLOOKUP($H59,'Customized Embodied EF'!$B:$B,'Customized Embodied EF'!E:E,\"error\",0)),_xlfn.XLOOKUP($H59,'Customized Embodied EF'!$B:$B,'Customized Embodied EF'!$D:$D,\"error\",0)),\"Factor error\"),\"Factor error\"))","v":0},{"$f":"IF(SUMIFS(N:N,$F:$F,$H59,$C:$C,\"G4.\")=0,0,IFERROR(IF(OR($H59='Customized Embodied EF'!$B:$B),SUMIFS(N:N,$F:$F,$H59,$C:$C,\"G4.\")*IF($F59=\"Customized\",\nIF(_xlfn.XLOOKUP($H59,'Customized Embodied EF'!$B:$B,'Customized Embodied EF'!F:F,\"error\",0)=\"\",\"Factor error\",_xlfn.XLOOKUP($H59,'Customized Embodied EF'!$B:$B,'Customized Embodied EF'!F:F,\"error\",0)),_xlfn.XLOOKUP($H59,'Customized Embodied EF'!$B:$B,'Customized Embodied EF'!$D:$D,\"error\",0)),\"Factor error\"),\"Factor error\"))","v":0},{"$f":"IF(SUMIFS(O:O,$F:$F,$H59,$C:$C,\"G4.\")=0,0,IFERROR(IF(OR($H59='Customized Embodied EF'!$B:$B),SUMIFS(O:O,$F:$F,$H59,$C:$C,\"G4.\")*IF($F59=\"Customized\",\nIF(_xlfn.XLOOKUP($H59,'Customized Embodied EF'!$B:$B,'Customized Embodied EF'!G:G,\"error\",0)=\"\",\"Factor error\",_xlfn.XLOOKUP($H59,'Customized Embodied EF'!$B:$B,'Customized Embodied EF'!G:G,\"error\",0)),_xlfn.XLOOKUP($H59,'Customized Embodied EF'!$B:$B,'Customized Embodied EF'!$D:$D,\"error\",0)),\"Factor error\"),\"Factor error\"))","v":0},{"$f":"IF(SUMIFS(P:P,$F:$F,$H59,$C:$C,\"G4.\")=0,0,IFERROR(IF(OR($H59='Customized Embodied EF'!$B:$B),SUMIFS(P:P,$F:$F,$H59,$C:$C,\"G4.\")*IF($F59=\"Customized\",\nIF(_xlfn.XLOOKUP($H59,'Customized Embodied EF'!$B:$B,'Customized Embodied EF'!H:H,\"error\",0)=\"\",\"Factor error\",_xlfn.XLOOKUP($H59,'Customized Embodied EF'!$B:$B,'Customized Embodied EF'!H:H,\"error\",0)),_xlfn.XLOOKUP($H59,'Customized Embodied EF'!$B:$B,'Customized Embodied EF'!$D:$D,\"error\",0)),\"Factor error\"),\"Factor error\"))","v":0},{"$f":"IF(SUMIFS(Q:Q,$F:$F,$H59,$C:$C,\"G4.\")=0,0,IFERROR(IF(OR($H59='Customized Embodied EF'!$B:$B),SUMIFS(Q:Q,$F:$F,$H59,$C:$C,\"G4.\")*IF($F59=\"Customized\",\nIF(_xlfn.XLOOKUP($H59,'Customized Embodied EF'!$B:$B,'Customized Embodied EF'!I:I,\"error\",0)=\"\",\"Factor error\",_xlfn.XLOOKUP($H59,'Customized Embodied EF'!$B:$B,'Customized Embodied EF'!I:I,\"error\",0)),_xlfn.XLOOKUP($H59,'Customized Embodied EF'!$B:$B,'Customized Embodied EF'!$D:$D,\"error\",0)),\"Factor error\"),\"Factor error\"))","v":0},{"$f":"IF(SUMIFS(R:R,$F:$F,$H59,$C:$C,\"G4.\")=0,0,IFERROR(IF(OR($H59='Customized Embodied EF'!$B:$B),SUMIFS(R:R,$F:$F,$H59,$C:$C,\"G4.\")*IF($F59=\"Customized\",\nIF(_xlfn.XLOOKUP($H59,'Customized Embodied EF'!$B:$B,'Customized Embodied EF'!J:J,\"error\",0)=\"\",\"Factor error\",_xlfn.XLOOKUP($H59,'Customized Embodied EF'!$B:$B,'Customized Embodied EF'!J:J,\"error\",0)),_xlfn.XLOOKUP($H59,'Customized Embodied EF'!$B:$B,'Customized Embodied EF'!$D:$D,\"error\",0)),\"Factor error\"),\"Factor error\"))","v":0}]
[null,null,null,{"$f":"D59","v":"A1.1.1"},6,null,null,"Ground Blastfurnace Slag (GGBS)",null,"[t CO2e/reporting period]","",null,{"$f":"IF(SUMIFS(M:M,$F:$F,$H60,$C:$C,\"G4.\")=0,0,IFERROR(IF(OR($H60='Customized Embodied EF'!$B:$B),SUMIFS(M:M,$F:$F,$H60,$C:$C,\"G4.\")*IF($F60=\"Customized\",\nIF(_xlfn.XLOOKUP($H60,'Customized Embodied EF'!$B:$B,'Customized Embodied EF'!E:E,\"error\",0)=\"\",\"Factor error\",_xlfn.XLOOKUP($H60,'Customized Embodied EF'!$B:$B,'Customized Embodied EF'!E:E,\"error\",0)),_xlfn.XLOOKUP($H60,'Customized Embodied EF'!$B:$B,'Customized Embodied EF'!$D:$D,\"error\",0)),\"Factor error\"),\"Factor error\"))","v":0},{"$f":"IF(SUMIFS(N:N,$F:$F,$H60,$C:$C,\"G4.\")=0,0,IFERROR(IF(OR($H60='Customized Embodied EF'!$B:$B),SUMIFS(N:N,$F:$F,$H60,$C:$C,\"G4.\")*IF($F60=\"Customized\",\nIF(_xlfn.XLOOKUP($H60,'Customized Embodied EF'!$B:$B,'Customized Embodied EF'!F:F,\"error\",0)=\"\",\"Factor error\",_xlfn.XLOOKUP($H60,'Customized Embodied EF'!$B:$B,'Customized Embodied EF'!F:F,\"error\",0)),_xlfn.XLOOKUP($H60,'Customized Embodied EF'!$B:$B,'Customized Embodied EF'!$D:$D,\"error\",0)),\"Factor error\"),\"Factor error\"))","v":0},{"$f":"IF(SUMIFS(O:O,$F:$F,$H60,$C:$C,\"G4.\")=0,0,IFERROR(IF(OR($H60='Customized Embodied EF'!$B:$B),SUMIFS(O:O,$F:$F,$H60,$C:$C,\"G4.\")*IF($F60=\"Customized\",\nIF(_xlfn.XLOOKUP($H60,'Customized Embodied EF'!$B:$B,'Customized Embodied EF'!G:G,\"error\",0)=\"\",\"Factor error\",_xlfn.XLOOKUP($H60,'Customized Embodied EF'!$B:$B,'Customized Embodied EF'!G:G,\"error\",0)),_xlfn.XLOOKUP($H60,'Customized Embodied EF'!$B:$B,'Customized Embodied EF'!$D:$D,\"error\",0)),\"Factor error\"),\"Factor error\"))","v":0},{"$f":"IF(SUMIFS(P:P,$F:$F,$H60,$C:$C,\"G4.\")=0,0,IFERROR(IF(OR($H60='Customized Embodied EF'!$B:$B),SUMIFS(P:P,$F:$F,$H60,$C:$C,\"G4.\")*IF($F60=\"Customized\",\nIF(_xlfn.XLOOKUP($H60,'Customized Embodied EF'!$B:$B,'Customized Embodied EF'!H:H,\"error\",0)=\"\",\"Factor error\",_xlfn.XLOOKUP($H60,'Customized Embodied EF'!$B:$B,'Customized Embodied EF'!H:H,\"error\",0)),_xlfn.XLOOKUP($H60,'Customized Embodied EF'!$B:$B,'Customized Embodied EF'!$D:$D,\"error\",0)),\"Factor error\"),\"Factor error\"))","v":0},{"$f":"IF(SUMIFS(Q:Q,$F:$F,$H60,$C:$C,\"G4.\")=0,0,IFERROR(IF(OR($H60='Customized Embodied EF'!$B:$B),SUMIFS(Q:Q,$F:$F,$H60,$C:$C,\"G4.\")*IF($F60=\"Customized\",\nIF(_xlfn.XLOOKUP($H60,'Customized Embodied EF'!$B:$B,'Customized Embodied EF'!I:I,\"error\",0)=\"\",\"Factor error\",_xlfn.XLOOKUP($H60,'Customized Embodied EF'!$B:$B,'Customized Embodied EF'!I:I,\"error\",0)),_xlfn.XLOOKUP($H60,'Customized Embodied EF'!$B:$B,'Customized Embodied EF'!$D:$D,\"error\",0)),\"Factor error\"),\"Factor error\"))","v":0},{"$f":"IF(SUMIFS(R:R,$F:$F,$H60,$C:$C,\"G4.\")=0,0,IFERROR(IF(OR($H60='Customized Embodied EF'!$B:$B),SUMIFS(R:R,$F:$F,$H60,$C:$C,\"G4.\")*IF($F60=\"Customized\",\nIF(_xlfn.XLOOKUP($H60,'Customized Embodied EF'!$B:$B,'Customized Embodied EF'!J:J,\"error\",0)=\"\",\"Factor error\",_xlfn.XLOOKUP($H60,'Customized Embodied EF'!$B:$B,'Customized Embodied EF'!J:J,\"error\",0)),_xlfn.XLOOKUP($H60,'Customized Embodied EF'!$B:$B,'Customized Embodied EF'!$D:$D,\"error\",0)),\"Factor error\"),\"Factor error\"))","v":0}]
[null,null,null,{"$f":"D60","v":"A1.1.1"},7,null,null,"Sandstone",null,"[t CO2e/reporting period]","",null,{"$f":"IF(SUMIFS(M:M,$F:$F,$H61,$C:$C,\"G4.\")=0,0,IFERROR(IF(OR($H61='Customized Embodied EF'!$B:$B),SUMIFS(M:M,$F:$F,$H61,$C:$C,\"G4.\")*IF($F61=\"Customized\",\nIF(_xlfn.XLOOKUP($H61,'Customized Embodied EF'!$B:$B,'Customized Embodied EF'!E:E,\"error\",0)=\"\",\"Factor error\",_xlfn.XLOOKUP($H61,'Customized Embodied EF'!$B:$B,'Customized Embodied EF'!E:E,\"error\",0)),_xlfn.XLOOKUP($H61,'Customized Embodied EF'!$B:$B,'Customized Embodied EF'!$D:$D,\"error\",0)),\"Factor error\"),\"Factor error\"))","v":0},{"$f":"IF(SUMIFS(N:N,$F:$F,$H61,$C:$C,\"G4.\")=0,0,IFERROR(IF(OR($H61='Customized Embodied EF'!$B:$B),SUMIFS(N:N,$F:$F,$H61,$C:$C,\"G4.\")*IF($F61=\"Customized\",\nIF(_xlfn.XLOOKUP($H61,'Customized Embodied EF'!$B:$B,'Customized Embodied EF'!F:F,\"error\",0)=\"\",\"Factor error\",_xlfn.XLOOKUP($H61,'Customized Embodied EF'!$B:$B,'Customized Embodied EF'!F:F,\"error\",0)),_xlfn.XLOOKUP($H61,'Customized Embodied EF'!$B:$B,'Customized Embodied EF'!$D:$D,\"error\",0)),\"Factor error\"),\"Factor error\"))","v":0},{"$f":"IF(SUMIFS(O:O,$F:$F,$H61,$C:$C,\"G4.\")=0,0,IFERROR(IF(OR($H61='Customized Embodied EF'!$B:$B),SUMIFS(O:O,$F:$F,$H61,$C:$C,\"G4.\")*IF($F61=\"Customized\",\nIF(_xlfn.XLOOKUP($H61,'Customized Embodied EF'!$B:$B,'Customized Embodied EF'!G:G,\"error\",0)=\"\",\"Factor error\",_xlfn.XLOOKUP($H61,'Customized Embodied EF'!$B:$B,'Customized Embodied EF'!G:G,\"error\",0)),_xlfn.XLOOKUP($H61,'Customized Embodied EF'!$B:$B,'Customized Embodied EF'!$D:$D,\"error\",0)),\"Factor error\"),\"Factor error\"))","v":0},{"$f":"IF(SUMIFS(P:P,$F:$F,$H61,$C:$C,\"G4.\")=0,0,IFERROR(IF(OR($H61='Customized Embodied EF'!$B:$B),SUMIFS(P:P,$F:$F,$H61,$C:$C,\"G4.\")*IF($F61=\"Customized\",\nIF(_xlfn.XLOOKUP($H61,'Customized Embodied EF'!$B:$B,'Customized Embodied EF'!H:H,\"error\",0)=\"\",\"Factor error\",_xlfn.XLOOKUP($H61,'Customized Embodied EF'!$B:$B,'Customized Embodied EF'!H:H,\"error\",0)),_xlfn.XLOOKUP($H61,'Customized Embodied EF'!$B:$B,'Customized Embodied EF'!$D:$D,\"error\",0)),\"Factor error\"),\"Factor error\"))","v":0},{"$f":"IF(SUMIFS(Q:Q,$F:$F,$H61,$C:$C,\"G4.\")=0,0,IFERROR(IF(OR($H61='Customized Embodied EF'!$B:$B),SUMIFS(Q:Q,$F:$F,$H61,$C:$C,\"G4.\")*IF($F61=\"Customized\",\nIF(_xlfn.XLOOKUP($H61,'Customized Embodied EF'!$B:$B,'Customized Embodied EF'!I:I,\"error\",0)=\"\",\"Factor error\",_xlfn.XLOOKUP($H61,'Customized Embodied EF'!$B:$B,'Customized Embodied EF'!I:I,\"error\",0)),_xlfn.XLOOKUP($H61,'Customized Embodied EF'!$B:$B,'Customized Embodied EF'!$D:$D,\"error\",0)),\"Factor error\"),\"Factor error\"))","v":0},{"$f":"IF(SUMIFS(R:R,$F:$F,$H61,$C:$C,\"G4.\")=0,0,IFERROR(IF(OR($H61='Customized Embodied EF'!$B:$B),SUMIFS(R:R,$F:$F,$H61,$C:$C,\"G4.\")*IF($F61=\"Customized\",\nIF(_xlfn.XLOOKUP($H61,'Customized Embodied EF'!$B:$B,'Customized Embodied EF'!J:J,\"error\",0)=\"\",\"Factor error\",_xlfn.XLOOKUP($H61,'Customized Embodied EF'!$B:$B,'Customized Embodied EF'!J:J,\"error\",0)),_xlfn.XLOOKUP($H61,'Customized Embodied EF'!$B:$B,'Customized Embodied EF'!$D:$D,\"error\",0)),\"Factor error\"),\"Factor error\"))","v":0}]
[null,null,null,{"$f":"D61","v":"A1.1.1"},8,null,null,"Iron ore",null,"[t CO2e/reporting period]","",null,{"$f":"IF(SUMIFS(M:M,$F:$F,$H62,$C:$C,\"G4.\")=0,0,IFERROR(IF(OR($H62='Customized Embodied EF'!$B:$B),SUMIFS(M:M,$F:$F,$H62,$C:$C,\"G4.\")*IF($F62=\"Customized\",\nIF(_xlfn.XLOOKUP($H62,'Customized Embodied EF'!$B:$B,'Customized Embodied EF'!E:E,\"error\",0)=\"\",\"Factor error\",_xlfn.XLOOKUP($H62,'Customized Embodied EF'!$B:$B,'Customized Embodied EF'!E:E,\"error\",0)),_xlfn.XLOOKUP($H62,'Customized Embodied EF'!$B:$B,'Customized Embodied EF'!$D:$D,\"error\",0)),\"Factor error\"),\"Factor error\"))","v":0},{"$f":"IF(SUMIFS(N:N,$F:$F,$H62,$C:$C,\"G4.\")=0,0,IFERROR(IF(OR($H62='Customized Embodied EF'!$B:$B),SUMIFS(N:N,$F:$F,$H62,$C:$C,\"G4.\")*IF($F62=\"Customized\",\nIF(_xlfn.XLOOKUP($H62,'Customized Embodied EF'!$B:$B,'Customized Embodied EF'!F:F,\"error\",0)=\"\",\"Factor error\",_xlfn.XLOOKUP($H62,'Customized Embodied EF'!$B:$B,'Customized Embodied EF'!F:F,\"error\",0)),_xlfn.XLOOKUP($H62,'Customized Embodied EF'!$B:$B,'Customized Embodied EF'!$D:$D,\"error\",0)),\"Factor error\"),\"Factor error\"))","v":0},{"$f":"IF(SUMIFS(O:O,$F:$F,$H62,$C:$C,\"G4.\")=0,0,IFERROR(IF(OR($H62='Customized Embodied EF'!$B:$B),SUMIFS(O:O,$F:$F,$H62,$C:$C,\"G4.\")*IF($F62=\"Customized\",\nIF(_xlfn.XLOOKUP($H62,'Customized Embodied EF'!$B:$B,'Customized Embodied EF'!G:G,\"error\",0)=\"\",\"Factor error\",_xlfn.XLOOKUP($H62,'Customized Embodied EF'!$B:$B,'Customized Embodied EF'!G:G,\"error\",0)),_xlfn.XLOOKUP($H62,'Customized Embodied EF'!$B:$B,'Customized Embodied EF'!$D:$D,\"error\",0)),\"Factor error\"),\"Factor error\"))","v":0},{"$f":"IF(SUMIFS(P:P,$F:$F,$H62,$C:$C,\"G4.\")=0,0,IFERROR(IF(OR($H62='Customized Embodied EF'!$B:$B),SUMIFS(P:P,$F:$F,$H62,$C:$C,\"G4.\")*IF($F62=\"Customized\",\nIF(_xlfn.XLOOKUP($H62,'Customized Embodied EF'!$B:$B,'Customized Embodied EF'!H:H,\"error\",0)=\"\",\"Factor error\",_xlfn.XLOOKUP($H62,'Customized Embodied EF'!$B:$B,'Customized Embodied EF'!H:H,\"error\",0)),_xlfn.XLOOKUP($H62,'Customized Embodied EF'!$B:$B,'Customized Embodied EF'!$D:$D,\"error\",0)),\"Factor error\"),\"Factor error\"))","v":0},{"$f":"IF(SUMIFS(Q:Q,$F:$F,$H62,$C:$C,\"G4.\")=0,0,IFERROR(IF(OR($H62='Customized Embodied EF'!$B:$B),SUMIFS(Q:Q,$F:$F,$H62,$C:$C,\"G4.\")*IF($F62=\"Customized\",\nIF(_xlfn.XLOOKUP($H62,'Customized Embodied EF'!$B:$B,'Customized Embodied EF'!I:I,\"error\",0)=\"\",\"Factor error\",_xlfn.XLOOKUP($H62,'Customized Embodied EF'!$B:$B,'Customized Embodied EF'!I:I,\"error\",0)),_xlfn.XLOOKUP($H62,'Customized Embodied EF'!$B:$B,'Customized Embodied EF'!$D:$D,\"error\",0)),\"Factor error\"),\"Factor error\"))","v":0},{"$f":"IF(SUMIFS(R:R,$F:$F,$H62,$C:$C,\"G4.\")=0,0,IFERROR(IF(OR($H62='Customized Embodied EF'!$B:$B),SUMIFS(R:R,$F:$F,$H62,$C:$C,\"G4.\")*IF($F62=\"Customized\",\nIF(_xlfn.XLOOKUP($H62,'Customized Embodied EF'!$B:$B,'Customized Embodied EF'!J:J,\"error\",0)=\"\",\"Factor error\",_xlfn.XLOOKUP($H62,'Customized Embodied EF'!$B:$B,'Customized Embodied EF'!J:J,\"error\",0)),_xlfn.XLOOKUP($H62,'Customized Embodied EF'!$B:$B,'Customized Embodied EF'!$D:$D,\"error\",0)),\"Factor error\"),\"Factor error\"))","v":0}]
[null,null,null,"A1.1.1",9,null,null,"Packaging material",null,"[t CO2e/reporting period]","",null,{"$f":"IF(SUMIFS(M:M,$F:$F,$H63,$C:$C,\"G4.\")=0,0,IFERROR(IF(OR($H63='Customized Embodied EF'!$B:$B),SUMIFS(M:M,$F:$F,$H63,$C:$C,\"G4.\")*IF($F63=\"Customized\",\nIF(_xlfn.XLOOKUP($H63,'Customized Embodied EF'!$B:$B,'Customized Embodied EF'!E:E,\"error\",0)=\"\",\"Factor error\",_xlfn.XLOOKUP($H63,'Customized Embodied EF'!$B:$B,'Customized Embodied EF'!E:E,\"error\",0)),_xlfn.XLOOKUP($H63,'Customized Embodied EF'!$B:$B,'Customized Embodied EF'!$D:$D,\"error\",0)),\"Factor error\"),\"Factor error\"))","v":0},{"$f":"IF(SUMIFS(N:N,$F:$F,$H63,$C:$C,\"G4.\")=0,0,IFERROR(IF(OR($H63='Customized Embodied EF'!$B:$B),SUMIFS(N:N,$F:$F,$H63,$C:$C,\"G4.\")*IF($F63=\"Customized\",\nIF(_xlfn.XLOOKUP($H63,'Customized Embodied EF'!$B:$B,'Customized Embodied EF'!F:F,\"error\",0)=\"\",\"Factor error\",_xlfn.XLOOKUP($H63,'Customized Embodied EF'!$B:$B,'Customized Embodied EF'!F:F,\"error\",0)),_xlfn.XLOOKUP($H63,'Customized Embodied EF'!$B:$B,'Customized Embodied EF'!$D:$D,\"error\",0)),\"Factor error\"),\"Factor error\"))","v":0},{"$f":"IF(SUMIFS(O:O,$F:$F,$H63,$C:$C,\"G4.\")=0,0,IFERROR(IF(OR($H63='Customized Embodied EF'!$B:$B),SUMIFS(O:O,$F:$F,$H63,$C:$C,\"G4.\")*IF($F63=\"Customized\",\nIF(_xlfn.XLOOKUP($H63,'Customized Embodied EF'!$B:$B,'Customized Embodied EF'!G:G,\"error\",0)=\"\",\"Factor error\",_xlfn.XLOOKUP($H63,'Customized Embodied EF'!$B:$B,'Customized Embodied EF'!G:G,\"error\",0)),_xlfn.XLOOKUP($H63,'Customized Embodied EF'!$B:$B,'Customized Embodied EF'!$D:$D,\"error\",0)),\"Factor error\"),\"Factor error\"))","v":0},{"$f":"IF(SUMIFS(P:P,$F:$F,$H63,$C:$C,\"G4.\")=0,0,IFERROR(IF(OR($H63='Customized Embodied EF'!$B:$B),SUMIFS(P:P,$F:$F,$H63,$C:$C,\"G4.\")*IF($F63=\"Customized\",\nIF(_xlfn.XLOOKUP($H63,'Customized Embodied EF'!$B:$B,'Customized Embodied EF'!H:H,\"error\",0)=\"\",\"Factor error\",_xlfn.XLOOKUP($H63,'Customized Embodied EF'!$B:$B,'Customized Embodied EF'!H:H,\"error\",0)),_xlfn.XLOOKUP($H63,'Customized Embodied EF'!$B:$B,'Customized Embodied EF'!$D:$D,\"error\",0)),\"Factor error\"),\"Factor error\"))","v":0},{"$f":"IF(SUMIFS(Q:Q,$F:$F,$H63,$C:$C,\"G4.\")=0,0,IFERROR(IF(OR($H63='Customized Embodied EF'!$B:$B),SUMIFS(Q:Q,$F:$F,$H63,$C:$C,\"G4.\")*IF($F63=\"Customized\",\nIF(_xlfn.XLOOKUP($H63,'Customized Embodied EF'!$B:$B,'Customized Embodied EF'!I:I,\"error\",0)=\"\",\"Factor error\",_xlfn.XLOOKUP($H63,'Customized Embodied EF'!$B:$B,'Customized Embodied EF'!I:I,\"error\",0)),_xlfn.XLOOKUP($H63,'Customized Embodied EF'!$B:$B,'Customized Embodied EF'!$D:$D,\"error\",0)),\"Factor error\"),\"Factor error\"))","v":0},{"$f":"IF(SUMIFS(R:R,$F:$F,$H63,$C:$C,\"G4.\")=0,0,IFERROR(IF(OR($H63='Customized Embodied EF'!$B:$B),SUMIFS(R:R,$F:$F,$H63,$C:$C,\"G4.\")*IF($F63=\"Customized\",\nIF(_xlfn.XLOOKUP($H63,'Customized Embodied EF'!$B:$B,'Customized Embodied EF'!J:J,\"error\",0)=\"\",\"Factor error\",_xlfn.XLOOKUP($H63,'Customized Embodied EF'!$B:$B,'Customized Embodied EF'!J:J,\"error\",0)),_xlfn.XLOOKUP($H63,'Customized Embodied EF'!$B:$B,'Customized Embodied EF'!$D:$D,\"error\",0)),\"Factor error\"),\"Factor error\"))","v":0}]
[null,null,null,"A1.1.1",10,null,null,{"$f":"IF(F36=\"\",\"\",F36)","v":""},"[refer to section G4]",null,{"$f":"IF(SUM(M64:R64)=0,\"\",SUM(M64:R64))","v":""},null,{"$f":"IF(SUMIFS(M:M,$F:$F,$H64,$C:$C,\"G4.\")=0,0,IFERROR(IF(OR($H64='Customized Embodied EF'!$B:$B),SUMIFS(M:M,$F:$F,$H64,$C:$C,\"G4.\")*IF($F64=\"Customized\",\nIF(_xlfn.XLOOKUP($H64,'Customized Embodied EF'!$B:$B,'Customized Embodied EF'!E:E,\"error\",0)=\"\",\"Factor error\",_xlfn.XLOOKUP($H64,'Customized Embodied EF'!$B:$B,'Customized Embodied EF'!E:E,\"error\",0)),_xlfn.XLOOKUP($H64,'Customized Embodied EF'!$B:$B,'Customized Embodied EF'!$D:$D,\"error\",0)),\"Factor error\"),\"Factor error\"))","v":0},{"$f":"IF(SUMIFS(N:N,$F:$F,$H64,$C:$C,\"G4.\")=0,0,IFERROR(IF(OR($H64='Customized Embodied EF'!$B:$B),SUMIFS(N:N,$F:$F,$H64,$C:$C,\"G4.\")*IF($F64=\"Customized\",\nIF(_xlfn.XLOOKUP($H64,'Customized Embodied EF'!$B:$B,'Customized Embodied EF'!F:F,\"error\",0)=\"\",\"Factor error\",_xlfn.XLOOKUP($H64,'Customized Embodied EF'!$B:$B,'Customized Embodied EF'!F:F,\"error\",0)),_xlfn.XLOOKUP($H64,'Customized Embodied EF'!$B:$B,'Customized Embodied EF'!$D:$D,\"error\",0)),\"Factor error\"),\"Factor error\"))","v":0},{"$f":"IF(SUMIFS(O:O,$F:$F,$H64,$C:$C,\"G4.\")=0,0,IFERROR(IF(OR($H64='Customized Embodied EF'!$B:$B),SUMIFS(O:O,$F:$F,$H64,$C:$C,\"G4.\")*IF($F64=\"Customized\",\nIF(_xlfn.XLOOKUP($H64,'Customized Embodied EF'!$B:$B,'Customized Embodied EF'!G:G,\"error\",0)=\"\",\"Factor error\",_xlfn.XLOOKUP($H64,'Customized Embodied EF'!$B:$B,'Customized Embodied EF'!G:G,\"error\",0)),_xlfn.XLOOKUP($H64,'Customized Embodied EF'!$B:$B,'Customized Embodied EF'!$D:$D,\"error\",0)),\"Factor error\"),\"Factor error\"))","v":0},{"$f":"IF(SUMIFS(P:P,$F:$F,$H64,$C:$C,\"G4.\")=0,0,IFERROR(IF(OR($H64='Customized Embodied EF'!$B:$B),SUMIFS(P:P,$F:$F,$H64,$C:$C,\"G4.\")*IF($F64=\"Customized\",\nIF(_xlfn.XLOOKUP($H64,'Customized Embodied EF'!$B:$B,'Customized Embodied EF'!H:H,\"error\",0)=\"\",\"Factor error\",_xlfn.XLOOKUP($H64,'Customized Embodied EF'!$B:$B,'Customized Embodied EF'!H:H,\"error\",0)),_xlfn.XLOOKUP($H64,'Customized Embodied EF'!$B:$B,'Customized Embodied EF'!$D:$D,\"error\",0)),\"Factor error\"),\"Factor error\"))","v":0},{"$f":"IF(SUMIFS(Q:Q,$F:$F,$H64,$C:$C,\"G4.\")=0,0,IFERROR(IF(OR($H64='Customized Embodied EF'!$B:$B),SUMIFS(Q:Q,$F:$F,$H64,$C:$C,\"G4.\")*IF($F64=\"Customized\",\nIF(_xlfn.XLOOKUP($H64,'Customized Embodied EF'!$B:$B,'Customized Embodied EF'!I:I,\"error\",0)=\"\",\"Factor error\",_xlfn.XLOOKUP($H64,'Customized Embodied EF'!$B:$B,'Customized Embodied EF'!I:I,\"error\",0)),_xlfn.XLOOKUP($H64,'Customized Embodied EF'!$B:$B,'Customized Embodied EF'!$D:$D,\"error\",0)),\"Factor error\"),\"Factor error\"))","v":0},{"$f":"IF(SUMIFS(R:R,$F:$F,$H64,$C:$C,\"G4.\")=0,0,IFERROR(IF(OR($H64='Customized Embodied EF'!$B:$B),SUMIFS(R:R,$F:$F,$H64,$C:$C,\"G4.\")*IF($F64=\"Customized\",\nIF(_xlfn.XLOOKUP($H64,'Customized Embodied EF'!$B:$B,'Customized Embodied EF'!J:J,\"error\",0)=\"\",\"Factor error\",_xlfn.XLOOKUP($H64,'Customized Embodied EF'!$B:$B,'Customized Embodied EF'!J:J,\"error\",0)),_xlfn.XLOOKUP($H64,'Customized Embodied EF'!$B:$B,'Customized Embodied EF'!$D:$D,\"error\",0)),\"Factor error\"),\"Factor error\"))","v":0}]
[null,null,null,"A1.1.1",11,null,null,{"$f":"IF(F37=\"\",\"\",F37)","v":""},"[refer to section G4]","[t CO2e/reporting period]",{"$f":"IF(SUM(M65:R65)=0,\"\",SUM(M65:R65))","v":""},null,{"$f":"IF(SUMIFS(M:M,$F:$F,$H65,$C:$C,\"G4.\")=0,0,IFERROR(IF(OR($H65='Customized Embodied EF'!$B:$B),SUMIFS(M:M,$F:$F,$H65,$C:$C,\"G4.\")*IF($F65=\"Customized\",\nIF(_xlfn.XLOOKUP($H65,'Customized Embodied EF'!$B:$B,'Customized Embodied EF'!E:E,\"error\",0)=\"\",\"Factor error\",_xlfn.XLOOKUP($H65,'Customized Embodied EF'!$B:$B,'Customized Embodied EF'!E:E,\"error\",0)),_xlfn.XLOOKUP($H65,'Customized Embodied EF'!$B:$B,'Customized Embodied EF'!$D:$D,\"error\",0)),\"Factor error\"),\"Factor error\"))","v":0},{"$f":"IF(SUMIFS(N:N,$F:$F,$H65,$C:$C,\"G4.\")=0,0,IFERROR(IF(OR($H65='Customized Embodied EF'!$B:$B),SUMIFS(N:N,$F:$F,$H65,$C:$C,\"G4.\")*IF($F65=\"Customized\",\nIF(_xlfn.XLOOKUP($H65,'Customized Embodied EF'!$B:$B,'Customized Embodied EF'!F:F,\"error\",0)=\"\",\"Factor error\",_xlfn.XLOOKUP($H65,'Customized Embodied EF'!$B:$B,'Customized Embodied EF'!F:F,\"error\",0)),_xlfn.XLOOKUP($H65,'Customized Embodied EF'!$B:$B,'Customized Embodied EF'!$D:$D,\"error\",0)),\"Factor error\"),\"Factor error\"))","v":0},{"$f":"IF(SUMIFS(O:O,$F:$F,$H65,$C:$C,\"G4.\")=0,0,IFERROR(IF(OR($H65='Customized Embodied EF'!$B:$B),SUMIFS(O:O,$F:$F,$H65,$C:$C,\"G4.\")*IF($F65=\"Customized\",\nIF(_xlfn.XLOOKUP($H65,'Customized Embodied EF'!$B:$B,'Customized Embodied EF'!G:G,\"error\",0)=\"\",\"Factor error\",_xlfn.XLOOKUP($H65,'Customized Embodied EF'!$B:$B,'Customized Embodied EF'!G:G,\"error\",0)),_xlfn.XLOOKUP($H65,'Customized Embodied EF'!$B:$B,'Customized Embodied EF'!$D:$D,\"error\",0)),\"Factor error\"),\"Factor error\"))","v":0},{"$f":"IF(SUMIFS(P:P,$F:$F,$H65,$C:$C,\"G4.\")=0,0,IFERROR(IF(OR($H65='Customized Embodied EF'!$B:$B),SUMIFS(P:P,$F:$F,$H65,$C:$C,\"G4.\")*IF($F65=\"Customized\",\nIF(_xlfn.XLOOKUP($H65,'Customized Embodied EF'!$B:$B,'Customized Embodied EF'!H:H,\"error\",0)=\"\",\"Factor error\",_xlfn.XLOOKUP($H65,'Customized Embodied EF'!$B:$B,'Customized Embodied EF'!H:H,\"error\",0)),_xlfn.XLOOKUP($H65,'Customized Embodied EF'!$B:$B,'Customized Embodied EF'!$D:$D,\"error\",0)),\"Factor error\"),\"Factor error\"))","v":0},{"$f":"IF(SUMIFS(Q:Q,$F:$F,$H65,$C:$C,\"G4.\")=0,0,IFERROR(IF(OR($H65='Customized Embodied EF'!$B:$B),SUMIFS(Q:Q,$F:$F,$H65,$C:$C,\"G4.\")*IF($F65=\"Customized\",\nIF(_xlfn.XLOOKUP($H65,'Customized Embodied EF'!$B:$B,'Customized Embodied EF'!I:I,\"error\",0)=\"\",\"Factor error\",_xlfn.XLOOKUP($H65,'Customized Embodied EF'!$B:$B,'Customized Embodied EF'!I:I,\"error\",0)),_xlfn.XLOOKUP($H65,'Customized Embodied EF'!$B:$B,'Customized Embodied EF'!$D:$D,\"error\",0)),\"Factor error\"),\"Factor error\"))","v":0},{"$f":"IF(SUMIFS(R:R,$F:$F,$H65,$C:$C,\"G4.\")=0,0,IFERROR(IF(OR($H65='Customized Embodied EF'!$B:$B),SUMIFS(R:R,$F:$F,$H65,$C:$C,\"G4.\")*IF($F65=\"Customized\",\nIF(_xlfn.XLOOKUP($H65,'Customized Embodied EF'!$B:$B,'Customized Embodied EF'!J:J,\"error\",0)=\"\",\"Factor error\",_xlfn.XLOOKUP($H65,'Customized Embodied EF'!$B:$B,'Customized Embodied EF'!J:J,\"error\",0)),_xlfn.XLOOKUP($H65,'Customized Embodied EF'!$B:$B,'Customized Embodied EF'!$D:$D,\"error\",0)),\"Factor error\"),\"Factor error\"))","v":0}]
[null,null,"A1.1.2",null,null,"CO2e from bought energy commodity",null,null,null,"[t CO2e/reporting period]","",null,{"$f":"SUMIF($D:$D,$C66,M:M)","v":0},0,0,0,0,0]
[null,null,null,null,null,"Adopting CO2e Factors ",null,"[Please insert additional rows if more energy commodities are included]"]
[null,null,null,{"$f":"C66","v":"A1.1.2"},".1",null,null,{"$f":"H44","v":"Energy commodity :"},null,"[t CO2e/reporting period]",{"$f":"SUM(M68:R68)","v":0},null,{"$f":"IFERROR(IF(OR($I68='Customized Embodied EF'!$B:$B),SUMIFS(M:M,$I:$I,$I68,$C:$C,\"G4.\")*IF($F68=\"Customized\",\nIF(_xlfn.XLOOKUP($I68,'Customized Embodied EF'!$B:$B,'Customized Embodied EF'!E:E,\"error\",0)=\"\",\"Factor error\",_xlfn.XLOOKUP($I68,'Customized Embodied EF'!$B:$B,'Customized Embodied EF'!E:E,\"error\",0)),_xlfn.XLOOKUP($I68,'Customized Embodied EF'!$B:$B,'Customized Embodied EF'!$D:$D,\"error\",0)),\"Factor error\"),\"Factor error\")","v":0},{"$f":"IFERROR(IF(OR($I68='Customized Embodied EF'!$B:$B),SUMIFS(N:N,$I:$I,$I68,$C:$C,\"G4.\")*IF($F68=\"Customized\",\nIF(_xlfn.XLOOKUP($I68,'Customized Embodied EF'!$B:$B,'Customized Embodied EF'!F:F,\"error\",0)=\"\",\"Factor error\",_xlfn.XLOOKUP($I68,'Customized Embodied EF'!$B:$B,'Customized Embodied EF'!F:F,\"error\",0)),_xlfn.XLOOKUP($I68,'Customized Embodied EF'!$B:$B,'Customized Embodied EF'!$D:$D,\"error\",0)),\"Factor error\"),\"Factor error\")","v":0},{"$f":"IFERROR(IF(OR($I68='Customized Embodied EF'!$B:$B),SUMIFS(O:O,$I:$I,$I68,$C:$C,\"G4.\")*IF($F68=\"Customized\",\nIF(_xlfn.XLOOKUP($I68,'Customized Embodied EF'!$B:$B,'Customized Embodied EF'!G:G,\"error\",0)=\"\",\"Factor error\",_xlfn.XLOOKUP($I68,'Customized Embodied EF'!$B:$B,'Customized Embodied EF'!G:G,\"error\",0)),_xlfn.XLOOKUP($I68,'Customized Embodied EF'!$B:$B,'Customized Embodied EF'!$D:$D,\"error\",0)),\"Factor error\"),\"Factor error\")","v":0},{"$f":"IFERROR(IF(OR($I68='Customized Embodied EF'!$B:$B),SUMIFS(P:P,$I:$I,$I68,$C:$C,\"G4.\")*IF($F68=\"Customized\",\nIF(_xlfn.XLOOKUP($I68,'Customized Embodied EF'!$B:$B,'Customized Embodied EF'!H:H,\"error\",0)=\"\",\"Factor error\",_xlfn.XLOOKUP($I68,'Customized Embodied EF'!$B:$B,'Customized Embodied EF'!H:H,\"error\",0)),_xlfn.XLOOKUP($I68,'Customized Embodied EF'!$B:$B,'Customized Embodied EF'!$D:$D,\"error\",0)),\"Factor error\"),\"Factor error\")","v":0},{"$f":"IFERROR(IF(OR($I68='Customized Embodied EF'!$B:$B),SUMIFS(Q:Q,$I:$I,$I68,$C:$C,\"G4.\")*IF($F68=\"Customized\",\nIF(_xlfn.XLOOKUP($I68,'Customized Embodied EF'!$B:$B,'Customized Embodied EF'!I:I,\"error\",0)=\"\",\"Factor error\",_xlfn.XLOOKUP($I68,'Customized Embodied EF'!$B:$B,'Customized Embodied EF'!I:I,\"error\",0)),_xlfn.XLOOKUP($I68,'Customized Embodied EF'!$B:$B,'Customized Embodied EF'!$D:$D,\"error\",0)),\"Factor error\"),\"Factor error\")","v":0},{"$f":"IFERROR(IF(OR($I68='Customized Embodied EF'!$B:$B),SUMIFS(R:R,$I:$I,$I68,$C:$C,\"G4.\")*IF($F68=\"Customized\",\nIF(_xlfn.XLOOKUP($I68,'Customized Embodied EF'!$B:$B,'Customized Embodied EF'!J:J,\"error\",0)=\"\",\"Factor error\",_xlfn.XLOOKUP($I68,'Customized Embodied EF'!$B:$B,'Customized Embodied EF'!J:J,\"error\",0)),_xlfn.XLOOKUP($I68,'Customized Embodied EF'!$B:$B,'Customized Embodied EF'!$D:$D,\"error\",0)),\"Factor error\"),\"Factor error\")","v":"Factor error"}]
[null,null,null,{"$f":"D68","v":"A1.1.2"},".2",null,null,{"$f":"H45","v":"Energy commodity :"},null,"[t CO2e/reporting period]",{"$f":"SUM(M69:R69)","v":0},null,{"$f":"IFERROR(IF(OR($I69='Customized Embodied EF'!$B:$B),SUMIFS(M:M,$I:$I,$I69,$C:$C,\"G4.\")*IF($F69=\"Customized\",\nIF(_xlfn.XLOOKUP($I69,'Customized Embodied EF'!$B:$B,'Customized Embodied EF'!E:E,\"error\",0)=\"\",\"Factor error\",_xlfn.XLOOKUP($I69,'Customized Embodied EF'!$B:$B,'Customized Embodied EF'!E:E,\"error\",0)),_xlfn.XLOOKUP($I69,'Customized Embodied EF'!$B:$B,'Customized Embodied EF'!$D:$D,\"error\",0)),\"Factor error\"),\"Factor error\")","v":0},{"$f":"IFERROR(IF(OR($I69='Customized Embodied EF'!$B:$B),SUMIFS(N:N,$I:$I,$I69,$C:$C,\"G4.\")*IF($F69=\"Customized\",\nIF(_xlfn.XLOOKUP($I69,'Customized Embodied EF'!$B:$B,'Customized Embodied EF'!F:F,\"error\",0)=\"\",\"Factor error\",_xlfn.XLOOKUP($I69,'Customized Embodied EF'!$B:$B,'Customized Embodied EF'!F:F,\"error\",0)),_xlfn.XLOOKUP($I69,'Customized Embodied EF'!$B:$B,'Customized Embodied EF'!$D:$D,\"error\",0)),\"Factor error\"),\"Factor error\")","v":0},{"$f":"IFERROR(IF(OR($I69='Customized Embodied EF'!$B:$B),SUMIFS(O:O,$I:$I,$I69,$C:$C,\"G4.\")*IF($F69=\"Customized\",\nIF(_xlfn.XLOOKUP($I69,'Customized Embodied EF'!$B:$B,'Customized Embodied EF'!G:G,\"error\",0)=\"\",\"Factor error\",_xlfn.XLOOKUP($I69,'Customized Embodied EF'!$B:$B,'Customized Embodied EF'!G:G,\"error\",0)),_xlfn.XLOOKUP($I69,'Customized Embodied EF'!$B:$B,'Customized Embodied EF'!$D:$D,\"error\",0)),\"Factor error\"),\"Factor error\")","v":0},{"$f":"IFERROR(IF(OR($I69='Customized Embodied EF'!$B:$B),SUMIFS(P:P,$I:$I,$I69,$C:$C,\"G4.\")*IF($F69=\"Customized\",\nIF(_xlfn.XLOOKUP($I69,'Customized Embodied EF'!$B:$B,'Customized Embodied EF'!H:H,\"error\",0)=\"\",\"Factor error\",_xlfn.XLOOKUP($I69,'Customized Embodied EF'!$B:$B,'Customized Embodied EF'!H:H,\"error\",0)),_xlfn.XLOOKUP($I69,'Customized Embodied EF'!$B:$B,'Customized Embodied EF'!$D:$D,\"error\",0)),\"Factor error\"),\"Factor error\")","v":0},{"$f":"IFERROR(IF(OR($I69='Customized Embodied EF'!$B:$B),SUMIFS(Q:Q,$I:$I,$I69,$C:$C,\"G4.\")*IF($F69=\"Customized\",\nIF(_xlfn.XLOOKUP($I69,'Customized Embodied EF'!$B:$B,'Customized Embodied EF'!I:I,\"error\",0)=\"\",\"Factor error\",_xlfn.XLOOKUP($I69,'Customized Embodied EF'!$B:$B,'Customized Embodied EF'!I:I,\"error\",0)),_xlfn.XLOOKUP($I69,'Customized Embodied EF'!$B:$B,'Customized Embodied EF'!$D:$D,\"error\",0)),\"Factor error\"),\"Factor error\")","v":0},{"$f":"IFERROR(IF(OR($I69='Customized Embodied EF'!$B:$B),SUMIFS(R:R,$I:$I,$I69,$C:$C,\"G4.\")*IF($F69=\"Customized\",\nIF(_xlfn.XLOOKUP($I69,'Customized Embodied EF'!$B:$B,'Customized Embodied EF'!J:J,\"error\",0)=\"\",\"Factor error\",_xlfn.XLOOKUP($I69,'Customized Embodied EF'!$B:$B,'Customized Embodied EF'!J:J,\"error\",0)),_xlfn.XLOOKUP($I69,'Customized Embodied EF'!$B:$B,'Customized Embodied EF'!$D:$D,\"error\",0)),\"Factor error\"),\"Factor error\")","v":"Factor error"}]
[null,null,null,{"$f":"D69","v":"A1.1.2"},".3",null,null,{"$f":"H69","v":"Energy commodity :"},null,"[t CO2e/reporting period]",0,null,{"$f":"IFERROR(IF(OR($I70='Customized Embodied EF'!$B:$B),SUMIFS(M:M,$I:$I,$I70,$C:$C,\"G4.\")*IF($F70=\"Customized\",\nIF(_xlfn.XLOOKUP($I70,'Customized Embodied EF'!$B:$B,'Customized Embodied EF'!E:E,\"error\",0)=\"\",\"Factor error\",_xlfn.XLOOKUP($I70,'Customized Embodied EF'!$B:$B,'Customized Embodied EF'!E:E,\"error\",0)),_xlfn.XLOOKUP($I70,'Customized Embodied EF'!$B:$B,'Customized Embodied EF'!$D:$D,\"error\",0)),\"Factor error\"),\"Factor error\")","v":0},{"$f":"IFERROR(IF(OR($I70='Customized Embodied EF'!$B:$B),SUMIFS(N:N,$I:$I,$I70,$C:$C,\"G4.\")*IF($F70=\"Customized\",\nIF(_xlfn.XLOOKUP($I70,'Customized Embodied EF'!$B:$B,'Customized Embodied EF'!F:F,\"error\",0)=\"\",\"Factor error\",_xlfn.XLOOKUP($I70,'Customized Embodied EF'!$B:$B,'Customized Embodied EF'!F:F,\"error\",0)),_xlfn.XLOOKUP($I70,'Customized Embodied EF'!$B:$B,'Customized Embodied EF'!$D:$D,\"error\",0)),\"Factor error\"),\"Factor error\")","v":0},{"$f":"IFERROR(IF(OR($I70='Customized Embodied EF'!$B:$B),SUMIFS(O:O,$I:$I,$I70,$C:$C,\"G4.\")*IF($F70=\"Customized\",\nIF(_xlfn.XLOOKUP($I70,'Customized Embodied EF'!$B:$B,'Customized Embodied EF'!G:G,\"error\",0)=\"\",\"Factor error\",_xlfn.XLOOKUP($I70,'Customized Embodied EF'!$B:$B,'Customized Embodied EF'!G:G,\"error\",0)),_xlfn.XLOOKUP($I70,'Customized Embodied EF'!$B:$B,'Customized Embodied EF'!$D:$D,\"error\",0)),\"Factor error\"),\"Factor error\")","v":0},{"$f":"IFERROR(IF(OR($I70='Customized Embodied EF'!$B:$B),SUMIFS(P:P,$I:$I,$I70,$C:$C,\"G4.\")*IF($F70=\"Customized\",\nIF(_xlfn.XLOOKUP($I70,'Customized Embodied EF'!$B:$B,'Customized Embodied EF'!H:H,\"error\",0)=\"\",\"Factor error\",_xlfn.XLOOKUP($I70,'Customized Embodied EF'!$B:$B,'Customized Embodied EF'!H:H,\"error\",0)),_xlfn.XLOOKUP($I70,'Customized Embodied EF'!$B:$B,'Customized Embodied EF'!$D:$D,\"error\",0)),\"Factor error\"),\"Factor error\")","v":0},{"$f":"IFERROR(IF(OR($I70='Customized Embodied EF'!$B:$B),SUMIFS(Q:Q,$I:$I,$I70,$C:$C,\"G4.\")*IF($F70=\"Customized\",\nIF(_xlfn.XLOOKUP($I70,'Customized Embodied EF'!$B:$B,'Customized Embodied EF'!I:I,\"error\",0)=\"\",\"Factor error\",_xlfn.XLOOKUP($I70,'Customized Embodied EF'!$B:$B,'Customized Embodied EF'!I:I,\"error\",0)),_xlfn.XLOOKUP($I70,'Customized Embodied EF'!$B:$B,'Customized Embodied EF'!$D:$D,\"error\",0)),\"Factor error\"),\"Factor error\")","v":0},{"$f":"IFERROR(IF(OR($I70='Customized Embodied EF'!$B:$B),SUMIFS(R:R,$I:$I,$I70,$C:$C,\"G4.\")*IF($F70=\"Customized\",\nIF(_xlfn.XLOOKUP($I70,'Customized Embodied EF'!$B:$B,'Customized Embodied EF'!J:J,\"error\",0)=\"\",\"Factor error\",_xlfn.XLOOKUP($I70,'Customized Embodied EF'!$B:$B,'Customized Embodied EF'!J:J,\"error\",0)),_xlfn.XLOOKUP($I70,'Customized Embodied EF'!$B:$B,'Customized Embodied EF'!$D:$D,\"error\",0)),\"Factor error\"),\"Factor error\")","v":"Factor error"}]
[null,null,null,{"$f":"D70","v":"A1.1.2"},".4",null,null,{"$f":"H70","v":"Energy commodity :"},null,"[t CO2e/reporting period]",0,null,{"$f":"IFERROR(IF(OR($I71='Customized Embodied EF'!$B:$B),SUMIFS(M:M,$I:$I,$I71,$C:$C,\"G4.\")*IF($F71=\"Customized\",\nIF(_xlfn.XLOOKUP($I71,'Customized Embodied EF'!$B:$B,'Customized Embodied EF'!E:E,\"error\",0)=\"\",\"Factor error\",_xlfn.XLOOKUP($I71,'Customized Embodied EF'!$B:$B,'Customized Embodied EF'!E:E,\"error\",0)),_xlfn.XLOOKUP($I71,'Customized Embodied EF'!$B:$B,'Customized Embodied EF'!$D:$D,\"error\",0)),\"Factor error\"),\"Factor error\")","v":0},{"$f":"IFERROR(IF(OR($I71='Customized Embodied EF'!$B:$B),SUMIFS(N:N,$I:$I,$I71,$C:$C,\"G4.\")*IF($F71=\"Customized\",\nIF(_xlfn.XLOOKUP($I71,'Customized Embodied EF'!$B:$B,'Customized Embodied EF'!F:F,\"error\",0)=\"\",\"Factor error\",_xlfn.XLOOKUP($I71,'Customized Embodied EF'!$B:$B,'Customized Embodied EF'!F:F,\"error\",0)),_xlfn.XLOOKUP($I71,'Customized Embodied EF'!$B:$B,'Customized Embodied EF'!$D:$D,\"error\",0)),\"Factor error\"),\"Factor error\")","v":0},{"$f":"IFERROR(IF(OR($I71='Customized Embodied EF'!$B:$B),SUMIFS(O:O,$I:$I,$I71,$C:$C,\"G4.\")*IF($F71=\"Customized\",\nIF(_xlfn.XLOOKUP($I71,'Customized Embodied EF'!$B:$B,'Customized Embodied EF'!G:G,\"error\",0)=\"\",\"Factor error\",_xlfn.XLOOKUP($I71,'Customized Embodied EF'!$B:$B,'Customized Embodied EF'!G:G,\"error\",0)),_xlfn.XLOOKUP($I71,'Customized Embodied EF'!$B:$B,'Customized Embodied EF'!$D:$D,\"error\",0)),\"Factor error\"),\"Factor error\")","v":0},{"$f":"IFERROR(IF(OR($I71='Customized Embodied EF'!$B:$B),SUMIFS(P:P,$I:$I,$I71,$C:$C,\"G4.\")*IF($F71=\"Customized\",\nIF(_xlfn.XLOOKUP($I71,'Customized Embodied EF'!$B:$B,'Customized Embodied EF'!H:H,\"error\",0)=\"\",\"Factor error\",_xlfn.XLOOKUP($I71,'Customized Embodied EF'!$B:$B,'Customized Embodied EF'!H:H,\"error\",0)),_xlfn.XLOOKUP($I71,'Customized Embodied EF'!$B:$B,'Customized Embodied EF'!$D:$D,\"error\",0)),\"Factor error\"),\"Factor error\")","v":0},{"$f":"IFERROR(IF(OR($I71='Customized Embodied EF'!$B:$B),SUMIFS(Q:Q,$I:$I,$I71,$C:$C,\"G4.\")*IF($F71=\"Customized\",\nIF(_xlfn.XLOOKUP($I71,'Customized Embodied EF'!$B:$B,'Customized Embodied EF'!I:I,\"error\",0)=\"\",\"Factor error\",_xlfn.XLOOKUP($I71,'Customized Embodied EF'!$B:$B,'Customized Embodied EF'!I:I,\"error\",0)),_xlfn.XLOOKUP($I71,'Customized Embodied EF'!$B:$B,'Customized Embodied EF'!$D:$D,\"error\",0)),\"Factor error\"),\"Factor error\")","v":0},{"$f":"IFERROR(IF(OR($I71='Customized Embodied EF'!$B:$B),SUMIFS(R:R,$I:$I,$I71,$C:$C,\"G4.\")*IF($F71=\"Customized\",\nIF(_xlfn.XLOOKUP($I71,'Customized Embodied EF'!$B:$B,'Customized Embodied EF'!J:J,\"error\",0)=\"\",\"Factor error\",_xlfn.XLOOKUP($I71,'Customized Embodied EF'!$B:$B,'Customized Embodied EF'!J:J,\"error\",0)),_xlfn.XLOOKUP($I71,'Customized Embodied EF'!$B:$B,'Customized Embodied EF'!$D:$D,\"error\",0)),\"Factor error\"),\"Factor error\")","v":"Factor error"}]
[null,null,null,"A1.1.2",".5",null,null,"Energy commodity :",null,"[t CO2e/reporting period]",{"$f":"SUM(M72:R72)","v":0},null,{"$f":"IFERROR(IF(OR($I72='Customized Embodied EF'!$B:$B),SUMIFS(M:M,$I:$I,$I72,$C:$C,\"G4.\")*IF($F72=\"Customized\",\nIF(_xlfn.XLOOKUP($I72,'Customized Embodied EF'!$B:$B,'Customized Embodied EF'!E:E,\"error\",0)=\"\",\"Factor error\",_xlfn.XLOOKUP($I72,'Customized Embodied EF'!$B:$B,'Customized Embodied EF'!E:E,\"error\",0)),_xlfn.XLOOKUP($I72,'Customized Embodied EF'!$B:$B,'Customized Embodied EF'!$D:$D,\"error\",0)),\"Factor error\"),\"Factor error\")","v":0},{"$f":"IFERROR(IF(OR($I72='Customized Embodied EF'!$B:$B),SUMIFS(N:N,$I:$I,$I72,$C:$C,\"G4.\")*IF($F72=\"Customized\",\nIF(_xlfn.XLOOKUP($I72,'Customized Embodied EF'!$B:$B,'Customized Embodied EF'!F:F,\"error\",0)=\"\",\"Factor error\",_xlfn.XLOOKUP($I72,'Customized Embodied EF'!$B:$B,'Customized Embodied EF'!F:F,\"error\",0)),_xlfn.XLOOKUP($I72,'Customized Embodied EF'!$B:$B,'Customized Embodied EF'!$D:$D,\"error\",0)),\"Factor error\"),\"Factor error\")","v":0},{"$f":"IFERROR(IF(OR($I72='Customized Embodied EF'!$B:$B),SUMIFS(O:O,$I:$I,$I72,$C:$C,\"G4.\")*IF($F72=\"Customized\",\nIF(_xlfn.XLOOKUP($I72,'Customized Embodied EF'!$B:$B,'Customized Embodied EF'!G:G,\"error\",0)=\"\",\"Factor error\",_xlfn.XLOOKUP($I72,'Customized Embodied EF'!$B:$B,'Customized Embodied EF'!G:G,\"error\",0)),_xlfn.XLOOKUP($I72,'Customized Embodied EF'!$B:$B,'Customized Embodied EF'!$D:$D,\"error\",0)),\"Factor error\"),\"Factor error\")","v":0},{"$f":"IFERROR(IF(OR($I72='Customized Embodied EF'!$B:$B),SUMIFS(P:P,$I:$I,$I72,$C:$C,\"G4.\")*IF($F72=\"Customized\",\nIF(_xlfn.XLOOKUP($I72,'Customized Embodied EF'!$B:$B,'Customized Embodied EF'!H:H,\"error\",0)=\"\",\"Factor error\",_xlfn.XLOOKUP($I72,'Customized Embodied EF'!$B:$B,'Customized Embodied EF'!H:H,\"error\",0)),_xlfn.XLOOKUP($I72,'Customized Embodied EF'!$B:$B,'Customized Embodied EF'!$D:$D,\"error\",0)),\"Factor error\"),\"Factor error\")","v":0},{"$f":"IFERROR(IF(OR($I72='Customized Embodied EF'!$B:$B),SUMIFS(Q:Q,$I:$I,$I72,$C:$C,\"G4.\")*IF($F72=\"Customized\",\nIF(_xlfn.XLOOKUP($I72,'Customized Embodied EF'!$B:$B,'Customized Embodied EF'!I:I,\"error\",0)=\"\",\"Factor error\",_xlfn.XLOOKUP($I72,'Customized Embodied EF'!$B:$B,'Customized Embodied EF'!I:I,\"error\",0)),_xlfn.XLOOKUP($I72,'Customized Embodied EF'!$B:$B,'Customized Embodied EF'!$D:$D,\"error\",0)),\"Factor error\"),\"Factor error\")","v":0},{"$f":"IFERROR(IF(OR($I72='Customized Embodied EF'!$B:$B),SUMIFS(R:R,$I:$I,$I72,$C:$C,\"G4.\")*IF($F72=\"Customized\",\nIF(_xlfn.XLOOKUP($I72,'Customized Embodied EF'!$B:$B,'Customized Embodied EF'!J:J,\"error\",0)=\"\",\"Factor error\",_xlfn.XLOOKUP($I72,'Customized Embodied EF'!$B:$B,'Customized Embodied EF'!J:J,\"error\",0)),_xlfn.XLOOKUP($I72,'Customized Embodied EF'!$B:$B,'Customized Embodied EF'!$D:$D,\"error\",0)),\"Factor error\"),\"Factor error\")","v":"Factor error"}]
[null,null,null,{"$f":"D72","v":"A1.1.2"},".6",null,null,{"$f":"H45","v":"Energy commodity :"},null,"[t CO2e/reporting period]",{"$f":"SUM(M73:R73)","v":0},null,{"$f":"IFERROR(IF(OR($I73='Customized Embodied EF'!$B:$B),SUMIFS(M:M,$I:$I,$I73,$C:$C,\"G4.\")*IF($F73=\"Customized\",\nIF(_xlfn.XLOOKUP($I73,'Customized Embodied EF'!$B:$B,'Customized Embodied EF'!E:E,\"error\",0)=\"\",\"Factor error\",_xlfn.XLOOKUP($I73,'Customized Embodied EF'!$B:$B,'Customized Embodied EF'!E:E,\"error\",0)),_xlfn.XLOOKUP($I73,'Customized Embodied EF'!$B:$B,'Customized Embodied EF'!$D:$D,\"error\",0)),\"Factor error\"),\"Factor error\")","v":0},{"$f":"IFERROR(IF(OR($I73='Customized Embodied EF'!$B:$B),SUMIFS(N:N,$I:$I,$I73,$C:$C,\"G4.\")*IF($F73=\"Customized\",\nIF(_xlfn.XLOOKUP($I73,'Customized Embodied EF'!$B:$B,'Customized Embodied EF'!F:F,\"error\",0)=\"\",\"Factor error\",_xlfn.XLOOKUP($I73,'Customized Embodied EF'!$B:$B,'Customized Embodied EF'!F:F,\"error\",0)),_xlfn.XLOOKUP($I73,'Customized Embodied EF'!$B:$B,'Customized Embodied EF'!$D:$D,\"error\",0)),\"Factor error\"),\"Factor error\")","v":0},{"$f":"IFERROR(IF(OR($I73='Customized Embodied EF'!$B:$B),SUMIFS(O:O,$I:$I,$I73,$C:$C,\"G4.\")*IF($F73=\"Customized\",\nIF(_xlfn.XLOOKUP($I73,'Customized Embodied EF'!$B:$B,'Customized Embodied EF'!G:G,\"error\",0)=\"\",\"Factor error\",_xlfn.XLOOKUP($I73,'Customized Embodied EF'!$B:$B,'Customized Embodied EF'!G:G,\"error\",0)),_xlfn.XLOOKUP($I73,'Customized Embodied EF'!$B:$B,'Customized Embodied EF'!$D:$D,\"error\",0)),\"Factor error\"),\"Factor error\")","v":0},{"$f":"IFERROR(IF(OR($I73='Customized Embodied EF'!$B:$B),SUMIFS(P:P,$I:$I,$I73,$C:$C,\"G4.\")*IF($F73=\"Customized\",\nIF(_xlfn.XLOOKUP($I73,'Customized Embodied EF'!$B:$B,'Customized Embodied EF'!H:H,\"error\",0)=\"\",\"Factor error\",_xlfn.XLOOKUP($I73,'Customized Embodied EF'!$B:$B,'Customized Embodied EF'!H:H,\"error\",0)),_xlfn.XLOOKUP($I73,'Customized Embodied EF'!$B:$B,'Customized Embodied EF'!$D:$D,\"error\",0)),\"Factor error\"),\"Factor error\")","v":0},{"$f":"IFERROR(IF(OR($I73='Customized Embodied EF'!$B:$B),SUMIFS(Q:Q,$I:$I,$I73,$C:$C,\"G4.\")*IF($F73=\"Customized\",\nIF(_xlfn.XLOOKUP($I73,'Customized Embodied EF'!$B:$B,'Customized Embodied EF'!I:I,\"error\",0)=\"\",\"Factor error\",_xlfn.XLOOKUP($I73,'Customized Embodied EF'!$B:$B,'Customized Embodied EF'!I:I,\"error\",0)),_xlfn.XLOOKUP($I73,'Customized Embodied EF'!$B:$B,'Customized Embodied EF'!$D:$D,\"error\",0)),\"Factor error\"),\"Factor error\")","v":0},{"$f":"IFERROR(IF(OR($I73='Customized Embodied EF'!$B:$B),SUMIFS(R:R,$I:$I,$I73,$C:$C,\"G4.\")*IF($F73=\"Customized\",\nIF(_xlfn.XLOOKUP($I73,'Customized Embodied EF'!$B:$B,'Customized Embodied EF'!J:J,\"error\",0)=\"\",\"Factor error\",_xlfn.XLOOKUP($I73,'Customized Embodied EF'!$B:$B,'Customized Embodied EF'!J:J,\"error\",0)),_xlfn.XLOOKUP($I73,'Customized Embodied EF'!$B:$B,'Customized Embodied EF'!$D:$D,\"error\",0)),\"Factor error\"),\"Factor error\")","v":"Factor error"}]
[null,null,"A1.1.3",null,null,null,null,null,"Total CO2e in Stage A1","[t CO2e/reporting period]",{"$f":"SUM(M74:R74)","v":0},null,{"$f":"IF(AND(M53=\"\",M66=\"\"),\"\",(M53+M66))","v":0},{"$f":"IF(AND(N53=\"\",N66=\"\"),\"\",(N53+N66))","v":0},0,0,0,0]
[null,"A2","PROJECT LIFE CYCLE STAGE: A2 OFF-SITE TRANSPORTATION OF RAW MATERIALS TO MANUFACTURING PLANT"]
[null,null,"A2.1 CO2e EMISSIONS ",null,null,null,null,null,null,"unit","Total",null,"Product 1","Product 2","Product 3","Product 4","Product 5","Product 6"]
[null,null,"A2.1.1",null,null,"CO2e from off-site transportation of raw material to manufacturing plant"]
[null,null,null,{"$f":"C77","v":"A2.1.1"},".1","CO2e calculated using either 1) WRI & WBCSD's protocol OR 2) EPD & EMSD's carbon audit tool)",null,null,null,"[t CO2e/reporting period]",{"$f":"SUM(M78:R78)","v":0}]
[null,null,"A2.1.2",null,null,null,null,null,"Total CO2e in Stage A2","[t CO2e/reporting period]",{"$f":"IF(AND(K78=\"\"),\"\",(K78))","v":0},null,{"$f":"IF(AND(M78=\"\"),\"\",(M78))","v":""},{"$f":"IF(AND(N78=\"\"),\"\",(N78))","v":""},{"$f":"IF(AND(O78=\"\"),\"\",(O78))","v":""},"","",""]
[null,"A3","PROJECT LIFE CYCLE STAGE: A3 PRODUCT MANUFACTURING AND FABRICATION (WITHOUT WASTAGE)"]
[null,null,"A3.1 CO2e EMISSIONS ",null,null,null,null,null,null,"unit","Total",null,"Product 1","Product 2","Product 3","Product 4","Product 5","Product 6"]
[null,null,"A3.1.1",null,null,"CO2e from industrial processes ",null,null,null,"[t CO2e/reporting period]",{"$f":"SUM(M82:R82)","v":0},null,{"$f":"SUMIF($D:$D,$C82,M:M)","v":0},0,0,0,0,0]
[null,null,null,{"$f":"C82","v":"A3.1.1"},".1","CO2e from calcination of raw materials for clinker production",null,null,null,"[t CO2e/reporting period]",{"$f":"SUM(M83:R83)","v":0},null,{"$f":"SUMIF($D:$D,$D84,M:M)","v":0},0,0,0,0,0]
[null,null,null,{"$f":"D83&E83","v":"A3.1.1.1"},".1","CO2e from calcination of carbonate sources"]
[null,null,null,null,null,"Adopting CO2e Factors "]
[null,null,null,{"$f":"D84","v":"A3.1.1.1"},".2","Default",null,null,"[refer to \"Customized Process Factors\"]","[t CO2e/reporting period]",{"$f":"SUM(M86:R86)","v":0},null,{"$f":"IFERROR(SUMIFS(M:M,$C:$C,\"G3.\",$F:$F,\"Clinker production in weight\")*IF($F86=\"Customized\",\nIF(_xlfn.XLOOKUP(\"Carbonate sources\",'Customized Process Factors'!$B:$B,'Customized Process Factors'!E:E)=\"\",\"Factor error\",_xlfn.XLOOKUP(\"Carbonate sources\",'Customized Process Factors'!$B:$B,'Customized Process Factors'!E:E)),_xlfn.XLOOKUP(\"Carbonate sources\",'Customized Process Factors'!$B:$B,'Customized Process Factors'!$D:$D,\"No CO2e EF\",0)),\"Factor error\")","v":0},{"$f":"IFERROR(SUMIFS(N:N,$C:$C,\"G3.\",$F:$F,\"Clinker production in weight\")*IF($F86=\"Customized\",\nIF(_xlfn.XLOOKUP(\"Carbonate sources\",'Customized Process Factors'!$B:$B,'Customized Process Factors'!F:F)=\"\",\"Factor error\",_xlfn.XLOOKUP(\"Carbonate sources\",'Customized Process Factors'!$B:$B,'Customized Process Factors'!F:F)),_xlfn.XLOOKUP(\"Carbonate sources\",'Customized Process Factors'!$B:$B,'Customized Process Factors'!$D:$D,\"No CO2e EF\",0)),\"Factor error\")","v":0},{"$f":"IFERROR(SUMIFS(O:O,$C:$C,\"G3.\",$F:$F,\"Clinker production in weight\")*IF($F86=\"Customized\",\nIF(_xlfn.XLOOKUP(\"Carbonate sources\",'Customized Process Factors'!$B:$B,'Customized Process Factors'!G:G)=\"\",\"Factor error\",_xlfn.XLOOKUP(\"Carbonate sources\",'Customized Process Factors'!$B:$B,'Customized Process Factors'!G:G)),_xlfn.XLOOKUP(\"Carbonate sources\",'Customized Process Factors'!$B:$B,'Customized Process Factors'!$D:$D,\"No CO2e EF\",0)),\"Factor error\")","v":0},{"$f":"IFERROR(SUMIFS(P:P,$C:$C,\"G3.\",$F:$F,\"Clinker production in weight\")*IF($F86=\"Customized\",\nIF(_xlfn.XLOOKUP(\"Carbonate sources\",'Customized Process Factors'!$B:$B,'Customized Process Factors'!H:H)=\"\",\"Factor error\",_xlfn.XLOOKUP(\"Carbonate sources\",'Customized Process Factors'!$B:$B,'Customized Process Factors'!H:H)),_xlfn.XLOOKUP(\"Carbonate sources\",'Customized Process Factors'!$B:$B,'Customized Process Factors'!$D:$D,\"No CO2e EF\",0)),\"Factor error\")","v":0},{"$f":"IFERROR(SUMIFS(Q:Q,$C:$C,\"G3.\",$F:$F,\"Clinker production in weight\")*IF($F86=\"Customized\",\nIF(_xlfn.XLOOKUP(\"Carbonate sources\",'Customized Process Factors'!$B:$B,'Customized Process Factors'!I:I)=\"\",\"Factor error\",_xlfn.XLOOKUP(\"Carbonate sources\",'Customized Process Factors'!$B:$B,'Customized Process Factors'!I:I)),_xlfn.XLOOKUP(\"Carbonate sources\",'Customized Process Factors'!$B:$B,'Customized Process Factors'!$D:$D,\"No CO2e EF\",0)),\"Factor error\")","v":0},{"$f":"IFERROR(SUMIFS(R:R,$C:$C,\"G3.\",$F:$F,\"Clinker production in weight\")*IF($F86=\"Customized\",\nIF(_xlfn.XLOOKUP(\"Carbonate sources\",'Customized Process Factors'!$B:$B,'Customized Process Factors'!J:J)=\"\",\"Factor error\",_xlfn.XLOOKUP(\"Carbonate sources\",'Customized Process Factors'!$B:$B,'Customized Process Factors'!J:J)),_xlfn.XLOOKUP(\"Carbonate sources\",'Customized Process Factors'!$B:$B,'Customized Process Factors'!$D:$D,\"No CO2e EF\",0)),\"Factor error\")","v":"Factor error"}]
[null,null,null,{"$f":"D86","v":"A3.1.1.1"},".3","CO2e reduction by using non-carbonate sources (alternative of carbonate sources)"]
[null,null,null,null,null,"Adopting CO2e Factors","Non-Carbonate Sources"," weight % of non-carbonate source as a raw material for clinker over total purchased non-carbonate source"]
[null,null,null,{"$f":"D87","v":"A3.1.1.1"},".4",null,null,null,"[refer to \"Customized Process Factors\"]","[t CO2e/reporting period]",0,null,{"$f":"IFERROR(IF(SUMIFS(M:M,$C:$C,\"G4.\",$F:$F,$G89)=0,0,SUMIFS(M:M,$C:$C,\"G4.\",$F:$F,$G89)*$H89*IF($F89=\"Customized\",\nIF(_xlfn.XLOOKUP($G89,'Customized Process Factors'!$B:$B,'Customized Process Factors'!E:E)=\"\",\"Factor error\",_xlfn.XLOOKUP($G89,'Customized Process Factors'!$B:$B,'Customized Process Factors'!E:E)),_xlfn.XLOOKUP($G89,'Customized Process Factors'!$B:$B,'Customized Process Factors'!$D:$D))),\"Factor error\")","v":0},{"$f":"IFERROR(IF(SUMIFS(N:N,$C:$C,\"G4.\",$F:$F,$G89)=0,0,SUMIFS(N:N,$C:$C,\"G4.\",$F:$F,$G89)*$H89*IF($F89=\"Customized\",\nIF(_xlfn.XLOOKUP($G89,'Customized Process Factors'!$B:$B,'Customized Process Factors'!F:F)=\"\",\"Factor error\",_xlfn.XLOOKUP($G89,'Customized Process Factors'!$B:$B,'Customized Process Factors'!F:F)),_xlfn.XLOOKUP($G89,'Customized Process Factors'!$B:$B,'Customized Process Factors'!$D:$D))),\"Factor error\")","v":0},{"$f":"IFERROR(IF(SUMIFS(O:O,$C:$C,\"G4.\",$F:$F,$G89)=0,0,SUMIFS(O:O,$C:$C,\"G4.\",$F:$F,$G89)*$H89*IF($F89=\"Customized\",\nIF(_xlfn.XLOOKUP($G89,'Customized Process Factors'!$B:$B,'Customized Process Factors'!G:G)=\"\",\"Factor error\",_xlfn.XLOOKUP($G89,'Customized Process Factors'!$B:$B,'Customized Process Factors'!G:G)),_xlfn.XLOOKUP($G89,'Customized Process Factors'!$B:$B,'Customized Process Factors'!$D:$D))),\"Factor error\")","v":0},{"$f":"IFERROR(IF(SUMIFS(P:P,$C:$C,\"G4.\",$F:$F,$G89)=0,0,SUMIFS(P:P,$C:$C,\"G4.\",$F:$F,$G89)*$H89*IF($F89=\"Customized\",\nIF(_xlfn.XLOOKUP($G89,'Customized Process Factors'!$B:$B,'Customized Process Factors'!H:H)=\"\",\"Factor error\",_xlfn.XLOOKUP($G89,'Customized Process Factors'!$B:$B,'Customized Process Factors'!H:H)),_xlfn.XLOOKUP($G89,'Customized Process Factors'!$B:$B,'Customized Process Factors'!$D:$D))),\"Factor error\")","v":0},{"$f":"IFERROR(IF(SUMIFS(Q:Q,$C:$C,\"G4.\",$F:$F,$G89)=0,0,SUMIFS(Q:Q,$C:$C,\"G4.\",$F:$F,$G89)*$H89*IF($F89=\"Customized\",\nIF(_xlfn.XLOOKUP($G89,'Customized Process Factors'!$B:$B,'Customized Process Factors'!I:I)=\"\",\"Factor error\",_xlfn.XLOOKUP($G89,'Customized Process Factors'!$B:$B,'Customized Process Factors'!I:I)),_xlfn.XLOOKUP($G89,'Customized Process Factors'!$B:$B,'Customized Process Factors'!$D:$D))),\"Factor error\")","v":0},{"$f":"IFERROR(IF(SUMIFS(R:R,$C:$C,\"G4.\",$F:$F,$G89)=0,0,SUMIFS(R:R,$C:$C,\"G4.\",$F:$F,$G89)*$H89*IF($F89=\"Customized\",\nIF(_xlfn.XLOOKUP($G89,'Customized Process Factors'!$B:$B,'Customized Process Factors'!J:J)=\"\",\"Factor error\",_xlfn.XLOOKUP($G89,'Customized Process Factors'!$B:$B,'Customized Process Factors'!J:J)),_xlfn.XLOOKUP($G89,'Customized Process Factors'!$B:$B,'Customized Process Factors'!$D:$D))),\"Factor error\")","v":0}]
[null,null,null,{"$f":"D89","v":"A3.1.1.1"},".5",null,null,null,"[refer to \"Customized Process Factors\"]","[t CO2e/reporting period]",0,null,{"$f":"IFERROR(IF(SUMIFS(M:M,$C:$C,\"G4.\",$F:$F,$G90)=0,0,SUMIFS(M:M,$C:$C,\"G4.\",$F:$F,$G90)*$H90*IF($F90=\"Customized\",\nIF(_xlfn.XLOOKUP($G90,'Customized Process Factors'!$B:$B,'Customized Process Factors'!E:E)=\"\",\"Factor error\",_xlfn.XLOOKUP($G90,'Customized Process Factors'!$B:$B,'Customized Process Factors'!E:E)),_xlfn.XLOOKUP($G90,'Customized Process Factors'!$B:$B,'Customized Process Factors'!$D:$D))),\"Factor error\")","v":0},{"$f":"IFERROR(IF(SUMIFS(N:N,$C:$C,\"G4.\",$F:$F,$G90)=0,0,SUMIFS(N:N,$C:$C,\"G4.\",$F:$F,$G90)*$H90*IF($F90=\"Customized\",\nIF(_xlfn.XLOOKUP($G90,'Customized Process Factors'!$B:$B,'Customized Process Factors'!F:F)=\"\",\"Factor error\",_xlfn.XLOOKUP($G90,'Customized Process Factors'!$B:$B,'Customized Process Factors'!F:F)),_xlfn.XLOOKUP($G90,'Customized Process Factors'!$B:$B,'Customized Process Factors'!$D:$D))),\"Factor error\")","v":0},{"$f":"IFERROR(IF(SUMIFS(O:O,$C:$C,\"G4.\",$F:$F,$G90)=0,0,SUMIFS(O:O,$C:$C,\"G4.\",$F:$F,$G90)*$H90*IF($F90=\"Customized\",\nIF(_xlfn.XLOOKUP($G90,'Customized Process Factors'!$B:$B,'Customized Process Factors'!G:G)=\"\",\"Factor error\",_xlfn.XLOOKUP($G90,'Customized Process Factors'!$B:$B,'Customized Process Factors'!G:G)),_xlfn.XLOOKUP($G90,'Customized Process Factors'!$B:$B,'Customized Process Factors'!$D:$D))),\"Factor error\")","v":0},{"$f":"IFERROR(IF(SUMIFS(P:P,$C:$C,\"G4.\",$F:$F,$G90)=0,0,SUMIFS(P:P,$C:$C,\"G4.\",$F:$F,$G90)*$H90*IF($F90=\"Customized\",\nIF(_xlfn.XLOOKUP($G90,'Customized Process Factors'!$B:$B,'Customized Process Factors'!H:H)=\"\",\"Factor error\",_xlfn.XLOOKUP($G90,'Customized Process Factors'!$B:$B,'Customized Process Factors'!H:H)),_xlfn.XLOOKUP($G90,'Customized Process Factors'!$B:$B,'Customized Process Factors'!$D:$D))),\"Factor error\")","v":0},{"$f":"IFERROR(IF(SUMIFS(Q:Q,$C:$C,\"G4.\",$F:$F,$G90)=0,0,SUMIFS(Q:Q,$C:$C,\"G4.\",$F:$F,$G90)*$H90*IF($F90=\"Customized\",\nIF(_xlfn.XLOOKUP($G90,'Customized Process Factors'!$B:$B,'Customized Process Factors'!I:I)=\"\",\"Factor error\",_xlfn.XLOOKUP($G90,'Customized Process Factors'!$B:$B,'Customized Process Factors'!I:I)),_xlfn.XLOOKUP($G90,'Customized Process Factors'!$B:$B,'Customized Process Factors'!$D:$D))),\"Factor error\")","v":0},{"$f":"IFERROR(IF(SUMIFS(R:R,$C:$C,\"G4.\",$F:$F,$G90)=0,0,SUMIFS(R:R,$C:$C,\"G4.\",$F:$F,$G90)*$H90*IF($F90=\"Customized\",\nIF(_xlfn.XLOOKUP($G90,'Customized Process Factors'!$B:$B,'Customized Process Factors'!J:J)=\"\",\"Factor error\",_xlfn.XLOOKUP($G90,'Customized Process Factors'!$B:$B,'Customized Process Factors'!J:J)),_xlfn.XLOOKUP($G90,'Customized Process Factors'!$B:$B,'Customized Process Factors'!$D:$D))),\"Factor error\")","v":0}]
[null,null,null,{"$f":"C82","v":"A3.1.1"},".2","CO2e from calcination of cement kiln dust (CKD) and bypass dust ",null,null,null,null,0,null,{"$f":"SUMIF($D:$D,$D93,M:M)","v":0},0,0,0,0,0]
[null,null,null,null,null,"Dust production"]
[null,null,null,{"$f":"D91&E91","v":"A3.1.1.2"},".1","Cement kiln dust leaving the kiln system in weight",null,null,null,"[t/reporting period, dry weight]",null,null,{"$f":"IFERROR($K93*M$25,0)","v":0},{"$f":"IFERROR($K93*N$25,0)","v":0},{"$f":"IFERROR($K93*O$25,0)","v":0},0,0,0]
[null,null,null,{"$f":"D93","v":"A3.1.1.2"},".2","Bypass dust leaving kiln system in weight",null,null,null,"[t/reporting period, dry weight]",null,null,{"$f":"IFERROR($K94*M$25,0)","v":0},0,0,0,0,0]
[null,null,null,{"$f":"D94","v":"A3.1.1.2"},".3","CO2e from calcination of cement kiln dust (CKD)",null,null,null,"[t CO2e/reporting period]",{"$f":"SUM(M95:R95)","v":0},null,{"$f":"IF(SUMIFS(M:M,$F:$F,\"Cement kiln dust leaving the kiln system in weight\")=0,M$83*0.02,SUMIFS(M:M,$F:$F,\"Cement kiln dust leaving the kiln system in weight\")*(_xlfn.XLOOKUP(\"Carbonate sources\",'Customized Process Factors'!$B:$B,'Customized Process Factors'!$D:$D)/(1+_xlfn.XLOOKUP(\"Carbonate sources\",'Customized Process Factors'!$B:$B,'Customized Process Factors'!$D:$D))*$G96)/(1-(_xlfn.XLOOKUP(\"Carbonate sources\",'Customized Process Factors'!$B:$B,'Customized Process Factors'!$D:$D)/(1+_xlfn.XLOOKUP(\"Carbonate sources\",'Customized Process Factors'!$B:$B,'Customized Process Factors'!$D:$D))*$G96)))","v":0},{"$f":"IF(SUMIFS(N:N,$F:$F,\"Cement kiln dust leaving the kiln system in weight\")=0,N$83*0.02,SUMIFS(N:N,$F:$F,\"Cement kiln dust leaving the kiln system in weight\")*(_xlfn.XLOOKUP(\"Carbonate sources\",'Customized Process Factors'!$B:$B,'Customized Process Factors'!$D:$D)/(1+_xlfn.XLOOKUP(\"Carbonate sources\",'Customized Process Factors'!$B:$B,'Customized Process Factors'!$D:$D))*$G96)/(1-(_xlfn.XLOOKUP(\"Carbonate sources\",'Customized Process Factors'!$B:$B,'Customized Process Factors'!$D:$D)/(1+_xlfn.XLOOKUP(\"Carbonate sources\",'Customized Process Factors'!$B:$B,'Customized Process Factors'!$D:$D))*$G96)))","v":0},{"$f":"IF(SUMIFS(O:O,$F:$F,\"Cement kiln dust leaving the kiln system in weight\")=0,O$83*0.02,SUMIFS(O:O,$F:$F,\"Cement kiln dust leaving the kiln system in weight\")*(_xlfn.XLOOKUP(\"Carbonate sources\",'Customized Process Factors'!$B:$B,'Customized Process Factors'!$D:$D)/(1+_xlfn.XLOOKUP(\"Carbonate sources\",'Customized Process Factors'!$B:$B,'Customized Process Factors'!$D:$D))*$G96)/(1-(_xlfn.XLOOKUP(\"Carbonate sources\",'Customized Process Factors'!$B:$B,'Customized Process Factors'!$D:$D)/(1+_xlfn.XLOOKUP(\"Carbonate sources\",'Customized Process Factors'!$B:$B,'Customized Process Factors'!$D:$D))*$G96)))","v":0},{"$f":"IF(SUMIFS(P:P,$F:$F,\"Cement kiln dust leaving the kiln system in weight\")=0,P$83*0.02,SUMIFS(P:P,$F:$F,\"Cement kiln dust leaving the kiln system in weight\")*(_xlfn.XLOOKUP(\"Carbonate sources\",'Customized Process Factors'!$B:$B,'Customized Process Factors'!$D:$D)/(1+_xlfn.XLOOKUP(\"Carbonate sources\",'Customized Process Factors'!$B:$B,'Customized Process Factors'!$D:$D))*$G96)/(1-(_xlfn.XLOOKUP(\"Carbonate sources\",'Customized Process Factors'!$B:$B,'Customized Process Factors'!$D:$D)/(1+_xlfn.XLOOKUP(\"Carbonate sources\",'Customized Process Factors'!$B:$B,'Customized Process Factors'!$D:$D))*$G96)))","v":0},{"$f":"IF(SUMIFS(Q:Q,$F:$F,\"Cement kiln dust leaving the kiln system in weight\")=0,Q$83*0.02,SUMIFS(Q:Q,$F:$F,\"Cement kiln dust leaving the kiln system in weight\")*(_xlfn.XLOOKUP(\"Carbonate sources\",'Customized Process Factors'!$B:$B,'Customized Process Factors'!$D:$D)/(1+_xlfn.XLOOKUP(\"Carbonate sources\",'Customized Process Factors'!$B:$B,'Customized Process Factors'!$D:$D))*$G96)/(1-(_xlfn.XLOOKUP(\"Carbonate sources\",'Customized Process Factors'!$B:$B,'Customized Process Factors'!$D:$D)/(1+_xlfn.XLOOKUP(\"Carbonate sources\",'Customized Process Factors'!$B:$B,'Customized Process Factors'!$D:$D))*$G96)))","v":0},{"$f":"IF(SUMIFS(R:R,$F:$F,\"Cement kiln dust leaving the kiln system in weight\")=0,R$83*0.02,SUMIFS(R:R,$F:$F,\"Cement kiln dust leaving the kiln system in weight\")*(_xlfn.XLOOKUP(\"Carbonate sources\",'Customized Process Factors'!$B:$B,'Customized Process Factors'!$D:$D)/(1+_xlfn.XLOOKUP(\"Carbonate sources\",'Customized Process Factors'!$B:$B,'Customized Process Factors'!$D:$D))*$G96)/(1-(_xlfn.XLOOKUP(\"Carbonate sources\",'Customized Process Factors'!$B:$B,'Customized Process Factors'!$D:$D)/(1+_xlfn.XLOOKUP(\"Carbonate sources\",'Customized Process Factors'!$B:$B,'Customized Process Factors'!$D:$D))*$G96)))","v":0}]
[null,null,null,null,null,"Default calcination rate:",1]
[null,null,null,{"$f":"D95","v":"A3.1.1.2"},".4","CO2e from calcination of bypass dust",null,null,null,"[t CO2e/reporting period]",{"$f":"SUM(M97:R97)","v":0},null,{"$f":"IF(SUMIFS(M:M,$F:$F,\"Bypass dust leaving kiln system in weight\")=0,M$83*0.02,SUMIFS(M:M,$F:$F,\"Bypass dust leaving kiln system in weight\")*(_xlfn.XLOOKUP(\"Carbonate sources\",'Customized Process Factors'!$B:$B,'Customized Process Factors'!$D:$D)))","v":0},{"$f":"IF(SUMIFS(N:N,$F:$F,\"Bypass dust leaving kiln system in weight\")=0,N$83*0.02,SUMIFS(N:N,$F:$F,\"Bypass dust leaving kiln system in weight\")*(_xlfn.XLOOKUP(\"Carbonate sources\",'Customized Process Factors'!$B:$B,'Customized Process Factors'!$D:$D)))","v":0},{"$f":"IF(SUMIFS(O:O,$F:$F,\"Bypass dust leaving kiln system in weight\")=0,O$83*0.02,SUMIFS(O:O,$F:$F,\"Bypass dust leaving kiln system in weight\")*(_xlfn.XLOOKUP(\"Carbonate sources\",'Customized Process Factors'!$B:$B,'Customized Process Factors'!$D:$D)))","v":0},{"$f":"IF(SUMIFS(P:P,$F:$F,\"Bypass dust leaving kiln system in weight\")=0,P$83*0.02,SUMIFS(P:P,$F:$F,\"Bypass dust leaving kiln system in weight\")*(_xlfn.XLOOKUP(\"Carbonate sources\",'Customized Process Factors'!$B:$B,'Customized Process Factors'!$D:$D)))","v":0},{"$f":"IF(SUMIFS(Q:Q,$F:$F,\"Bypass dust leaving kiln system in weight\")=0,Q$83*0.02,SUMIFS(Q:Q,$F:$F,\"Bypass dust leaving kiln system in weight\")*(_xlfn.XLOOKUP(\"Carbonate sources\",'Customized Process Factors'!$B:$B,'Customized Process Factors'!$D:$D)))","v":0},{"$f":"IF(SUMIFS(R:R,$F:$F,\"Bypass dust leaving kiln system in weight\")=0,R$83*0.02,SUMIFS(R:R,$F:$F,\"Bypass dust leaving kiln system in weight\")*(_xlfn.XLOOKUP(\"Carbonate sources\",'Customized Process Factors'!$B:$B,'Customized Process Factors'!$D:$D)))","v":0}]
[null,null,null,{"$f":"C82","v":"A3.1.1"},"3","CO2e from combustion of total organic carbon (TOC) contained in raw materials",null,null,null,null,{"$f":"SUM(M98:R98)","v":0},null,{"$f":"SUMIFS(M:M,$C:$C,\"G3.\",$F:$F,\"Clinker production in weight\")*$G99*$G100*44/12","v":0},{"$f":"SUMIFS(N:N,$C:$C,\"G3.\",$F:$F,\"Clinker production in weight\")*$G99*$G100*44/12","v":0},{"$f":"SUMIFS(O:O,$C:$C,\"G3.\",$F:$F,\"Clinker production in weight\")*$G99*$G100*44/12","v":0},0,0,0]
[null,null,null,null,null,"Default raw meal to clinker ratio:",1.55]
[null,null,null,null,null,"Default TOC content of raw meal:",2E-3,"corresponding to 2 kg/t raw meal "]
[null,null,"A3.1.2",null,null,"CO2e from product manufacturing (stationary combustion sources)",null,null,null,"[t CO2e/reporting period]",0,null,{"$f":"SUMIF($D:$D,$C101,M:M)","v":0},0,0,0,0,0]
[null,null,null,null,null,"Adopting CO2e Factors ","Adopting LHV Factors ","[Please insert additional rows if more energy commodities are included]"]
[null,null,null,{"$f":"C101","v":"A3.1.2"},".1",null,null,null,null,"[t CO2e/reporting period]",{"$f":"SUM(M103:R103)","v":0},null,{"$f":"IFERROR(SUMIFS(M:M,$D:$D,$D39,$I:$I,$H103)*IF($G103=\"Customized\",\nIF(_xlfn.XLOOKUP($H103,'Customized Fuel LHV'!$B:$B,'Customized Fuel LHV'!E:E,\"No LHV\",0)=\"\",\"Factor error\",_xlfn.XLOOKUP($H103,'Customized Fuel LHV'!$B:$B,'Customized Fuel LHV'!E:E,\"No LHV\",0)),_xlfn.XLOOKUP($H103,'Customized Fuel LHV'!$B:$B,'Customized Fuel LHV'!$D:$D,\"No LHV\",0))\n*IF($F103=\"Customized\",IF(_xlfn.XLOOKUP($H103,'Customized Fuel EF'!$B:$B,'Customized Fuel EF'!E:E,\"No EF\",0)=\"\",\"Factor error\",_xlfn.XLOOKUP($H103,'Customized Fuel EF'!$B:$B,'Customized Fuel EF'!E:E,\"No EF\",0)),_xlfn.XLOOKUP($H103,'Customized Fuel EF'!$B:$B,'Customized Fuel EF'!$D:$D,\"No EF\",0))/1000,\"Factor error\")","v":0},{"$f":"IFERROR(SUMIFS(N:N,$D:$D,$D39,$I:$I,$H103)*IF($G103=\"Customized\",\nIF(_xlfn.XLOOKUP($H103,'Customized Fuel LHV'!$B:$B,'Customized Fuel LHV'!F:F,\"No LHV\",0)=\"\",\"Factor error\",_xlfn.XLOOKUP($H103,'Customized Fuel LHV'!$B:$B,'Customized Fuel LHV'!F:F,\"No LHV\",0)),_xlfn.XLOOKUP($H103,'Customized Fuel LHV'!$B:$B,'Customized Fuel LHV'!$D:$D,\"No LHV\",0))\n*IF($F103=\"Customized\",IF(_xlfn.XLOOKUP($H103,'Customized Fuel EF'!$B:$B,'Customized Fuel EF'!F:F,\"No EF\",0)=\"\",\"Factor error\",_xlfn.XLOOKUP($H103,'Customized Fuel EF'!$B:$B,'Customized Fuel EF'!F:F,\"No EF\",0)),_xlfn.XLOOKUP($H103,'Customized Fuel EF'!$B:$B,'Customized Fuel EF'!$D:$D,\"No EF\",0))/1000,\"Factor error\")","v":0},{"$f":"IFERROR(SUMIFS(O:O,$D:$D,$D39,$I:$I,$H103)*IF($G103=\"Customized\",\nIF(_xlfn.XLOOKUP($H103,'Customized Fuel LHV'!$B:$B,'Customized Fuel LHV'!G:G,\"No LHV\",0)=\"\",\"Factor error\",_xlfn.XLOOKUP($H103,'Customized Fuel LHV'!$B:$B,'Customized Fuel LHV'!G:G,\"No LHV\",0)),_xlfn.XLOOKUP($H103,'Customized Fuel LHV'!$B:$B,'Customized Fuel LHV'!$D:$D,\"No LHV\",0))\n*IF($F103=\"Customized\",IF(_xlfn.XLOOKUP($H103,'Customized Fuel EF'!$B:$B,'Customized Fuel EF'!G:G,\"No EF\",0)=\"\",\"Factor error\",_xlfn.XLOOKUP($H103,'Customized Fuel EF'!$B:$B,'Customized Fuel EF'!G:G,\"No EF\",0)),_xlfn.XLOOKUP($H103,'Customized Fuel EF'!$B:$B,'Customized Fuel EF'!$D:$D,\"No EF\",0))/1000,\"Factor error\")","v":0},{"$f":"IFERROR(SUMIFS(P:P,$D:$D,$D39,$I:$I,$H103)*IF($G103=\"Customized\",\nIF(_xlfn.XLOOKUP($H103,'Customized Fuel LHV'!$B:$B,'Customized Fuel LHV'!H:H,\"No LHV\",0)=\"\",\"Factor error\",_xlfn.XLOOKUP($H103,'Customized Fuel LHV'!$B:$B,'Customized Fuel LHV'!H:H,\"No LHV\",0)),_xlfn.XLOOKUP($H103,'Customized Fuel LHV'!$B:$B,'Customized Fuel LHV'!$D:$D,\"No LHV\",0))\n*IF($F103=\"Customized\",IF(_xlfn.XLOOKUP($H103,'Customized Fuel EF'!$B:$B,'Customized Fuel EF'!H:H,\"No EF\",0)=\"\",\"Factor error\",_xlfn.XLOOKUP($H103,'Customized Fuel EF'!$B:$B,'Customized Fuel EF'!H:H,\"No EF\",0)),_xlfn.XLOOKUP($H103,'Customized Fuel EF'!$B:$B,'Customized Fuel EF'!$D:$D,\"No EF\",0))/1000,\"Factor error\")","v":0},{"$f":"IFERROR(SUMIFS(Q:Q,$D:$D,$D39,$I:$I,$H103)*IF($G103=\"Customized\",\nIF(_xlfn.XLOOKUP($H103,'Customized Fuel LHV'!$B:$B,'Customized Fuel LHV'!I:I,\"No LHV\",0)=\"\",\"Factor error\",_xlfn.XLOOKUP($H103,'Customized Fuel LHV'!$B:$B,'Customized Fuel LHV'!I:I,\"No LHV\",0)),_xlfn.XLOOKUP($H103,'Customized Fuel LHV'!$B:$B,'Customized Fuel LHV'!$D:$D,\"No LHV\",0))\n*IF($F103=\"Customized\",IF(_xlfn.XLOOKUP($H103,'Customized Fuel EF'!$B:$B,'Customized Fuel EF'!I:I,\"No EF\",0)=\"\",\"Factor error\",_xlfn.XLOOKUP($H103,'Customized Fuel EF'!$B:$B,'Customized Fuel EF'!I:I,\"No EF\",0)),_xlfn.XLOOKUP($H103,'Customized Fuel EF'!$B:$B,'Customized Fuel EF'!$D:$D,\"No EF\",0))/1000,\"Factor error\")","v":0},{"$f":"IFERROR(SUMIFS(R:R,$D:$D,$D39,$I:$I,$H103)*IF($G103=\"Customized\",\nIF(_xlfn.XLOOKUP($H103,'Customized Fuel LHV'!$B:$B,'Customized Fuel LHV'!J:J,\"No LHV\",0)=\"\",\"Factor error\",_xlfn.XLOOKUP($H103,'Customized Fuel LHV'!$B:$B,'Customized Fuel LHV'!J:J,\"No LHV\",0)),_xlfn.XLOOKUP($H103,'Customized Fuel LHV'!$B:$B,'Customized Fuel LHV'!$D:$D,\"No LHV\",0))\n*IF($F103=\"Customized\",IF(_xlfn.XLOOKUP($H103,'Customized Fuel EF'!$B:$B,'Customized Fuel EF'!J:J,\"No EF\",0)=\"\",\"Factor error\",_xlfn.XLOOKUP($H103,'Customized Fuel EF'!$B:$B,'Customized Fuel EF'!J:J,\"No EF\",0)),_xlfn.XLOOKUP($H103,'Customized Fuel EF'!$B:$B,'Customized Fuel EF'!$D:$D,\"No EF\",0))/1000,\"Factor error\")","v":"Factor error"}]
[null,null,null,{"$f":"D103","v":"A3.1.2"},".2",null,null,null,null,"[t CO2e/reporting period]",{"$f":"SUM(M104:R104)","v":0},null,{"$f":"IFERROR(SUMIFS(M:M,$D:$D,$D40,$I:$I,$H104)*IF($G104=\"Customized\",\nIF(_xlfn.XLOOKUP($H104,'Customized Fuel LHV'!$B:$B,'Customized Fuel LHV'!E:E,\"No LHV\",0)=\"\",\"Factor error\",_xlfn.XLOOKUP($H104,'Customized Fuel LHV'!$B:$B,'Customized Fuel LHV'!E:E,\"No LHV\",0)),_xlfn.XLOOKUP($H104,'Customized Fuel LHV'!$B:$B,'Customized Fuel LHV'!$D:$D,\"No LHV\",0))\n*IF($F104=\"Customized\",IF(_xlfn.XLOOKUP($H104,'Customized Fuel EF'!$B:$B,'Customized Fuel EF'!E:E,\"No EF\",0)=\"\",\"Factor error\",_xlfn.XLOOKUP($H104,'Customized Fuel EF'!$B:$B,'Customized Fuel EF'!E:E,\"No EF\",0)),_xlfn.XLOOKUP($H104,'Customized Fuel EF'!$B:$B,'Customized Fuel EF'!$D:$D,\"No EF\",0))/1000,\"Factor error\")","v":0},{"$f":"IFERROR(SUMIFS(N:N,$D:$D,$D40,$I:$I,$H104)*IF($G104=\"Customized\",\nIF(_xlfn.XLOOKUP($H104,'Customized Fuel LHV'!$B:$B,'Customized Fuel LHV'!F:F,\"No LHV\",0)=\"\",\"Factor error\",_xlfn.XLOOKUP($H104,'Customized Fuel LHV'!$B:$B,'Customized Fuel LHV'!F:F,\"No LHV\",0)),_xlfn.XLOOKUP($H104,'Customized Fuel LHV'!$B:$B,'Customized Fuel LHV'!$D:$D,\"No LHV\",0))\n*IF($F104=\"Customized\",IF(_xlfn.XLOOKUP($H104,'Customized Fuel EF'!$B:$B,'Customized Fuel EF'!F:F,\"No EF\",0)=\"\",\"Factor error\",_xlfn.XLOOKUP($H104,'Customized Fuel EF'!$B:$B,'Customized Fuel EF'!F:F,\"No EF\",0)),_xlfn.XLOOKUP($H104,'Customized Fuel EF'!$B:$B,'Customized Fuel EF'!$D:$D,\"No EF\",0))/1000,\"Factor error\")","v":0},{"$f":"IFERROR(SUMIFS(O:O,$D:$D,$D40,$I:$I,$H104)*IF($G104=\"Customized\",\nIF(_xlfn.XLOOKUP($H104,'Customized Fuel LHV'!$B:$B,'Customized Fuel LHV'!G:G,\"No LHV\",0)=\"\",\"Factor error\",_xlfn.XLOOKUP($H104,'Customized Fuel LHV'!$B:$B,'Customized Fuel LHV'!G:G,\"No LHV\",0)),_xlfn.XLOOKUP($H104,'Customized Fuel LHV'!$B:$B,'Customized Fuel LHV'!$D:$D,\"No LHV\",0))\n*IF($F104=\"Customized\",IF(_xlfn.XLOOKUP($H104,'Customized Fuel EF'!$B:$B,'Customized Fuel EF'!G:G,\"No EF\",0)=\"\",\"Factor error\",_xlfn.XLOOKUP($H104,'Customized Fuel EF'!$B:$B,'Customized Fuel EF'!G:G,\"No EF\",0)),_xlfn.XLOOKUP($H104,'Customized Fuel EF'!$B:$B,'Customized Fuel EF'!$D:$D,\"No EF\",0))/1000,\"Factor error\")","v":0},{"$f":"IFERROR(SUMIFS(P:P,$D:$D,$D40,$I:$I,$H104)*IF($G104=\"Customized\",\nIF(_xlfn.XLOOKUP($H104,'Customized Fuel LHV'!$B:$B,'Customized Fuel LHV'!H:H,\"No LHV\",0)=\"\",\"Factor error\",_xlfn.XLOOKUP($H104,'Customized Fuel LHV'!$B:$B,'Customized Fuel LHV'!H:H,\"No LHV\",0)),_xlfn.XLOOKUP($H104,'Customized Fuel LHV'!$B:$B,'Customized Fuel LHV'!$D:$D,\"No LHV\",0))\n*IF($F104=\"Customized\",IF(_xlfn.XLOOKUP($H104,'Customized Fuel EF'!$B:$B,'Customized Fuel EF'!H:H,\"No EF\",0)=\"\",\"Factor error\",_xlfn.XLOOKUP($H104,'Customized Fuel EF'!$B:$B,'Customized Fuel EF'!H:H,\"No EF\",0)),_xlfn.XLOOKUP($H104,'Customized Fuel EF'!$B:$B,'Customized Fuel EF'!$D:$D,\"No EF\",0))/1000,\"Factor error\")","v":0},{"$f":"IFERROR(SUMIFS(Q:Q,$D:$D,$D40,$I:$I,$H104)*IF($G104=\"Customized\",\nIF(_xlfn.XLOOKUP($H104,'Customized Fuel LHV'!$B:$B,'Customized Fuel LHV'!I:I,\"No LHV\",0)=\"\",\"Factor error\",_xlfn.XLOOKUP($H104,'Customized Fuel LHV'!$B:$B,'Customized Fuel LHV'!I:I,\"No LHV\",0)),_xlfn.XLOOKUP($H104,'Customized Fuel LHV'!$B:$B,'Customized Fuel LHV'!$D:$D,\"No LHV\",0))\n*IF($F104=\"Customized\",IF(_xlfn.XLOOKUP($H104,'Customized Fuel EF'!$B:$B,'Customized Fuel EF'!I:I,\"No EF\",0)=\"\",\"Factor error\",_xlfn.XLOOKUP($H104,'Customized Fuel EF'!$B:$B,'Customized Fuel EF'!I:I,\"No EF\",0)),_xlfn.XLOOKUP($H104,'Customized Fuel EF'!$B:$B,'Customized Fuel EF'!$D:$D,\"No EF\",0))/1000,\"Factor error\")","v":0},{"$f":"IFERROR(SUMIFS(R:R,$D:$D,$D40,$I:$I,$H104)*IF($G104=\"Customized\",\nIF(_xlfn.XLOOKUP($H104,'Customized Fuel LHV'!$B:$B,'Customized Fuel LHV'!J:J,\"No LHV\",0)=\"\",\"Factor error\",_xlfn.XLOOKUP($H104,'Customized Fuel LHV'!$B:$B,'Customized Fuel LHV'!J:J,\"No LHV\",0)),_xlfn.XLOOKUP($H104,'Customized Fuel LHV'!$B:$B,'Customized Fuel LHV'!$D:$D,\"No LHV\",0))\n*IF($F104=\"Customized\",IF(_xlfn.XLOOKUP($H104,'Customized Fuel EF'!$B:$B,'Customized Fuel EF'!J:J,\"No EF\",0)=\"\",\"Factor error\",_xlfn.XLOOKUP($H104,'Customized Fuel EF'!$B:$B,'Customized Fuel EF'!J:J,\"No EF\",0)),_xlfn.XLOOKUP($H104,'Customized Fuel EF'!$B:$B,'Customized Fuel EF'!$D:$D,\"No EF\",0))/1000,\"Factor error\")","v":"Factor error"}]
[null,null,null,{"$f":"D104","v":"A3.1.2"},".3",null,null,null,null,"[t CO2e/reporting period]",0,null,{"$f":"IFERROR(SUMIFS(M:M,$D:$D,$D41,$I:$I,$H105)*IF($G105=\"Customized\",\nIF(_xlfn.XLOOKUP($H105,'Customized Fuel LHV'!$B:$B,'Customized Fuel LHV'!E:E,\"No LHV\",0)=\"\",\"Factor error\",_xlfn.XLOOKUP($H105,'Customized Fuel LHV'!$B:$B,'Customized Fuel LHV'!E:E,\"No LHV\",0)),_xlfn.XLOOKUP($H105,'Customized Fuel LHV'!$B:$B,'Customized Fuel LHV'!$D:$D,\"No LHV\",0))\n*IF($F105=\"Customized\",IF(_xlfn.XLOOKUP($H105,'Customized Fuel EF'!$B:$B,'Customized Fuel EF'!E:E,\"No EF\",0)=\"\",\"Factor error\",_xlfn.XLOOKUP($H105,'Customized Fuel EF'!$B:$B,'Customized Fuel EF'!E:E,\"No EF\",0)),_xlfn.XLOOKUP($H105,'Customized Fuel EF'!$B:$B,'Customized Fuel EF'!$D:$D,\"No EF\",0))/1000,\"Factor error\")","v":0},{"$f":"IFERROR(SUMIFS(N:N,$D:$D,$D41,$I:$I,$H105)*IF($G105=\"Customized\",\nIF(_xlfn.XLOOKUP($H105,'Customized Fuel LHV'!$B:$B,'Customized Fuel LHV'!F:F,\"No LHV\",0)=\"\",\"Factor error\",_xlfn.XLOOKUP($H105,'Customized Fuel LHV'!$B:$B,'Customized Fuel LHV'!F:F,\"No LHV\",0)),_xlfn.XLOOKUP($H105,'Customized Fuel LHV'!$B:$B,'Customized Fuel LHV'!$D:$D,\"No LHV\",0))\n*IF($F105=\"Customized\",IF(_xlfn.XLOOKUP($H105,'Customized Fuel EF'!$B:$B,'Customized Fuel EF'!F:F,\"No EF\",0)=\"\",\"Factor error\",_xlfn.XLOOKUP($H105,'Customized Fuel EF'!$B:$B,'Customized Fuel EF'!F:F,\"No EF\",0)),_xlfn.XLOOKUP($H105,'Customized Fuel EF'!$B:$B,'Customized Fuel EF'!$D:$D,\"No EF\",0))/1000,\"Factor error\")","v":0},{"$f":"IFERROR(SUMIFS(O:O,$D:$D,$D41,$I:$I,$H105)*IF($G105=\"Customized\",\nIF(_xlfn.XLOOKUP($H105,'Customized Fuel LHV'!$B:$B,'Customized Fuel LHV'!G:G,\"No LHV\",0)=\"\",\"Factor error\",_xlfn.XLOOKUP($H105,'Customized Fuel LHV'!$B:$B,'Customized Fuel LHV'!G:G,\"No LHV\",0)),_xlfn.XLOOKUP($H105,'Customized Fuel LHV'!$B:$B,'Customized Fuel LHV'!$D:$D,\"No LHV\",0))\n*IF($F105=\"Customized\",IF(_xlfn.XLOOKUP($H105,'Customized Fuel EF'!$B:$B,'Customized Fuel EF'!G:G,\"No EF\",0)=\"\",\"Factor error\",_xlfn.XLOOKUP($H105,'Customized Fuel EF'!$B:$B,'Customized Fuel EF'!G:G,\"No EF\",0)),_xlfn.XLOOKUP($H105,'Customized Fuel EF'!$B:$B,'Customized Fuel EF'!$D:$D,\"No EF\",0))/1000,\"Factor error\")","v":0},{"$f":"IFERROR(SUMIFS(P:P,$D:$D,$D41,$I:$I,$H105)*IF($G105=\"Customized\",\nIF(_xlfn.XLOOKUP($H105,'Customized Fuel LHV'!$B:$B,'Customized Fuel LHV'!H:H,\"No LHV\",0)=\"\",\"Factor error\",_xlfn.XLOOKUP($H105,'Customized Fuel LHV'!$B:$B,'Customized Fuel LHV'!H:H,\"No LHV\",0)),_xlfn.XLOOKUP($H105,'Customized Fuel LHV'!$B:$B,'Customized Fuel LHV'!$D:$D,\"No LHV\",0))\n*IF($F105=\"Customized\",IF(_xlfn.XLOOKUP($H105,'Customized Fuel EF'!$B:$B,'Customized Fuel EF'!H:H,\"No EF\",0)=\"\",\"Factor error\",_xlfn.XLOOKUP($H105,'Customized Fuel EF'!$B:$B,'Customized Fuel EF'!H:H,\"No EF\",0)),_xlfn.XLOOKUP($H105,'Customized Fuel EF'!$B:$B,'Customized Fuel EF'!$D:$D,\"No EF\",0))/1000,\"Factor error\")","v":0},{"$f":"IFERROR(SUMIFS(Q:Q,$D:$D,$D41,$I:$I,$H105)*IF($G105=\"Customized\",\nIF(_xlfn.XLOOKUP($H105,'Customized Fuel LHV'!$B:$B,'Customized Fuel LHV'!I:I,\"No LHV\",0)=\"\",\"Factor error\",_xlfn.XLOOKUP($H105,'Customized Fuel LHV'!$B:$B,'Customized Fuel LHV'!I:I,\"No LHV\",0)),_xlfn.XLOOKUP($H105,'Customized Fuel LHV'!$B:$B,'Customized Fuel LHV'!$D:$D,\"No LHV\",0))\n*IF($F105=\"Customized\",IF(_xlfn.XLOOKUP($H105,'Customized Fuel EF'!$B:$B,'Customized Fuel EF'!I:I,\"No EF\",0)=\"\",\"Factor error\",_xlfn.XLOOKUP($H105,'Customized Fuel EF'!$B:$B,'Customized Fuel EF'!I:I,\"No EF\",0)),_xlfn.XLOOKUP($H105,'Customized Fuel EF'!$B:$B,'Customized Fuel EF'!$D:$D,\"No EF\",0))/1000,\"Factor error\")","v":0},{"$f":"IFERROR(SUMIFS(R:R,$D:$D,$D41,$I:$I,$H105)*IF($G105=\"Customized\",\nIF(_xlfn.XLOOKUP($H105,'Customized Fuel LHV'!$B:$B,'Customized Fuel LHV'!J:J,\"No LHV\",0)=\"\",\"Factor error\",_xlfn.XLOOKUP($H105,'Customized Fuel LHV'!$B:$B,'Customized Fuel LHV'!J:J,\"No LHV\",0)),_xlfn.XLOOKUP($H105,'Customized Fuel LHV'!$B:$B,'Customized Fuel LHV'!$D:$D,\"No LHV\",0))\n*IF($F105=\"Customized\",IF(_xlfn.XLOOKUP($H105,'Customized Fuel EF'!$B:$B,'Customized Fuel EF'!J:J,\"No EF\",0)=\"\",\"Factor error\",_xlfn.XLOOKUP($H105,'Customized Fuel EF'!$B:$B,'Customized Fuel EF'!J:J,\"No EF\",0)),_xlfn.XLOOKUP($H105,'Customized Fuel EF'!$B:$B,'Customized Fuel EF'!$D:$D,\"No EF\",0))/1000,\"Factor error\")","v":"Factor error"}]
[null,null,null,{"$f":"C101","v":"A3.1.2"},".4",null,null,null,null,"[t CO2e/reporting period]",{"$f":"SUM(M106:R106)","v":0},null,{"$f":"IFERROR(SUMIFS(M:M,$D:$D,$D42,$I:$I,$H106)*IF($G106=\"Customized\",\nIF(_xlfn.XLOOKUP($H106,'Customized Fuel LHV'!$B:$B,'Customized Fuel LHV'!E:E,\"No LHV\",0)=\"\",\"Factor error\",_xlfn.XLOOKUP($H106,'Customized Fuel LHV'!$B:$B,'Customized Fuel LHV'!E:E,\"No LHV\",0)),_xlfn.XLOOKUP($H106,'Customized Fuel LHV'!$B:$B,'Customized Fuel LHV'!$D:$D,\"No LHV\",0))\n*IF($F106=\"Customized\",IF(_xlfn.XLOOKUP($H106,'Customized Fuel EF'!$B:$B,'Customized Fuel EF'!E:E,\"No EF\",0)=\"\",\"Factor error\",_xlfn.XLOOKUP($H106,'Customized Fuel EF'!$B:$B,'Customized Fuel EF'!E:E,\"No EF\",0)),_xlfn.XLOOKUP($H106,'Customized Fuel EF'!$B:$B,'Customized Fuel EF'!$D:$D,\"No EF\",0))/1000,\"Factor error\")","v":0},{"$f":"IFERROR(SUMIFS(N:N,$D:$D,$D42,$I:$I,$H106)*IF($G106=\"Customized\",\nIF(_xlfn.XLOOKUP($H106,'Customized Fuel LHV'!$B:$B,'Customized Fuel LHV'!F:F,\"No LHV\",0)=\"\",\"Factor error\",_xlfn.XLOOKUP($H106,'Customized Fuel LHV'!$B:$B,'Customized Fuel LHV'!F:F,\"No LHV\",0)),_xlfn.XLOOKUP($H106,'Customized Fuel LHV'!$B:$B,'Customized Fuel LHV'!$D:$D,\"No LHV\",0))\n*IF($F106=\"Customized\",IF(_xlfn.XLOOKUP($H106,'Customized Fuel EF'!$B:$B,'Customized Fuel EF'!F:F,\"No EF\",0)=\"\",\"Factor error\",_xlfn.XLOOKUP($H106,'Customized Fuel EF'!$B:$B,'Customized Fuel EF'!F:F,\"No EF\",0)),_xlfn.XLOOKUP($H106,'Customized Fuel EF'!$B:$B,'Customized Fuel EF'!$D:$D,\"No EF\",0))/1000,\"Factor error\")","v":0},{"$f":"IFERROR(SUMIFS(O:O,$D:$D,$D42,$I:$I,$H106)*IF($G106=\"Customized\",\nIF(_xlfn.XLOOKUP($H106,'Customized Fuel LHV'!$B:$B,'Customized Fuel LHV'!G:G,\"No LHV\",0)=\"\",\"Factor error\",_xlfn.XLOOKUP($H106,'Customized Fuel LHV'!$B:$B,'Customized Fuel LHV'!G:G,\"No LHV\",0)),_xlfn.XLOOKUP($H106,'Customized Fuel LHV'!$B:$B,'Customized Fuel LHV'!$D:$D,\"No LHV\",0))\n*IF($F106=\"Customized\",IF(_xlfn.XLOOKUP($H106,'Customized Fuel EF'!$B:$B,'Customized Fuel EF'!G:G,\"No EF\",0)=\"\",\"Factor error\",_xlfn.XLOOKUP($H106,'Customized Fuel EF'!$B:$B,'Customized Fuel EF'!G:G,\"No EF\",0)),_xlfn.XLOOKUP($H106,'Customized Fuel EF'!$B:$B,'Customized Fuel EF'!$D:$D,\"No EF\",0))/1000,\"Factor error\")","v":0},{"$f":"IFERROR(SUMIFS(P:P,$D:$D,$D42,$I:$I,$H106)*IF($G106=\"Customized\",\nIF(_xlfn.XLOOKUP($H106,'Customized Fuel LHV'!$B:$B,'Customized Fuel LHV'!H:H,\"No LHV\",0)=\"\",\"Factor error\",_xlfn.XLOOKUP($H106,'Customized Fuel LHV'!$B:$B,'Customized Fuel LHV'!H:H,\"No LHV\",0)),_xlfn.XLOOKUP($H106,'Customized Fuel LHV'!$B:$B,'Customized Fuel LHV'!$D:$D,\"No LHV\",0))\n*IF($F106=\"Customized\",IF(_xlfn.XLOOKUP($H106,'Customized Fuel EF'!$B:$B,'Customized Fuel EF'!H:H,\"No EF\",0)=\"\",\"Factor error\",_xlfn.XLOOKUP($H106,'Customized Fuel EF'!$B:$B,'Customized Fuel EF'!H:H,\"No EF\",0)),_xlfn.XLOOKUP($H106,'Customized Fuel EF'!$B:$B,'Customized Fuel EF'!$D:$D,\"No EF\",0))/1000,\"Factor error\")","v":0},{"$f":"IFERROR(SUMIFS(Q:Q,$D:$D,$D42,$I:$I,$H106)*IF($G106=\"Customized\",\nIF(_xlfn.XLOOKUP($H106,'Customized Fuel LHV'!$B:$B,'Customized Fuel LHV'!I:I,\"No LHV\",0)=\"\",\"Factor error\",_xlfn.XLOOKUP($H106,'Customized Fuel LHV'!$B:$B,'Customized Fuel LHV'!I:I,\"No LHV\",0)),_xlfn.XLOOKUP($H106,'Customized Fuel LHV'!$B:$B,'Customized Fuel LHV'!$D:$D,\"No LHV\",0))\n*IF($F106=\"Customized\",IF(_xlfn.XLOOKUP($H106,'Customized Fuel EF'!$B:$B,'Customized Fuel EF'!I:I,\"No EF\",0)=\"\",\"Factor error\",_xlfn.XLOOKUP($H106,'Customized Fuel EF'!$B:$B,'Customized Fuel EF'!I:I,\"No EF\",0)),_xlfn.XLOOKUP($H106,'Customized Fuel EF'!$B:$B,'Customized Fuel EF'!$D:$D,\"No EF\",0))/1000,\"Factor error\")","v":0},{"$f":"IFERROR(SUMIFS(R:R,$D:$D,$D42,$I:$I,$H106)*IF($G106=\"Customized\",\nIF(_xlfn.XLOOKUP($H106,'Customized Fuel LHV'!$B:$B,'Customized Fuel LHV'!J:J,\"No LHV\",0)=\"\",\"Factor error\",_xlfn.XLOOKUP($H106,'Customized Fuel LHV'!$B:$B,'Customized Fuel LHV'!J:J,\"No LHV\",0)),_xlfn.XLOOKUP($H106,'Customized Fuel LHV'!$B:$B,'Customized Fuel LHV'!$D:$D,\"No LHV\",0))\n*IF($F106=\"Customized\",IF(_xlfn.XLOOKUP($H106,'Customized Fuel EF'!$B:$B,'Customized Fuel EF'!J:J,\"No EF\",0)=\"\",\"Factor error\",_xlfn.XLOOKUP($H106,'Customized Fuel EF'!$B:$B,'Customized Fuel EF'!J:J,\"No EF\",0)),_xlfn.XLOOKUP($H106,'Customized Fuel EF'!$B:$B,'Customized Fuel EF'!$D:$D,\"No EF\",0))/1000,\"Factor error\")","v":"Factor error"}]
[null,null,"A3.1.3",null,null,"CO2e from on-site transportation (mobile combustion sources)",null,"CO2e from on-site power generation","CO2e from on-site power generation","[t CO2e/reporting period]",{"$f":"SUM(M107:R107)","v":0},null,{"$f":"SUMIF($D:$D,$C107,M:M)","v":0},0,0,0,0,0]
[null,null,null,null,null,"Adopting CO2e Factors ","Adopting LHV Factors ","[Please insert additional rows if more energy commodities are included]"]
[null,null,null,{"$f":"C107","v":"A3.1.3"},".1",null,null,null,null,"[t CO2e/reporting period]",{"$f":"SUM(M109:R109)","v":0},null,{"$f":"IFERROR(SUMIFS(M:M,$D:$D,$D44,$I:$I,$H109)*IF($G109=\"Customized\",\nIF(_xlfn.XLOOKUP($H109,'Customized Fuel LHV'!$B:$B,'Customized Fuel LHV'!E:E,\"No LHV\",0)=\"\",\"Factor error\",_xlfn.XLOOKUP($H109,'Customized Fuel LHV'!$B:$B,'Customized Fuel LHV'!E:E,\"No LHV\",0)),_xlfn.XLOOKUP($H109,'Customized Fuel LHV'!$B:$B,'Customized Fuel LHV'!$D:$D,\"No LHV\",0))*\nIF($F109=\"Customized\",\nIF(_xlfn.XLOOKUP($H109,'Customized Fuel EF'!$B:$B,'Customized Fuel EF'!E:E,\"No EF\",0)=\"\",\"Factor error\",_xlfn.XLOOKUP($H109,'Customized Fuel EF'!$B:$B,'Customized Fuel EF'!E:E,\"No EF\",0)),_xlfn.XLOOKUP($H109,'Customized Fuel EF'!$B:$B,'Customized Fuel EF'!$D:$D,\"No EF\",0))/1000,\"Factor error\")","v":0},{"$f":"IFERROR(SUMIFS(N:N,$D:$D,$D44,$I:$I,$H109)*IF($G109=\"Customized\",\nIF(_xlfn.XLOOKUP($H109,'Customized Fuel LHV'!$B:$B,'Customized Fuel LHV'!F:F,\"No LHV\",0)=\"\",\"Factor error\",_xlfn.XLOOKUP($H109,'Customized Fuel LHV'!$B:$B,'Customized Fuel LHV'!F:F,\"No LHV\",0)),_xlfn.XLOOKUP($H109,'Customized Fuel LHV'!$B:$B,'Customized Fuel LHV'!$D:$D,\"No LHV\",0))*\nIF($F109=\"Customized\",\nIF(_xlfn.XLOOKUP($H109,'Customized Fuel EF'!$B:$B,'Customized Fuel EF'!F:F,\"No EF\",0)=\"\",\"Factor error\",_xlfn.XLOOKUP($H109,'Customized Fuel EF'!$B:$B,'Customized Fuel EF'!F:F,\"No EF\",0)),_xlfn.XLOOKUP($H109,'Customized Fuel EF'!$B:$B,'Customized Fuel EF'!$D:$D,\"No EF\",0))/1000,\"Factor error\")","v":0},{"$f":"IFERROR(SUMIFS(O:O,$D:$D,$D44,$I:$I,$H109)*IF($G109=\"Customized\",\nIF(_xlfn.XLOOKUP($H109,'Customized Fuel LHV'!$B:$B,'Customized Fuel LHV'!G:G,\"No LHV\",0)=\"\",\"Factor error\",_xlfn.XLOOKUP($H109,'Customized Fuel LHV'!$B:$B,'Customized Fuel LHV'!G:G,\"No LHV\",0)),_xlfn.XLOOKUP($H109,'Customized Fuel LHV'!$B:$B,'Customized Fuel LHV'!$D:$D,\"No LHV\",0))*\nIF($F109=\"Customized\",\nIF(_xlfn.XLOOKUP($H109,'Customized Fuel EF'!$B:$B,'Customized Fuel EF'!G:G,\"No EF\",0)=\"\",\"Factor error\",_xlfn.XLOOKUP($H109,'Customized Fuel EF'!$B:$B,'Customized Fuel EF'!G:G,\"No EF\",0)),_xlfn.XLOOKUP($H109,'Customized Fuel EF'!$B:$B,'Customized Fuel EF'!$D:$D,\"No EF\",0))/1000,\"Factor error\")","v":0},{"$f":"IFERROR(SUMIFS(P:P,$D:$D,$D44,$I:$I,$H109)*IF($G109=\"Customized\",\nIF(_xlfn.XLOOKUP($H109,'Customized Fuel LHV'!$B:$B,'Customized Fuel LHV'!H:H,\"No LHV\",0)=\"\",\"Factor error\",_xlfn.XLOOKUP($H109,'Customized Fuel LHV'!$B:$B,'Customized Fuel LHV'!H:H,\"No LHV\",0)),_xlfn.XLOOKUP($H109,'Customized Fuel LHV'!$B:$B,'Customized Fuel LHV'!$D:$D,\"No LHV\",0))*\nIF($F109=\"Customized\",\nIF(_xlfn.XLOOKUP($H109,'Customized Fuel EF'!$B:$B,'Customized Fuel EF'!H:H,\"No EF\",0)=\"\",\"Factor error\",_xlfn.XLOOKUP($H109,'Customized Fuel EF'!$B:$B,'Customized Fuel EF'!H:H,\"No EF\",0)),_xlfn.XLOOKUP($H109,'Customized Fuel EF'!$B:$B,'Customized Fuel EF'!$D:$D,\"No EF\",0))/1000,\"Factor error\")","v":0},{"$f":"IFERROR(SUMIFS(Q:Q,$D:$D,$D44,$I:$I,$H109)*IF($G109=\"Customized\",\nIF(_xlfn.XLOOKUP($H109,'Customized Fuel LHV'!$B:$B,'Customized Fuel LHV'!I:I,\"No LHV\",0)=\"\",\"Factor error\",_xlfn.XLOOKUP($H109,'Customized Fuel LHV'!$B:$B,'Customized Fuel LHV'!I:I,\"No LHV\",0)),_xlfn.XLOOKUP($H109,'Customized Fuel LHV'!$B:$B,'Customized Fuel LHV'!$D:$D,\"No LHV\",0))*\nIF($F109=\"Customized\",\nIF(_xlfn.XLOOKUP($H109,'Customized Fuel EF'!$B:$B,'Customized Fuel EF'!I:I,\"No EF\",0)=\"\",\"Factor error\",_xlfn.XLOOKUP($H109,'Customized Fuel EF'!$B:$B,'Customized Fuel EF'!I:I,\"No EF\",0)),_xlfn.XLOOKUP($H109,'Customized Fuel EF'!$B:$B,'Customized Fuel EF'!$D:$D,\"No EF\",0))/1000,\"Factor error\")","v":0},{"$f":"IFERROR(SUMIFS(R:R,$D:$D,$D44,$I:$I,$H109)*IF($G109=\"Customized\",\nIF(_xlfn.XLOOKUP($H109,'Customized Fuel LHV'!$B:$B,'Customized Fuel LHV'!J:J,\"No LHV\",0)=\"\",\"Factor error\",_xlfn.XLOOKUP($H109,'Customized Fuel LHV'!$B:$B,'Customized Fuel LHV'!J:J,\"No LHV\",0)),_xlfn.XLOOKUP($H109,'Customized Fuel LHV'!$B:$B,'Customized Fuel LHV'!$D:$D,\"No LHV\",0))*\nIF($F109=\"Customized\",\nIF(_xlfn.XLOOKUP($H109,'Customized Fuel EF'!$B:$B,'Customized Fuel EF'!J:J,\"No EF\",0)=\"\",\"Factor error\",_xlfn.XLOOKUP($H109,'Customized Fuel EF'!$B:$B,'Customized Fuel EF'!J:J,\"No EF\",0)),_xlfn.XLOOKUP($H109,'Customized Fuel EF'!$B:$B,'Customized Fuel EF'!$D:$D,\"No EF\",0))/1000,\"Factor error\")","v":"Factor error"}]
[null,null,null,{"$f":"C107","v":"A3.1.3"},".2",null,null,null,null,"[t CO2e/reporting period]",{"$f":"SUM(M110:R110)","v":0},null,{"$f":"IFERROR(SUMIFS(M:M,$D:$D,$D45,$I:$I,$H110)*IF($G110=\"Customized\",\nIF(_xlfn.XLOOKUP($H110,'Customized Fuel LHV'!$B:$B,'Customized Fuel LHV'!E:E,\"No LHV\",0)=\"\",\"Factor error\",_xlfn.XLOOKUP($H110,'Customized Fuel LHV'!$B:$B,'Customized Fuel LHV'!E:E,\"No LHV\",0)),_xlfn.XLOOKUP($H110,'Customized Fuel LHV'!$B:$B,'Customized Fuel LHV'!$D:$D,\"No LHV\",0))*\nIF($F110=\"Customized\",\nIF(_xlfn.XLOOKUP($H110,'Customized Fuel EF'!$B:$B,'Customized Fuel EF'!E:E,\"No EF\",0)=\"\",\"Factor error\",_xlfn.XLOOKUP($H110,'Customized Fuel EF'!$B:$B,'Customized Fuel EF'!E:E,\"No EF\",0)),_xlfn.XLOOKUP($H110,'Customized Fuel EF'!$B:$B,'Customized Fuel EF'!$D:$D,\"No EF\",0))/1000,\"Factor error\")","v":0},{"$f":"IFERROR(SUMIFS(N:N,$D:$D,$D45,$I:$I,$H110)*IF($G110=\"Customized\",\nIF(_xlfn.XLOOKUP($H110,'Customized Fuel LHV'!$B:$B,'Customized Fuel LHV'!F:F,\"No LHV\",0)=\"\",\"Factor error\",_xlfn.XLOOKUP($H110,'Customized Fuel LHV'!$B:$B,'Customized Fuel LHV'!F:F,\"No LHV\",0)),_xlfn.XLOOKUP($H110,'Customized Fuel LHV'!$B:$B,'Customized Fuel LHV'!$D:$D,\"No LHV\",0))*\nIF($F110=\"Customized\",\nIF(_xlfn.XLOOKUP($H110,'Customized Fuel EF'!$B:$B,'Customized Fuel EF'!F:F,\"No EF\",0)=\"\",\"Factor error\",_xlfn.XLOOKUP($H110,'Customized Fuel EF'!$B:$B,'Customized Fuel EF'!F:F,\"No EF\",0)),_xlfn.XLOOKUP($H110,'Customized Fuel EF'!$B:$B,'Customized Fuel EF'!$D:$D,\"No EF\",0))/1000,\"Factor error\")","v":0},{"$f":"IFERROR(SUMIFS(O:O,$D:$D,$D45,$I:$I,$H110)*IF($G110=\"Customized\",\nIF(_xlfn.XLOOKUP($H110,'Customized Fuel LHV'!$B:$B,'Customized Fuel LHV'!G:G,\"No LHV\",0)=\"\",\"Factor error\",_xlfn.XLOOKUP($H110,'Customized Fuel LHV'!$B:$B,'Customized Fuel LHV'!G:G,\"No LHV\",0)),_xlfn.XLOOKUP($H110,'Customized Fuel LHV'!$B:$B,'Customized Fuel LHV'!$D:$D,\"No LHV\",0))*\nIF($F110=\"Customized\",\nIF(_xlfn.XLOOKUP($H110,'Customized Fuel EF'!$B:$B,'Customized Fuel EF'!G:G,\"No EF\",0)=\"\",\"Factor error\",_xlfn.XLOOKUP($H110,'Customized Fuel EF'!$B:$B,'Customized Fuel EF'!G:G,\"No EF\",0)),_xlfn.XLOOKUP($H110,'Customized Fuel EF'!$B:$B,'Customized Fuel EF'!$D:$D,\"No EF\",0))/1000,\"Factor error\")","v":0},{"$f":"IFERROR(SUMIFS(P:P,$D:$D,$D45,$I:$I,$H110)*IF($G110=\"Customized\",\nIF(_xlfn.XLOOKUP($H110,'Customized Fuel LHV'!$B:$B,'Customized Fuel LHV'!H:H,\"No LHV\",0)=\"\",\"Factor error\",_xlfn.XLOOKUP($H110,'Customized Fuel LHV'!$B:$B,'Customized Fuel LHV'!H:H,\"No LHV\",0)),_xlfn.XLOOKUP($H110,'Customized Fuel LHV'!$B:$B,'Customized Fuel LHV'!$D:$D,\"No LHV\",0))*\nIF($F110=\"Customized\",\nIF(_xlfn.XLOOKUP($H110,'Customized Fuel EF'!$B:$B,'Customized Fuel EF'!H:H,\"No EF\",0)=\"\",\"Factor error\",_xlfn.XLOOKUP($H110,'Customized Fuel EF'!$B:$B,'Customized Fuel EF'!H:H,\"No EF\",0)),_xlfn.XLOOKUP($H110,'Customized Fuel EF'!$B:$B,'Customized Fuel EF'!$D:$D,\"No EF\",0))/1000,\"Factor error\")","v":0},{"$f":"IFERROR(SUMIFS(Q:Q,$D:$D,$D45,$I:$I,$H110)*IF($G110=\"Customized\",\nIF(_xlfn.XLOOKUP($H110,'Customized Fuel LHV'!$B:$B,'Customized Fuel LHV'!I:I,\"No LHV\",0)=\"\",\"Factor error\",_xlfn.XLOOKUP($H110,'Customized Fuel LHV'!$B:$B,'Customized Fuel LHV'!I:I,\"No LHV\",0)),_xlfn.XLOOKUP($H110,'Customized Fuel LHV'!$B:$B,'Customized Fuel LHV'!$D:$D,\"No LHV\",0))*\nIF($F110=\"Customized\",\nIF(_xlfn.XLOOKUP($H110,'Customized Fuel EF'!$B:$B,'Customized Fuel EF'!I:I,\"No EF\",0)=\"\",\"Factor error\",_xlfn.XLOOKUP($H110,'Customized Fuel EF'!$B:$B,'Customized Fuel EF'!I:I,\"No EF\",0)),_xlfn.XLOOKUP($H110,'Customized Fuel EF'!$B:$B,'Customized Fuel EF'!$D:$D,\"No EF\",0))/1000,\"Factor error\")","v":0},{"$f":"IFERROR(SUMIFS(R:R,$D:$D,$D45,$I:$I,$H110)*IF($G110=\"Customized\",\nIF(_xlfn.XLOOKUP($H110,'Customized Fuel LHV'!$B:$B,'Customized Fuel LHV'!J:J,\"No LHV\",0)=\"\",\"Factor error\",_xlfn.XLOOKUP($H110,'Customized Fuel LHV'!$B:$B,'Customized Fuel LHV'!J:J,\"No LHV\",0)),_xlfn.XLOOKUP($H110,'Customized Fuel LHV'!$B:$B,'Customized Fuel LHV'!$D:$D,\"No LHV\",0))*\nIF($F110=\"Customized\",\nIF(_xlfn.XLOOKUP($H110,'Customized Fuel EF'!$B:$B,'Customized Fuel EF'!J:J,\"No EF\",0)=\"\",\"Factor error\",_xlfn.XLOOKUP($H110,'Customized Fuel EF'!$B:$B,'Customized Fuel EF'!J:J,\"No EF\",0)),_xlfn.XLOOKUP($H110,'Customized Fuel EF'!$B:$B,'Customized Fuel EF'!$D:$D,\"No EF\",0))/1000,\"Factor error\")","v":"Factor error"}]
[null,null,"A3.1.4",null,null,"Total CO2e from fuels combustion",null,null,null,"[t CO2e/reporting period]",{"$f":"SUM(M111:R111)","v":0},null,{"$f":"IF(AND(M101=\"\",M107=\"\"),\"\",M101+M107)","v":0},{"$f":"IF(AND(N101=\"\",N107=\"\"),\"\",N101+N107)","v":0},0,0,0,0]
[null,null,"A3.1.5",null,null,"CO2e from external electricity production",null,null,null,"[t CO2e/reporting period]",{"$f":"SUM(M112:R112)","v":0},null,{"$f":"IFERROR(M47*$K$48/1000,\"\")","v":""},"","","","",""]
[null,null,"A3.1.6",null,null,null,null,null,"Total CO2e in Stage A3","[t CO2e/reporting period]",{"$f":"SUM(M113:R113)","v":0},null,{"$f":"IFERROR(IF(M82=\"\",\"\",M82)+IF(M101=\"\",\"\",M101)+IF(M107=\"\",\"\",M107)+IF(M112=\"\",\"\",M112),\"\")","v":""},{"$f":"IFERROR(IF(N82=\"\",\"\",N82)+IF(N101=\"\",\"\",N101)+IF(N107=\"\",\"\",N107)+IF(N112=\"\",\"\",N112),\"\")","v":""},"","","",""]
[null,"A4","PROJECT LIFE CYCLE STAGE: A4 OFF-SITE TRANSPORTATION OF PRODUCT TO CONSTRUCTION SITE "]
[null,null,"A4.1 CO2e EMISSIONS ",null,null,null,null,null,null,"unit","Total",null,"Product 1","Product 2","Product 3","Product 4","Product 5","Product 6"]
[null,null,"A4.1.1",null,null,"CO2e from off-site transportation of product to construction site (excluded from assessment boundary)"]
[null,null,null,{"$f":"C116","v":"A4.1.1"},".1","CO2e calculated using either 1) WRI & WBCSD's protocol OR 2) EPD & EMSD's carbon audit tool)",null,null,null,"[t CO2e/reporting period]",{"$f":"SUM(M117:R117)","v":0}]
[null,null,"A4.1.2",null,null,null,null,null,"Total CO2e in Stage A4","[t CO2e/reporting period]",{"$f":"SUM(M118:R118)","v":0},null,{"$f":"IFERROR(IF(M117=\"\",\"\",M117),\"\")","v":""},"","","","",""]
[]
[null,"P ","PERFORMANCE INDICATORS",null,null,null,null,null,null,"unit","Total",null,"Product 1","Product 2","Product 3","Product 4","Product 5","Product 6"]
[null,"P",{"$f":"LEFT($B$120,2)","v":"P "},1,null,"Gross CO2e (A1-A3)",null,null,null,"[t CO2e/reporting period]",{"$f":"IF(AND(M121:R121=\"\"),\"\",SUM(M121:R121))","v":0},null,{"$f":"SUM(M122:M124)","v":0},{"$f":"SUM(N122:N124)","v":0},0,0,0,{"$f":"SUM(R122:R124)","v":0}]
[null,null,"P ",{"$f":"D121","v":1},".1","A1 Raw material extraction and upstream production",null,null,null,"[t CO2e/reporting period]",{"$f":"IF(AND(M122:R122=\"\"),\"\",SUM(M122:R122))","v":0},null,{"$f":"SUMIF($I:$I,\"Total CO2e in Stage A1\",M:M)","v":0},0,0,0,0,0]
[null,null,"P ",{"$f":"D122","v":1},".2","A2 Off-site transportation of raw materials to manufacturing plant",null,null,null,"[t CO2e/reporting period]",{"$f":"IF(AND(M123:R123=\"\"),\"\",SUM(M123:R123))","v":0},null,{"$f":"SUMIF($I:$I,\"Total CO2e in Stage A2\",M:M)","v":0},0,0,0,0,0]
[null,null,"P ",{"$f":"D123","v":1},".3","A3 Product manufacturing and fabrication (without wastage)",null,null,null,"[t CO2e/reporting period]",{"$f":"IF(AND(M124:R124=\"\"),\"\",SUM(M124:R124))","v":0},null,{"$f":"SUMIF($I:$I,\"Total CO2e in Stage A3\",M:M)","v":0},0,0,0,0,0]
[null,null,"P ",{"$f":"D124","v":1},".4","A4 Off-site transportation of product to construction site (for reference only, excluded from assessment boundary)",null,null,null,"[t CO2e/reporting period]",{"$f":"IF(AND(M125:R125=\"\"),\"\",SUM(M125:R125))","v":0},null,{"$f":"SUMIF($I:$I,\"Total CO2e in Stage A4\",M:M)","v":0},0,0,0,0,0]
[null,null,"P ",2,null,"Specific gross CO2e per t of cement product produced (A1-A3)",null,null,null,"[t CO2e/t Cement Product]",{"$f":"IF(K121=\"\",\"\",(K121/K$22))","v":{"$error":"#DIV/0!"}},null,{"$f":"IF(M$22=0,\"n.a.\",IF(M121=\"\",\"\",(M121/M$22)))","v":"n.a."},{"$f":"IF(N$22=0,\"n.a.\",IF(N121=\"\",\"\",(N121/N$22)))","v":"n.a."},"n.a.","n.a.","n.a.",{"$f":"IF(R$22=0,\"n.a.\",IF(R121=\"\",\"\",(R121/R$22)))","v":"n.a."}]
[null,null,"P ",{"$f":"D126","v":2},".1","A1 Raw material extraction and upstream production",null,null,null,"[t CO2e/t Cement Product]",{"$f":"IF(K122=\"\",\"\",(K122/K$22))","v":{"$error":"#DIV/0!"}},null,{"$f":"IF(M$22=0,\"n.a.\",IF(M122=\"\",\"\",(M122/M$22)))","v":"n.a."},{"$f":"IF(N$22=0,\"n.a.\",IF(N122=\"\",\"\",(N122/N$22)))","v":"n.a."},"n.a.","n.a.","n.a.","n.a."]
[null,null,"P ",{"$f":"D127","v":2},".2","A2 Off-site transportation of raw materials to manufacturing plant",null,null,null,"[t CO2e/t Cement Product]",{"$error":"#DIV/0!"},null,{"$f":"IF(M$22=0,\"n.a.\",IF(M123=\"\",\"\",(M123/M$22)))","v":"n.a."},"n.a.","n.a.","n.a.","n.a.","n.a."]
[null,null,"P ",{"$f":"D127","v":2},".3","A3 Product manufacturing and fabrication (without wastage)",null,null,null,"[t CO2e/t Cement Product]",{"$error":"#DIV/0!"},null,{"$f":"IF(M$22=0,\"n.a.\",IF(M124=\"\",\"\",(M124/M$22)))","v":"n.a."},"n.a.","n.a.","n.a.","n.a.","n.a."]
[null,null,"P ",{"$f":"D128","v":2},".4","A4 Off-site transportation of product to construction site (for reference only, excluded from assessment boundary)",null,null,null,"[t CO2e/t Cement Product]",{"$error":"#DIV/0!"},null,{"$f":"IF(M$22=0,\"n.a.\",IF(M125=\"\",\"\",(M125/M$22)))","v":"n.a."},{"$f":"IF(N$22=0,\"n.a.\",IF(N125=\"\",\"\",(N125/N$22)))","v":"n.a."},"n.a.","n.a.","n.a.","n.a."]

{"sheet":"Customized Embodied EF","index":3,"n_rows":23,"n_cols":12,"rows_kept":23,"cut":false,"hidden":false,"merged":[[22,0,22,10],[1,4,1,11],[3,0,13,0],[14,0,20,0]]}
[]
[null,null,null,null,"Customized CO2e Emission Factors for Raw Materials"]
[null,null,null,"Default EF",null,null,null,null,null,null,"Supporting document ","Explanation"]
["Raw material ","Gypsum","[t CO2e/ t ]",0.2,null,null,null,null,null,null,"Default value is used"]
[null,"Limestone","[t CO2e/ t ]",1.5769999999999999E-2,null,null,null,null,null,null,"Default value is used"]
[null,"Clay","[t CO2e/ t ]",0.33509,null,null,null,null,null,null,"Default value is used"]
[null,"Shale","[t CO2e/ t ]",2E-3,null,null,null,null,null,null,"Default value is used"]
[null,"Pozzolan / Fly ash","[t CO2e/ t ]",4.0000000000000001E-3,null,null,null,null,null,null,"Default value is used"]
[null,"Ground Blastfurnace Slag (GGBS)","[t CO2e/ t ]",7.9600000000000004E-2,null,null,null,null,null,null,"Default value is used"]
[null,"Sandstone","[t CO2e/ t ]",0.06,null,null,null,null,null,null,"Default value is used"]
[null,"Iron ore","[t CO2e/ t ]",7.0000000000000007E-2,null,null,null,null,null,null,"Default value is used"]
[null,"Packaging material","[t CO2e/ t ]",2.5068000000000001,null,null,null,null,null,null,"Default value is used"]
[null,null,"[t CO2e/ t ]","N/A"]
[null,null,"[t CO2e/ t ]","N/A"]
["Energy Commodity","Diesel oil","[t CO2e/ t ]",0.75202760000000002,null,null,null,null,null,null,"Default value is used"]
[null,"Gasoline","[t CO2e/ t ]",0.81593523000000001,null,null,null,null,null,null,"Default value is used"]
[null,"Petrol coke","[t CO2e/ t ]",0.40262468000000001,null,null,null,null,null,null,"Default value is used"]
[null,"Natural gas","[t CO2e/ t ]",0.42316367999999999,null,null,null,null,null,null,"Default value is used"]
[null,"Waste oil","[t CO2e/ t ]",1.11683712,null,null,null,null,null,null,"Default value is used"]
[null,null,"[t CO2e/ t ]","N/A"]
[null,null,"[t CO2e/ t ]","N/A"]
[]
["Factor sheet Guide :\n1. Each material with a customized EF has its own specific EF type. Even if the applicant decides that certain products will adopt the default EF value for that material, the value must be copied and displayed in the matrix.\n2. The material name must be consistent across all sheets to ensure the Excel file functions as intended.\n3. The \"Supporting Document\" column must be completed by selecting either \"Yes\" or \"No\" if a customized factor is utilized. If the customized row is not applicable, the applicant should select \"Default value is used\". If there is no supporting document , applicant can select “No (Please explain)” and provide explanation for the missing supporting documents."]

{"sheet":"Customized Process Factors","index":4,"n_rows":11,"n_cols":12,"rows_kept":11,"cut":false,"hidden":false,"merged":[[2,4,2,11],[10,0,10,11],[3,0,3,2],[5,0,8,0]]}
["Table 1 : Customized Process CO2e Emission Factor"]
[]
[null,null,null,null,"Customized CO2e EF from Clinker Production"]
["GHG emission sources",null,null,"Default CO2e EF","Product 1","Product 2","Product 3","Product 4","Product 5","Product 6","Supporting document ","Explanation"]
["Carbonate sources","Carbonate sources","[t CO2e/ t clinker]",{"$f":"535/1000","v":0.53500000000000003},null,null,null,null,null,null,"Default value is used"]
["Non-carbonate sources","Pozzolan / Fly ash","[t CO2e/ t material]",-5.5E-2,null,null,null,null,null,null,"Default value is used"]
[null,"Ground Blastfurnace Slag (GGBS)","[t CO2e/ t material]",-0.215,null,null,null,null,null,null,"Default value is used"]
[null,null,"[t CO2e/ t material]","N/A"]
[null,null,"[t CO2e/ t material]","N/A"]
[]
["Factor sheet Guide :\n1. Each process  with a customized factors has its own specific factor type. Even if the applicant decides that certain products will adopt the default value for that process materials, the value must be copied and displayed in the matrix.\n2. The  process material's name must be consistent across all sheets to ensure the Excel file functions as intended.\n3. The \"Supporting Document\" column must be completed by selecting either \"Yes\" or \"No\" if a customized factor is utilized. If the customized row is not applicable, the applicant should select \"Default value is used\". If there is no supporting document , applicant can select “No (Please explain)” and provide explanation for the missing supporting documents."]

{"sheet":"Customized Fuel EF","index":5,"n_rows":66,"n_cols":12,"rows_kept":66,"cut":false,"hidden":false,"merged":[[65,0,65,11],[1,4,1,11],[3,0,24,0],[25,0,41,0],[42,0,44,0],[45,0,49,0],[51,0,63,0]]}
[]
[null,null,null,null,"Customized CO2e Direct Emission Factors for Fuel"]
[null,null,null,"Default EF","Product 1","Product 2","Product 3","Product 4","Product 5","Product 6","Supporting document ","Explanation"]
["Crude oil and derived substances","Crude oil","[kg CO2e/ GJ ]",73.303600000000003,null,null,null,null,null,null,"Default value is used"]
[null,"Orimulsion","[kg CO2e/ GJ ]",77.003600000000006,null,null,null,null,null,null,"Default value is used"]
[null,"Natural gas liquids","[kg CO2e/ GJ ]",64.203599999999994,null,null,null,null,null,null,"Default value is used"]
[null,"Gasoline","[kg CO2e/ GJ ]",69.303600000000003,null,null,null,null,null,null,"Default value is used"]
[null,"Jet kerosene","[kg CO2e/ GJ ]",71.503600000000006,null,null,null,null,null,null,"Default value is used"]
[null,"Other kerosene","[kg CO2e/ GJ ]",71.903600000000012,null,null,null,null,null,null,"Default value is used"]
[null,"Shale oil","[kg CO2e/ GJ ]",73.303600000000003,null,null,null,null,null,null,"Default value is used"]
[null,"Diesel oil","[kg CO2e/ GJ ]",74.1036,null,null,null,null,null,null,"Default value is used"]
[null,"Residual fuel oil","[kg CO2e/ GJ ]",77.403600000000012,null,null,null,null,null,null,"Default value is used"]
[null,"Liquified petroleum gases","[kg CO2e/ GJ ]",63.101099999999995,null,null,null,null,null,null,"Default value is used"]
[null,"Ethane","[kg CO2e/ GJ ]",61.601099999999995,null,null,null,null,null,null,"Default value is used"]
[null,"Naphtha","[kg CO2e/ GJ ]",73.303600000000003,null,null,null,null,null,null,"Default value is used"]
[null,"Bitumen","[kg CO2e/ GJ ]",80.703600000000009,null,null,null,null,null,null,"Default value is used"]
[null,"Lubricants","[kg CO2e/ GJ ]",73.303600000000003,null,null,null,null,null,null,"Default value is used"]
[null,"Petrol coke","[kg CO2e/ GJ ]",97.503600000000006,null,null,null,null,null,null,"Default value is used"]
[null,"Refinery feedstocks","[kg CO2e/ GJ ]",73.303600000000003,null,null,null,null,null,null,"Default value is used"]
[null,"Refinery gas","[kg CO2e/ GJ ]",57.601099999999995,null,null,null,null,null,null,"Default value is used"]
[null,"Paraffin waxes","[kg CO2e/ GJ ]",73.303600000000003,null,null,null,null,null,null,"Default value is used"]
[null,"White spirit & SBP","[kg CO2e/ GJ ]",73.303600000000003,null,null,null,null,null,null,"Default value is used"]
[null,"Other petroleum products","[kg CO2e/ GJ ]",73.303600000000003,null,null,null,null,null,null,"Default value is used"]
[null,null,"[kg CO2e/ GJ ]","N/A"]
[null,null,"[kg CO2e/ GJ ]","N/A"]
["Coal and derived products","Anthracite","[kg CO2e/ GJ ]",98.302499999999995,null,null,null,null,null,null,"Default value is used"]
[null,"Coking coal","[kg CO2e/ GJ ]",94.611500000000007,null,null,null,null,null,null,"Default value is used"]
[null,"Other bituminous coal","[kg CO2e/ GJ ]",94.611500000000007,null,null,null,null,null,null,"Default value is used"]
[null,"Sub-bituminous coal","[kg CO2e/ GJ ]",96.111500000000007,null,null,null,null,null,null,"Default value is used"]
[null,"Lignite","[kg CO2e/ GJ ]",101.0115,null,null,null,null,null,null,"Default value is used"]
[null,"Oil shale and tar sands","[kg CO2e/ GJ ]",107.0115,null,null,null,null,null,null,"Default value is used"]
[null,"Brown coal briquettes","[kg CO2e/ GJ ]",97.511499999999998,null,null,null,null,null,null,"Default value is used"]
[null,"Patent fuel","[kg CO2e/ GJ ]",97.511499999999998,null,null,null,null,null,null,"Default value is used"]
[null,"Coke oven coke / lignite coke / coke breeze","[kg CO2e/ GJ ]",107.0115,null,null,null,null,null,null,"Default value is used"]
[null,"Gas coke","[kg CO2e/ GJ ]",107.00110000000001,null,null,null,null,null,null,"Default value is used"]
[null,"Coal tar","[kg CO2e/ GJ ]",80.711500000000001,null,null,null,null,null,null,"Default value is used"]
[null,"Gas works gas","[kg CO2e/ GJ ]",44.4011,null,null,null,null,null,null,"Default value is used"]
[null,"Coke oven gas","[kg CO2e/ GJ ]",44.4011,null,null,null,null,null,null,"Default value is used"]
[null,"Blast furnace gas","[kg CO2e/ GJ ]",260.00110000000001,null,null,null,null,null,null,"Default value is used"]
[null,"Oxygen steel furnace gas","[kg CO2e/ GJ ]",182.00110000000001,null,null,null,null,null,null,"Default value is used"]
[null,null,"[kg CO2e/ GJ ]","N/A"]
[null,null,"[kg CO2e/ GJ ]","N/A"]
["Gas","Natural gas","[kg CO2e/ GJ ]",56.101099999999995,null,null,null,null,null,null,"Default value is used"]
[null,null,"[kg CO2e/ GJ ]","N/A"]
[null,null,"[kg CO2e/ GJ ]","N/A"]
["Non-biomass waste","Municipal wastes (non-biomass fraction)","[kg CO2e/ GJ ]",91.733999999999995,null,null,null,null,null,null,"Default value is used"]
[null,"Industrial wastes","[kg CO2e/ GJ ]","NA",null,null,null,null,null,null,"Default value is used"]
[null,"Waste oil","[kg CO2e/ GJ ]",73.334000000000003,null,null,null,null,null,null,"Default value is used"]
[null,null,"[kg CO2e/ GJ ]","N/A"]
[null,null,"[kg CO2e/ GJ ]","N/A"]
["Peat","Peat","[kg CO2e/ GJ ]",106.0035,null,null,null,null,null,null,"Default value is used"]
["Biomass waste","Wood/Wood waste","[kg CO2e/ GJ ]",112.03400000000001,null,null,null,null,null,null,"Default value is used"]
[null,"Sulphite lyes (Black liquor)","[kg CO2e/ GJ ]",95.305000000000007,null,null,null,null,null,null,"Default value is used"]
[null,"Other primary solid biomass fuels","[kg CO2e/ GJ ]",100.03400000000001,null,null,null,null,null,null,"Default value is used"]
[null,"Charcoal","[kg CO2e/ GJ ]",112.20399999999999,null,null,null,null,null,null,"Default value is used"]
[null,"Biogasoline","[kg CO2e/ GJ ]",70.803600000000003,null,null,null,null,null,null,"Default value is used"]
[null,"Biodiesel","[kg CO2e/ GJ ]",70.803600000000003,null,null,null,null,null,null,"Default value is used"]
[null,"Other liquid biofuels","[kg CO2e/ GJ ]",79.6036,null,null,null,null,null,null,"Default value is used"]
[null,"Landfill gas","[kg CO2e/ GJ ]",54.601099999999995,null,null,null,null,null,null,"Default value is used"]
[null,"Sludge gas","[kg CO2e/ GJ ]",54.601099999999995,null,null,null,null,null,null,"Default value is used"]
[null,"Other biogas","[kg CO2e/ GJ ]",54.601099999999995,null,null,null,null,null,null,"Default value is used"]
[null,"Municipal wastes (biomass fraction)","[kg CO2e/ GJ ]",100.03400000000001,null,null,null,null,null,null,"Default value is used"]
[null,null,"[kg CO2e/ GJ ]","N/A"]
[null,null,"[kg CO2e/ GJ ]","N/A"]
[]
["Factor sheet Guide :\n1. Each energy commodity with a customized EF has its own specific EF type. Even if the applicant decides that certain products will adopt the default EF value for that energy commodity, the value must be copied and displayed in the matrix.\n2. The energy commodity name must be consistent across all sheets to ensure the Excel file functions as intended.\n3. The \"Supporting Document\" column must be completed by selecting either \"Yes\" or \"No\" if a customized factor is utilized. If the customized row is not applicable, the applicant should select \"Default value is used\". If there is no supporting document , applicant can select “No (Please explain)” and provide explanation for the missing supporting documents."]

{"sheet":"Customized Fuel LHV","index":6,"n_rows":66,"n_cols":12,"rows_kept":66,"cut":false,"hidden":false,"merged":[[65,0,65,11],[51,0,63,0],[1,4,1,11],[3,0,24,0],[25,0,41,0],[42,0,44,0],[45,0,49,0]]}
[]
[null,null,null,null,"Customized LHVs for Fuel"]
[null,null,null,"Default LHV","Product 1","Product 2","Product 3","Product 4","Product 5","Product 6","Supporting document ","Explanation"]
["Crude oil and derived substances","Crude oil","MJ/kg",42.3,null,null,null,null,null,null,"Default value is used"]
[null,"Orimulsion","MJ/kg",27.5,null,null,null,null,null,null,"Default value is used"]
[null,"Natural gas liquids","MJ/kg",44.2,null,null,null,null,null,null,"Default value is used"]
[null,"Gasoline","MJ/kg",44.3,null,null,null,null,null,null,"Default value is used"]
[null,"Jet kerosene","MJ/kg",44.1,null,null,null,null,null,null,"Default value is used"]
[null,"Other kerosene","MJ/kg",43.8,null,null,null,null,null,null,"Default value is used"]
[null,"Shale oil","MJ/kg",38.1,null,null,null,null,null,null,"Default value is used"]
[null,"Diesel oil","MJ/kg",43,null,null,null,null,null,null,"Default value is used"]
[null,"Residual fuel oil","MJ/kg",40.4,null,null,null,null,null,null,"Default value is used"]
[null,"Liquified petroleum gases","MJ/kg",47.3,null,null,null,null,null,null,"Default value is used"]
[null,"Ethane","MJ/kg",46.4,null,null,null,null,null,null,"Default value is used"]
[null,"Naphtha","MJ/kg",44.5,null,null,null,null,null,null,"Default value is used"]
[null,"Bitumen","MJ/kg",40.200000000000003,null,null,null,null,null,null,"Default value is used"]
[null,"Lubricants","MJ/kg",40.200000000000003,null,null,null,null,null,null,"Default value is used"]
[null,"Petrol coke","MJ/kg",32.5,null,null,null,null,null,null,"Default value is used"]
[null,"Refinery feedstocks","MJ/kg",43,null,null,null,null,null,null,"Default value is used"]
[null,"Refinery gas","MJ/kg",49.5,null,null,null,null,null,null,"Default value is used"]
[null,"Paraffin waxes","MJ/kg",40.200000000000003,null,null,null,null,null,null,"Default value is used"]
[null,"White spirit & SBP","MJ/kg",40.200000000000003,null,null,null,null,null,null,"Default value is used"]
[null,"Other petroleum products","MJ/kg",40.200000000000003,null,null,null,null,null,null,"Default value is used"]
[null,{"$f":"'Customized Fuel EF'!B24","v":0},"MJ/kg","N/A"]
[null,{"$f":"'Customized Fuel EF'!B25","v":0},"MJ/kg","N/A"]
["Coal and derived products","Anthracite","MJ/kg",26.7,null,null,null,null,null,null,"Default value is used"]
[null,"Coking coal","MJ/kg",28.2,null,null,null,null,null,null,"Default value is used"]
[null,"Other bituminous coal","MJ/kg",25.8,null,null,null,null,null,null,"Default value is used"]
[null,"Sub-bituminous coal","MJ/kg",18.899999999999999,null,null,null,null,null,null,"Default value is used"]
[null,"Lignite","MJ/kg",11.9,null,null,null,null,null,null,"Default value is used"]
[null,"Oil shale and tar sands","MJ/kg",8.9,null,null,null,null,null,null,"Default value is used"]
[null,"Brown coal briquettes","MJ/kg",20.7,null,null,null,null,null,null,"Default value is used"]
[null,"Patent fuel","MJ/kg",20.7,null,null,null,null,null,null,"Default value is used"]
[null,"Coke oven coke / lignite coke / coke breeze","MJ/kg",28.2,null,null,null,null,null,null,"Default value is used"]
[null,"Gas coke","MJ/kg",28.2,null,null,null,null,null,null,"Default value is used"]
[null,"Coal tar","MJ/kg",28,null,null,null,null,null,null,"Default value is used"]
[null,"Gas works gas","MJ/kg",38.700000000000003,null,null,null,null,null,null,"Default value is used"]
[null,"Coke oven gas","MJ/kg",38.700000000000003,null,null,null,null,null,null,"Default value is used"]
[null,"Blast furnace gas","MJ/kg",2.4700000000000002,null,null,null,null,null,null,"Default value is used"]
[null,"Oxygen steel furnace gas","MJ/kg",7.06,null,null,null,null,null,null,"Default value is used"]
[null,{"$f":"'Customized Fuel EF'!B41","v":0},"MJ/kg","N/A"]
[null,{"$f":"'Customized Fuel EF'!B42","v":0},"MJ/kg","N/A"]
["Gas","Natural gas","MJ/kg",48,null,null,null,null,null,null,"Default value is used"]
[null,{"$f":"'Customized Fuel EF'!B44","v":0},"MJ/kg","N/A"]
[null,{"$f":"'Customized Fuel EF'!B45","v":0},"MJ/kg","N/A"]
["Non-biomass waste","Municipal wastes (non-biomass fraction)","MJ/kg",10,null,null,null,null,null,null,"Default value is used"]
[null,"Industrial wastes","MJ/kg","NA",null,null,null,null,null,null,"Default value is used"]
[null,"Waste oil","MJ/kg",40.200000000000003,null,null,null,null,null,null,"Default value is used"]
[null,{"$f":"'Customized Fuel EF'!B49","v":0},"MJ/kg","N/A"]
[null,{"$f":"'Customized Fuel EF'!B50","v":0},"MJ/kg","N/A"]
["Peat","Peat","MJ/kg",9.76,null,null,null,null,null,null,"Default value is used"]
["Biomass waste","Wood/Wood waste","MJ/kg",15.6,null,null,null,null,null,null,"Default value is used"]
[null,"Sulphite lyes (Black liquor)","MJ/kg",11.8,null,null,null,null,null,null,"Default value is used"]
[null,"Other primary solid biomass fuels","MJ/kg",11.6,null,null,null,null,null,null,"Default value is used"]
[null,"Charcoal","MJ/kg",29.5,null,null,null,null,null,null,"Default value is used"]
[null,"Biogasoline","MJ/kg",27,null,null,null,null,null,null,"Default value is used"]
[null,"Biodiesel","MJ/kg",27,null,null,null,null,null,null,"Default value is used"]
[null,"Other liquid biofuels","MJ/kg",27.4,null,null,null,null,null,null,"Default value is used"]
[null,"Landfill gas","MJ/kg",50.4,null,null,null,null,null,null,"Default value is used"]
[null,"Sludge gas","MJ/kg",50.4,null,null,null,null,null,null,"Default value is used"]
[null,"Other biogas","MJ/kg",50.4,null,null,null,null,null,null,"Default value is used"]
[null,"Municipal wastes (biomass fraction)","MJ/kg",11.6,null,null,null,null,null,null,"Default value is used"]
[null,{"$f":"'Customized Fuel EF'!B63","v":0},"MJ/kg","N/A"]
[null,{"$f":"'Customized Fuel EF'!B64","v":0},"MJ/kg","N/A"]
[]
["Factor sheet Guide :\n1. Each energy commodity with a customized LHV has its own specific LHV type. Even if the applicant decides that certain products will adopt the default LHV value for that energy commodity, the value must be copied and displayed in the matrix.\n2. The energy commodity name must be consistent across all sheets to ensure the Excel file functions as intended.\n3. The \"Supporting Document\" column must be completed by selecting either \"Yes\" or \"No\" if a customized factor is utilized. If the customized row is not applicable, the applicant should select \"Default value is used\". If there is no supporting document , applicant can select “No (Please explain)” and provide explanation for the missing supporting documents."]

{"sheet":"Default EF&LHV References ","index":7,"n_rows":42,"n_cols":3,"rows_kept":42,"cut":false,"hidden":false,"merged":[[21,0,21,2],[32,0,32,2],[0,0,0,1],[1,0,1,2],[15,0,15,2]]}
["Date of latest update",null,"2025-03-24"]
["Default CO2e Emission Factors for Raw Materials"]
["Item","Category","References"]
["/","Raw materials","various"]
[1,"Gypsum","中国产品全生命周期温室气体排放系数库（CPCD）. Available from:https://lca.cityghg.com/"]
[2,"Limestone","ICE Cement, Mortar and Concrete Model – V1.2 – Dec 2024. Available from: https://circularecology.com/embodied-carbon-footprint-database.html"]
[3,"Clay","ICE DB Advanced V4 – Dec 2024.Available from: https://circularecology.com/embodied-carbon-footprint-database.html"]
[4,"Shale","ICE DB Advanced V4 – Dec 2024.Available from: https://circularecology.com/embodied-carbon-footprint-database.html"]
[5,"Pozzolan / Fly ash","ICE Cement, Mortar and Concrete Model – V1.2 – Dec 2024. Available from: https://circularecology.com/embodied-carbon-footprint-database.html"]
[6,"Ground Blastfurnace Slag (GGBS)","ICE Cement, Mortar and Concrete Model – V1.2 – Dec 2024. Available from: https://circularecology.com/embodied-carbon-footprint-database.html"]
[7,"Sandstone","中国产品全生命周期温室气体排放系数库（CPCD）. Available from:https://lca.cityghg.com/"]
[8,"Iron ore","中国产品全生命周期温室气体排放系数库（CPCD）. Available from:https://lca.cityghg.com/"]
[9,"Packaging material","Ecoinvent"]
["/","Energy commodity","UK Department for Energy Security and Net Zero (2024). Greenhouse gas reporting: conversion factors 2024."]
[]
["(Table 1) Default Process CO2e Emission Factor"]
["Item","Category","References"]
["/","Portland cement clinker","Greenhouse Gases-Quantitative methods and requirements for carbon footprint of products-Common portland cement. Available from: https://www.mee.gov.cn/xxgk2018/xxgk/xxgk06/202503/W020250328550113073051.pdf"]
["/","Slag (GGBS)","Greenhouse Gases-Quantitative methods and requirements for carbon footprint of products-Common portland cement. Available from: https://www.mee.gov.cn/xxgk2018/xxgk/xxgk06/202503/W020250328550113073051.pdf"]
["/","Pozzolan / Fly ash","Greenhouse Gases-Quantitative methods and requirements for carbon footprint of products-Common portland cement. Available from: https://www.mee.gov.cn/xxgk2018/xxgk/xxgk06/202503/W020250328550113073051.pdf"]
[]
["Default CO2e Emission Factors for Fuel"]
["Item","Category","References"]
["/","Common Process Materials","Volume 2 Chapter 2, Table 2.3 of IPCC 2006 Guideline for National Greenhous Gas Inventories."]
["/","Coke-oven byproducts transferred offsite","Volume 2 Chapter 2, Table 2.3 of IPCC 2006 Guideline for National Greenhous Gas Inventories."]
["/","Crude oil and derived substances","Volume 2 Chapter 2, Table 2.3 of IPCC 2006 Guideline for National Greenhous Gas Inventories."]
["/","Coal and derived products","Volume 2 Chapter 2, Table 2.3 of IPCC 2006 Guideline for National Greenhous Gas Inventories."]
["/","Gas","Volume 2 Chapter 2, Table 2.3 of IPCC 2006 Guideline for National Greenhous Gas Inventories."]
["/","Non-biomass waste","Volume 2 Chapter 2, Table 2.3 of IPCC 2006 Guideline for National Greenhous Gas Inventories."]
["/","Peat","Volume 2 Chapter 2, Table 2.3 of IPCC 2006 Guideline for National Greenhous Gas Inventories."]
["/","Biomass waste","Volume 2 Chapter 2, Table 2.3 of IPCC 2006 Guideline for National Greenhous Gas Inventories."]
[]
["Default  LHVs for Fuel"]
["Item","Category","References"]
["/","Common Process Materials","Volume 2 Chapter 1, Tables 1.2 of IPCC 2006 Guideline for National Greenhous Gas Inventories."]
["/","Coke-oven byproducts transferred offsite","Volume 2 Chapter 1, Tables 1.2 of IPCC 2006 Guideline for National Greenhous Gas Inventories."]
["/","Crude oil and derived substances","Volume 2 Chapter 1, Tables 1.2 of IPCC 2006 Guideline for National Greenhous Gas Inventories."]
["/","Coal and derived products","Volume 2 Chapter 1, Tables 1.2 of IPCC 2006 Guideline for National Greenhous Gas Inventories."]
["/","Gas","Volume 2 Chapter 1, Tables 1.2 of IPCC 2006 Guideline for National Greenhous Gas Inventories."]
["/","Non-biomass waste","Volume 2 Chapter 1, Tables 1.2 of IPCC 2006 Guideline for National Greenhous Gas Inventories."]
["/","Peat","Volume 2 Chapter 1, Tables 1.2 of IPCC 2006 Guideline for National Greenhous Gas Inventories."]
["/","Biomass waste","Volume 2 Chapter 1, Tables 1.2 of IPCC 2006 Guideline for National Greenhous Gas Inventories."]